Body,Service Area Org,Service Division Org,Responsible Unit,Expense Type,Detailed Expense Typ,Expense Code,Payment Date,Transaction Number,              Amount,Supplier Name,Supplier ID,Commitment Item,Costcentre
Somerset County Council,Adult Social Care,Mental Health,ASC MH Residential,Third Party Payments,Private Contractors & Other Agencies,Purchased Care Services,02.03.2016,1900976294,2100.00,4M COMPANY,11007035,50601,104476
Somerset County Council,Adult Social Care,Mental Health,ASC MH Residential,Third Party Payments,Private Contractors & Other Agencies,Purchased Care Services,02.03.2016,1900976294,2320.00,4M COMPANY,11007035,50601,104476
Somerset County Council,Adult Social Care,New Codes,Sdg LT Phys Support - Res Spot,Third Party Payments,Private Contractors & Other Agencies,Purchased Care Services,03.03.2016,1900977548,1829.88,4M COMPANY,11007035,50601,121214
Somerset County Council,Adult Social Care,New Codes,Sdg LT Phys Support - Res Spot,Third Party Payments,Private Contractors & Other Agencies,Purchased Care Services,03.03.2016,1900977548,1829.88,4M COMPANY,11007035,50601,121214
Somerset County Council,Adult Social Care,New Codes,Sdg ST Phys Support - Admission Avoid,Third Party Payments,Private Contractors & Other Agencies,Purchased Care Services,03.03.2016,1900977548,1250.00,4M COMPANY,11007035,50601,123914
Somerset County Council,Adult Social Care,New Codes,Sdg LT Phys Support - Res Spot,Third Party Payments,Private Contractors & Other Agencies,Purchased Care Services,03.03.2016,1900977548,1503.12,4M COMPANY,11007035,50601,121214
Somerset County Council,Adult Social Care,Learning Disabilities,LD-PUR-DC-Day Care-MDP,Third Party Payments,Private Contractors & Other Agencies,Purchased Care Services,18.03.2016,5100771509,1260.00,A TAXIS,11007570,50601,108214
Somerset County Council,Adult Social Care,Older People,ASC TA OP Passenger Transport,Transport,Car Allowances,Vehicle mileage allowance - volunteers,23.03.2016,1900989256,9.00,A1 ACE TAXI SERVICE LTD,11007454,30102,106394
Somerset County Council,Adult Social Care,Physical Disabilities,ASC SE OP Passenger Transport PD,Transport,Car Allowances,Vehicle mileage allowance - volunteers,23.03.2016,1900989256,103.60,A1 ACE TAXI SERVICE LTD,11007454,30102,109832
Somerset County Council,Adult Social Care,Learning Disabilities,LD-PUR-GS-Passenger Transport-SDW,Transport,Car Allowances,Vehicle mileage allowance - volunteers,31.03.2016,1900991237,44.00,A1 ACE TAXI SERVICE LTD,11007454,30102,103928
Somerset County Council,Adult Social Care,Physical Disabilities,ASC TA OP Passenger Transport PD,Transport,Car Allowances,Vehicle mileage allowance - volunteers,31.03.2016,1900991237,14.40,A1 ACE TAXI SERVICE LTD,11007454,30102,110443
Somerset County Council,Adult Social Care,Mental Health,ASC MH Taunton Transport,Transport,Car Allowances,Vehicle mileage allowance - volunteers,31.03.2016,1900991237,14.40,A1 ACE TAXI SERVICE LTD,11007454,30102,106267
Somerset County Council,Adult Social Care,Older People,ASC TA OP Passenger Transport,Transport,Car Allowances,Vehicle mileage allowance - volunteers,31.03.2016,1900991237,5.10,A1 ACE TAXI SERVICE LTD,11007454,30102,106394
Somerset County Council,Adult Social Care,Older People,ASC TA OP Passenger Transport,Transport,Car Allowances,Vehicle mileage allowance - volunteers,31.03.2016,1900991237,25.20,A1 ACE TAXI SERVICE LTD,11007454,30102,106394
Somerset County Council,Adult Social Care,Learning Disabilities,LD-SCC-TS-Transport-SDW,Transport,Central Pool Recharges,Hired Vehicle Costs,31.03.2016,1900991237,5.00,A1 ACE TAXI SERVICE LTD,11007454,30201,109752
Somerset County Council,Adult Social Care,Older People,ASC TA OP Passenger Transport,Transport,Car Allowances,Vehicle mileage allowance - volunteers,31.03.2016,1900991237,14.40,A1 ACE TAXI SERVICE LTD,11007454,30102,106394
Somerset County Council,Adult Social Care,Physical Disabilities,ASC TA OP Passenger Transport PD,Transport,Car Allowances,Vehicle mileage allowance - volunteers,31.03.2016,1900991237,18.00,A1 ACE TAXI SERVICE LTD,11007454,30102,110443
Somerset County Council,Adult Social Care,Older People,ASC TA OP Passenger Transport,Transport,Car Allowances,Vehicle mileage allowance - volunteers,31.03.2016,1900991237,16.20,A1 ACE TAXI SERVICE LTD,11007454,30102,106394
Somerset County Council,Adult Social Care,Older People,ASC TA OP Passenger Transport,Transport,Car Allowances,Vehicle mileage allowance - volunteers,31.03.2016,1900991237,28.80,A1 ACE TAXI SERVICE LTD,11007454,30102,106394
Somerset County Council,Adult Social Care,Physical Disabilities,ASC SE OP Passenger Transport PD,Transport,Car Allowances,Vehicle mileage allowance - volunteers,31.03.2016,1900991237,56.80,A1 ACE TAXI SERVICE LTD,11007454,30102,109832
Somerset County Council,Adult Social Care,New Codes,Tton ST Phys Support - Respite,Third Party Payments,Private Contractors & Other Agencies,Purchased Care Services,23.03.2016,1900988484,130.71,ABBEYFIELD (SOMERSET) SOCIETY,11014015,50601,120916
Somerset County Council,Adult Social Care,New Codes,Tton LT Phys Support - Res Spot,Third Party Payments,Private Contractors & Other Agencies,Purchased Care Services,23.03.2016,1900988484,457.47,ABBEYFIELD (SOMERSET) SOCIETY,11014015,50601,121216
Somerset County Council,Adult Social Care,New Codes,Tton LT Phys Support - Res Spot,Third Party Payments,Private Contractors & Other Agencies,Purchased Care Services,23.03.2016,1900988484,457.47,ABBEYFIELD (SOMERSET) SOCIETY,11014015,50601,121216
Somerset County Council,Adult Social Care,New Codes,Tton LT Phys Support - Res Spot,Third Party Payments,Private Contractors & Other Agencies,Purchased Care Services,23.03.2016,1900988484,914.94,ABBEYFIELD (SOMERSET) SOCIETY,11014015,50601,121216
Somerset County Council,Adult Social Care,New Codes,Tton LT Phys Support - DPA Residential,Third Party Payments,Private Contractors & Other Agencies,Purchased Care Services,23.03.2016,1900988484,545.00,ABBEYFIELD (SOMERSET) SOCIETY,11014015,50601,129216
Somerset County Council,Adult Social Care,New Codes,Tton LT Phys Support - DPA Residential,Third Party Payments,Private Contractors & Other Agencies,Purchased Care Services,23.03.2016,1900988484,545.00,ABBEYFIELD (SOMERSET) SOCIETY,11014015,50601,129216
Somerset County Council,Adult Social Care,New Codes,Tton LT Phys Support - DPA Residential,Third Party Payments,Private Contractors & Other Agencies,Purchased Care Services,23.03.2016,1900988484,1090.00,ABBEYFIELD (SOMERSET) SOCIETY,11014015,50601,129216
Somerset County Council,Adult Social Care,New Codes,Tton ST Phys Support - Respite,Third Party Payments,Private Contractors & Other Agencies,Purchased Care Services,03.03.2016,1900977410,457.47,ABBEYFIELD (SOMERSET) SOCIETY,11014015,50601,120916
Somerset County Council,Adult Social Care,New Codes,Tton ST Phys Support - Respite,Third Party Payments,Private Contractors & Other Agencies,Purchased Care Services,03.03.2016,1900977410,784.23,ABBEYFIELD (SOMERSET) SOCIETY,11014015,50601,120916
Somerset County Council,Adult Social Care,New Codes,Tton LT Phys Support - Res Spot,Third Party Payments,Private Contractors & Other Agencies,Purchased Care Services,03.03.2016,1900977410,1829.88,ABBEYFIELD (SOMERSET) SOCIETY,11014015,50601,121216
Somerset County Council,Adult Social Care,New Codes,Tton LT Phys Support - DPA Residential,Third Party Payments,Private Contractors & Other Agencies,Purchased Care Services,03.03.2016,1900977410,2180.00,ABBEYFIELD (SOMERSET) SOCIETY,11014015,50601,129216
Somerset County Council,Adult Social Care,Learning Disabilities,LD-PUR-SH-Supported Housing-SDW,Third Party Payments,Private Contractors & Other Agencies,Purchased Care Services,15.03.2016,5100770677,1128.68,Able2achieve ltd,11032969,50601,106667
Somerset County Council,Adult Social Care,Mental Health,ASC MH Supported Living,Third Party Payments,Private Contractors & Other Agencies,Purchased Care Services,17.03.2016,5100771348,1109.33,Able2achieve ltd,11032969,50601,108429
Somerset County Council,Adult Social Care,Learning Disabilities,LD-PUR-DC-Day Care-STH,Third Party Payments,Private Contractors & Other Agencies,Purchased Care Services,18.03.2016,5100771536,1121.68,Able2achieve ltd,11032969,50601,108215
Somerset County Council,Adult Social Care,Learning Disabilities,LD-PUR-SH-Supported Housing-SDW,Third Party Payments,Private Contractors & Other Agencies,Purchased Care Services,15.03.2016,5100770676,17047.33,Able2achieve ltd,11032969,50601,106667
Somerset County Council,Adult Social Care,Learning Disabilities,LD-PUR-SH-Supported Housing-SDW,Third Party Payments,Private Contractors & Other Agencies,Purchased Care Services,15.03.2016,5100770678,18169.01,Able2achieve ltd,11032969,50601,106667
Somerset County Council,Adult Social Care,Learning Disabilities,LD-PUR-SH-Supported Housing-SDW,Third Party Payments,Private Contractors & Other Agencies,Purchased Care Services,08.03.2016,5100769123,17047.33,Able2achieve ltd,11032969,50601,106667
Somerset County Council,Adult Social Care,Learning Disabilities,LD-PUR-SH-Supported Housing-SDW,Third Party Payments,Private Contractors & Other Agencies,Purchased Care Services,08.03.2016,5100769122,1121.68,Able2achieve ltd,11032969,50601,106667
Somerset County Council,Adult Social Care,Learning Disabilities,LD-PUR-SH-Supported Housing-STH,Third Party Payments,Private Contractors & Other Agencies,Purchased Care Services,18.03.2016,5100771537,11648.00,Able2achieve ltd,11032969,50601,103056
Somerset County Council,Adult Social Care,Learning Disabilities,LD-PUR-SH-Supported Housing-STH,Third Party Payments,Private Contractors & Other Agencies,Purchased Care Services,18.03.2016,5100771538,18898.00,Able2achieve ltd,11032969,50601,103056
Somerset County Council,Adult Social Care,Learning Disabilities,LD-PUR-SH-Supported Housing-STH,Third Party Payments,Private Contractors & Other Agencies,Purchased Care Services,18.03.2016,5100771539,11648.00,Able2achieve ltd,11032969,50601,103056
Somerset County Council,Adult Social Care,Learning Disabilities,LD-PUR-SH-Supported Housing-STH,Third Party Payments,Private Contractors & Other Agencies,Purchased Care Services,18.03.2016,5100771540,3604.50,Able2achieve ltd,11032969,50601,103056
Somerset County Council,Adult Social Care,Learning Disabilities,LD-PUR-SH-Supported Housing-STH,Third Party Payments,Private Contractors & Other Agencies,Purchased Care Services,18.03.2016,5100771541,1126.19,Able2achieve ltd,11032969,50601,103056
Somerset County Council,Adult Social Care,Learning Disabilities,LD-PUR-SH-Supported Housing-STH,Third Party Payments,Private Contractors & Other Agencies,Purchased Care Services,18.03.2016,5100771542,1121.68,Able2achieve ltd,11032969,50601,103056
Somerset County Council,Adult Social Care,Learning Disabilities,LD-PUR-SH-Supported Housing-STH,Third Party Payments,Private Contractors & Other Agencies,Purchased Care Services,18.03.2016,5100771543,2840.50,Able2achieve ltd,11032969,50601,103056
Somerset County Council,Adult Social Care,Mental Health,ASC MH Supported Living,Third Party Payments,Private Contractors & Other Agencies,Purchased Care Services,22.03.2016,5100771365,8757.67,Able2Achieve Ltd,30017727,50601,108429
Somerset County Council,Adult Social Care,Mental Health,ASC MH Supported Living,Third Party Payments,Private Contractors & Other Agencies,Purchased Care Services,22.03.2016,5100771366,1121.68,Able2Achieve Ltd,30017727,50601,108429
Somerset County Council,Adult Social Care,Learning Disabilities,LD-SCC-RS-Ashbury-TNT,Supplies & Services,Equipment Furniture & Materials,Equipment,14.03.2016,5100767046,169.80,ABRADA CLEANING SUPPLIES LTD,11008505,40000,108367
Somerset County Council,Adult Social Care,Learning Disabilities,LD-SCC-RS-Ashbury-TNT,Supplies & Services,Clothing Uniforms & Laundry,Hygiene services,14.03.2016,5100767046,1603.65,ABRADA CLEANING SUPPLIES LTD,11008505,44589,108367
Somerset County Council,Adult Social Care,Learning Disabilities,LD-SCC-RS-Ashbury-TNT,Supplies & Services,Equipment Furniture & Materials,Equipment Cleaning & Materials,14.03.2016,5100767046,921.77,ABRADA CLEANING SUPPLIES LTD,11008505,40001,108367
Somerset County Council,Adult Social Care,New Codes,SSom LT Sens Support - Res Spot,Third Party Payments,Private Contractors & Other Agencies,Purchased Care Services,03.03.2016,1900977755,5187.32,Action on Hearing Loss,11002715,50601,121225
Somerset County Council,Adult Social Care,New Codes,SSom LT Sens Support - Res Spot,Third Party Payments,Private Contractors & Other Agencies,Purchased Care Services,23.03.2016,1900989153,5187.32,Action on Hearing Loss,11002715,50601,121225
Somerset County Council,Adult Social Care,New Codes,Tton LT Phys Support - FNC,Third Party Payments,Private Contractors & Other Agencies,Purchased Care Services,23.03.2016,1900988470,112.00,AFFIRMATIVE CARE LTD,11007188,50601,126116
Somerset County Council,Adult Social Care,New Codes,Tton LT Phys Support - FNC,Third Party Payments,Private Contractors & Other Agencies,Purchased Care Services,23.03.2016,1900988470,112.00,AFFIRMATIVE CARE LTD,11007188,50601,126116
Somerset County Council,Adult Social Care,New Codes,Tton LT Phys Support - FNC,Third Party Payments,Private Contractors & Other Agencies,Purchased Care Services,23.03.2016,1900988470,112.00,AFFIRMATIVE CARE LTD,11007188,50601,126116
Somerset County Council,Adult Social Care,New Codes,Tton LT Phys Support - FNC,Third Party Payments,Private Contractors & Other Agencies,Purchased Care Services,23.03.2016,1900988470,112.00,AFFIRMATIVE CARE LTD,11007188,50601,126116
Somerset County Council,Adult Social Care,New Codes,Tton LT Phys Support - FNC,Third Party Payments,Private Contractors & Other Agencies,Purchased Care Services,23.03.2016,1900988470,112.00,AFFIRMATIVE CARE LTD,11007188,50601,126116
Somerset County Council,Adult Social Care,New Codes,Tton LT Phys Support - FNC,Third Party Payments,Private Contractors & Other Agencies,Purchased Care Services,23.03.2016,1900988470,112.00,AFFIRMATIVE CARE LTD,11007188,50601,126116
Somerset County Council,Adult Social Care,New Codes,Tton LT Phys Support - FNC,Third Party Payments,Private Contractors & Other Agencies,Purchased Care Services,23.03.2016,1900988470,112.00,AFFIRMATIVE CARE LTD,11007188,50601,126116
Somerset County Council,Adult Social Care,New Codes,Tton LT Phys Support - FNC,Third Party Payments,Private Contractors & Other Agencies,Purchased Care Services,23.03.2016,1900988470,112.00,AFFIRMATIVE CARE LTD,11007188,50601,126116
Somerset County Council,Adult Social Care,New Codes,Tton LT Phys Support - FNC,Third Party Payments,Private Contractors & Other Agencies,Purchased Care Services,23.03.2016,1900988470,112.00,AFFIRMATIVE CARE LTD,11007188,50601,126116
Somerset County Council,Adult Social Care,New Codes,Tton LT Phys Support - FNC,Third Party Payments,Private Contractors & Other Agencies,Purchased Care Services,23.03.2016,1900988470,112.00,AFFIRMATIVE CARE LTD,11007188,50601,126116
Somerset County Council,Adult Social Care,New Codes,Tton LT Phys Support - FNC,Third Party Payments,Private Contractors & Other Agencies,Purchased Care Services,23.03.2016,1900988470,96.00,AFFIRMATIVE CARE LTD,11007188,50601,126116
Somerset County Council,Adult Social Care,New Codes,Tton LT Phys Support - Nurs Spot,Third Party Payments,Private Contractors & Other Agencies,Purchased Care Services,23.03.2016,1900988470,112.57,AFFIRMATIVE CARE LTD,11007188,50601,121116
Somerset County Council,Adult Social Care,New Codes,SSom LT Phys Support - Nurs Spot,Third Party Payments,Private Contractors & Other Agencies,Purchased Care Services,23.03.2016,1900988470,67.47,AFFIRMATIVE CARE LTD,11007188,50601,121115
Somerset County Council,Adult Social Care,New Codes,Tton LT Phys Support - FNC,Third Party Payments,Private Contractors & Other Agencies,Purchased Care Services,23.03.2016,1900988470,32.00,AFFIRMATIVE CARE LTD,11007188,50601,126116
Somerset County Council,Adult Social Care,New Codes,Tton LT Phys Support - FNC,Third Party Payments,Private Contractors & Other Agencies,Purchased Care Services,23.03.2016,1900988470,-64.00,AFFIRMATIVE CARE LTD,11007188,50601,126116
Somerset County Council,Adult Social Care,New Codes,Tton LT Phys Support - Nurs Spot,Third Party Payments,Private Contractors & Other Agencies,Purchased Care Services,23.03.2016,1900988470,-112.57,AFFIRMATIVE CARE LTD,11007188,50601,121116
Somerset County Council,Adult Social Care,New Codes,Tton LT Phys Support - FNC,Third Party Payments,Private Contractors & Other Agencies,Purchased Care Services,23.03.2016,1900988470,-128.00,AFFIRMATIVE CARE LTD,11007188,50601,126116
Somerset County Council,Adult Social Care,New Codes,Tton LT Phys Support - Nurs Spot,Third Party Payments,Private Contractors & Other Agencies,Purchased Care Services,23.03.2016,1900988470,-10581.71,AFFIRMATIVE CARE LTD,11007188,50601,121116
Somerset County Council,Adult Social Care,New Codes,Tton LT Phys Support - Nurs Spot,Third Party Payments,Private Contractors & Other Agencies,Purchased Care Services,03.03.2016,1900977420,5937.74,AFFIRMATIVE CARE LTD,11007188,50601,121116
Somerset County Council,Adult Social Care,New Codes,Tton LT Phys Support - DPA Nursing,Third Party Payments,Private Contractors & Other Agencies,Purchased Care Services,03.03.2016,1900977420,2952.00,AFFIRMATIVE CARE LTD,11007188,50601,129116
Somerset County Council,Adult Social Care,New Codes,Tton LT Phys Support - FNC,Third Party Payments,Private Contractors & Other Agencies,Purchased Care Services,23.03.2016,1900988470,112.00,AFFIRMATIVE CARE LTD,11007188,50601,126116
Somerset County Council,Adult Social Care,New Codes,Tton LT Phys Support - FNC,Third Party Payments,Private Contractors & Other Agencies,Purchased Care Services,23.03.2016,1900988470,112.00,AFFIRMATIVE CARE LTD,11007188,50601,126116
Somerset County Council,Adult Social Care,New Codes,Tton LT Phys Support - FNC,Third Party Payments,Private Contractors & Other Agencies,Purchased Care Services,23.03.2016,1900988470,112.00,AFFIRMATIVE CARE LTD,11007188,50601,126116
Somerset County Council,Adult Social Care,New Codes,Tton LT Phys Support - FNC,Third Party Payments,Private Contractors & Other Agencies,Purchased Care Services,23.03.2016,1900988470,112.00,AFFIRMATIVE CARE LTD,11007188,50601,126116
Somerset County Council,Adult Social Care,New Codes,Tton LT Phys Support - FNC,Third Party Payments,Private Contractors & Other Agencies,Purchased Care Services,23.03.2016,1900988470,112.00,AFFIRMATIVE CARE LTD,11007188,50601,126116
Somerset County Council,Adult Social Care,New Codes,Tton LT Phys Support - FNC,Third Party Payments,Private Contractors & Other Agencies,Purchased Care Services,23.03.2016,1900988470,112.00,AFFIRMATIVE CARE LTD,11007188,50601,126116
Somerset County Council,Adult Social Care,New Codes,Tton LT Phys Support - FNC,Third Party Payments,Private Contractors & Other Agencies,Purchased Care Services,23.03.2016,1900988470,112.00,AFFIRMATIVE CARE LTD,11007188,50601,126116
Somerset County Council,Adult Social Care,New Codes,Tton LT Phys Support - FNC,Third Party Payments,Private Contractors & Other Agencies,Purchased Care Services,23.03.2016,1900988470,112.00,AFFIRMATIVE CARE LTD,11007188,50601,126116
Somerset County Council,Adult Social Care,New Codes,Tton LT Phys Support - FNC,Third Party Payments,Private Contractors & Other Agencies,Purchased Care Services,23.03.2016,1900988470,112.00,AFFIRMATIVE CARE LTD,11007188,50601,126116
Somerset County Council,Adult Social Care,New Codes,Tton LT Phys Support - FNC,Third Party Payments,Private Contractors & Other Agencies,Purchased Care Services,23.03.2016,1900988470,112.00,AFFIRMATIVE CARE LTD,11007188,50601,126116
Somerset County Council,Adult Social Care,New Codes,Tton LT Phys Support - FNC,Third Party Payments,Private Contractors & Other Agencies,Purchased Care Services,23.03.2016,1900988470,112.00,AFFIRMATIVE CARE LTD,11007188,50601,126116
Somerset County Council,Adult Social Care,New Codes,Tton LT Phys Support - FNC,Third Party Payments,Private Contractors & Other Agencies,Purchased Care Services,23.03.2016,1900988470,112.00,AFFIRMATIVE CARE LTD,11007188,50601,126116
Somerset County Council,Adult Social Care,New Codes,Tton LT Phys Support - FNC,Third Party Payments,Private Contractors & Other Agencies,Purchased Care Services,23.03.2016,1900988470,112.00,AFFIRMATIVE CARE LTD,11007188,50601,126116
Somerset County Council,Adult Social Care,New Codes,Tton LT Phys Support - FNC,Third Party Payments,Private Contractors & Other Agencies,Purchased Care Services,23.03.2016,1900988470,112.00,AFFIRMATIVE CARE LTD,11007188,50601,126116
Somerset County Council,Adult Social Care,New Codes,Tton LT Phys Support - FNC,Third Party Payments,Private Contractors & Other Agencies,Purchased Care Services,23.03.2016,1900988470,112.00,AFFIRMATIVE CARE LTD,11007188,50601,126116
Somerset County Council,Adult Social Care,New Codes,Tton LT Phys Support - FNC,Third Party Payments,Private Contractors & Other Agencies,Purchased Care Services,23.03.2016,1900988470,112.00,AFFIRMATIVE CARE LTD,11007188,50601,126116
Somerset County Council,Adult Social Care,New Codes,Tton LT Phys Support - FNC,Third Party Payments,Private Contractors & Other Agencies,Purchased Care Services,23.03.2016,1900988470,112.00,AFFIRMATIVE CARE LTD,11007188,50601,126116
Somerset County Council,Adult Social Care,New Codes,Tton LT Phys Support - FNC,Third Party Payments,Private Contractors & Other Agencies,Purchased Care Services,23.03.2016,1900988470,112.00,AFFIRMATIVE CARE LTD,11007188,50601,126116
Somerset County Council,Adult Social Care,New Codes,Tton LT Phys Support - FNC,Third Party Payments,Private Contractors & Other Agencies,Purchased Care Services,23.03.2016,1900988470,112.00,AFFIRMATIVE CARE LTD,11007188,50601,126116
Somerset County Council,Adult Social Care,New Codes,Tton LT Phys Support - FNC,Third Party Payments,Private Contractors & Other Agencies,Purchased Care Services,23.03.2016,1900988470,112.00,AFFIRMATIVE CARE LTD,11007188,50601,126116
Somerset County Council,Adult Social Care,New Codes,Tton LT Phys Support - FNC,Third Party Payments,Private Contractors & Other Agencies,Purchased Care Services,23.03.2016,1900988470,112.00,AFFIRMATIVE CARE LTD,11007188,50601,126116
Somerset County Council,Adult Social Care,New Codes,Tton LT Phys Support - FNC,Third Party Payments,Private Contractors & Other Agencies,Purchased Care Services,03.03.2016,1900977420,-192.00,AFFIRMATIVE CARE LTD,11007188,50601,126116
Somerset County Council,Adult Social Care,New Codes,Tton LT Phys Support - FNC,Third Party Payments,Private Contractors & Other Agencies,Purchased Care Services,03.03.2016,1900977420,-176.00,AFFIRMATIVE CARE LTD,11007188,50601,126116
Somerset County Council,Adult Social Care,New Codes,Tton LT Phys Support - FNC,Third Party Payments,Private Contractors & Other Agencies,Purchased Care Services,03.03.2016,1900977420,-16.00,AFFIRMATIVE CARE LTD,11007188,50601,126116
Somerset County Council,Adult Social Care,New Codes,Tton LT Phys Support - FNC,Third Party Payments,Private Contractors & Other Agencies,Purchased Care Services,03.03.2016,1900977420,176.00,AFFIRMATIVE CARE LTD,11007188,50601,126116
Somerset County Council,Adult Social Care,New Codes,Tton LT Phys Support - FNC,Third Party Payments,Private Contractors & Other Agencies,Purchased Care Services,03.03.2016,1900977420,448.00,AFFIRMATIVE CARE LTD,11007188,50601,126116
Somerset County Council,Adult Social Care,New Codes,Tton LT Phys Support - FNC,Third Party Payments,Private Contractors & Other Agencies,Purchased Care Services,03.03.2016,1900977420,448.00,AFFIRMATIVE CARE LTD,11007188,50601,126116
Somerset County Council,Adult Social Care,New Codes,Tton LT Phys Support - FNC,Third Party Payments,Private Contractors & Other Agencies,Purchased Care Services,03.03.2016,1900977420,448.00,AFFIRMATIVE CARE LTD,11007188,50601,126116
Somerset County Council,Adult Social Care,New Codes,Tton LT Phys Support - FNC,Third Party Payments,Private Contractors & Other Agencies,Purchased Care Services,03.03.2016,1900977420,448.00,AFFIRMATIVE CARE LTD,11007188,50601,126116
Somerset County Council,Adult Social Care,New Codes,Tton LT Phys Support - FNC,Third Party Payments,Private Contractors & Other Agencies,Purchased Care Services,03.03.2016,1900977420,448.00,AFFIRMATIVE CARE LTD,11007188,50601,126116
Somerset County Council,Adult Social Care,New Codes,Tton LT Phys Support - FNC,Third Party Payments,Private Contractors & Other Agencies,Purchased Care Services,03.03.2016,1900977420,448.00,AFFIRMATIVE CARE LTD,11007188,50601,126116
Somerset County Council,Adult Social Care,New Codes,Tton LT Phys Support - FNC,Third Party Payments,Private Contractors & Other Agencies,Purchased Care Services,03.03.2016,1900977420,448.00,AFFIRMATIVE CARE LTD,11007188,50601,126116
Somerset County Council,Adult Social Care,New Codes,Tton LT Phys Support - FNC,Third Party Payments,Private Contractors & Other Agencies,Purchased Care Services,03.03.2016,1900977420,448.00,AFFIRMATIVE CARE LTD,11007188,50601,126116
Somerset County Council,Adult Social Care,New Codes,Tton LT Phys Support - FNC,Third Party Payments,Private Contractors & Other Agencies,Purchased Care Services,03.03.2016,1900977420,448.00,AFFIRMATIVE CARE LTD,11007188,50601,126116
Somerset County Council,Adult Social Care,New Codes,Tton LT Phys Support - FNC,Third Party Payments,Private Contractors & Other Agencies,Purchased Care Services,03.03.2016,1900977420,448.00,AFFIRMATIVE CARE LTD,11007188,50601,126116
Somerset County Council,Adult Social Care,New Codes,Tton LT Phys Support - FNC,Third Party Payments,Private Contractors & Other Agencies,Purchased Care Services,03.03.2016,1900977420,448.00,AFFIRMATIVE CARE LTD,11007188,50601,126116
Somerset County Council,Adult Social Care,New Codes,Tton LT Phys Support - FNC,Third Party Payments,Private Contractors & Other Agencies,Purchased Care Services,03.03.2016,1900977420,448.00,AFFIRMATIVE CARE LTD,11007188,50601,126116
Somerset County Council,Adult Social Care,New Codes,Tton LT Phys Support - FNC,Third Party Payments,Private Contractors & Other Agencies,Purchased Care Services,03.03.2016,1900977420,448.00,AFFIRMATIVE CARE LTD,11007188,50601,126116
Somerset County Council,Adult Social Care,New Codes,Tton LT Phys Support - FNC,Third Party Payments,Private Contractors & Other Agencies,Purchased Care Services,03.03.2016,1900977420,448.00,AFFIRMATIVE CARE LTD,11007188,50601,126116
Somerset County Council,Adult Social Care,New Codes,Tton LT Phys Support - FNC,Third Party Payments,Private Contractors & Other Agencies,Purchased Care Services,03.03.2016,1900977420,448.00,AFFIRMATIVE CARE LTD,11007188,50601,126116
Somerset County Council,Adult Social Care,New Codes,Tton LT Phys Support - FNC,Third Party Payments,Private Contractors & Other Agencies,Purchased Care Services,03.03.2016,1900977420,448.00,AFFIRMATIVE CARE LTD,11007188,50601,126116
Somerset County Council,Adult Social Care,New Codes,Tton LT Phys Support - FNC,Third Party Payments,Private Contractors & Other Agencies,Purchased Care Services,03.03.2016,1900977420,448.00,AFFIRMATIVE CARE LTD,11007188,50601,126116
Somerset County Council,Adult Social Care,New Codes,Tton LT Phys Support - FNC,Third Party Payments,Private Contractors & Other Agencies,Purchased Care Services,03.03.2016,1900977420,448.00,AFFIRMATIVE CARE LTD,11007188,50601,126116
Somerset County Council,Adult Social Care,New Codes,Tton LT Phys Support - FNC,Third Party Payments,Private Contractors & Other Agencies,Purchased Care Services,03.03.2016,1900977420,448.00,AFFIRMATIVE CARE LTD,11007188,50601,126116
Somerset County Council,Adult Social Care,New Codes,Tton LT Phys Support - FNC,Third Party Payments,Private Contractors & Other Agencies,Purchased Care Services,03.03.2016,1900977420,448.00,AFFIRMATIVE CARE LTD,11007188,50601,126116
Somerset County Council,Adult Social Care,New Codes,Tton LT Phys Support - FNC,Third Party Payments,Private Contractors & Other Agencies,Purchased Care Services,03.03.2016,1900977420,448.00,AFFIRMATIVE CARE LTD,11007188,50601,126116
Somerset County Council,Adult Social Care,New Codes,Tton LT Phys Support - FNC,Third Party Payments,Private Contractors & Other Agencies,Purchased Care Services,03.03.2016,1900977420,448.00,AFFIRMATIVE CARE LTD,11007188,50601,126116
Somerset County Council,Adult Social Care,New Codes,Tton LT Phys Support - FNC,Third Party Payments,Private Contractors & Other Agencies,Purchased Care Services,03.03.2016,1900977420,448.00,AFFIRMATIVE CARE LTD,11007188,50601,126116
Somerset County Council,Adult Social Care,New Codes,Tton LT Phys Support - FNC,Third Party Payments,Private Contractors & Other Agencies,Purchased Care Services,03.03.2016,1900977420,448.00,AFFIRMATIVE CARE LTD,11007188,50601,126116
Somerset County Council,Adult Social Care,New Codes,Tton LT Phys Support - FNC,Third Party Payments,Private Contractors & Other Agencies,Purchased Care Services,03.03.2016,1900977420,448.00,AFFIRMATIVE CARE LTD,11007188,50601,126116
Somerset County Council,Adult Social Care,New Codes,Tton LT Phys Support - FNC,Third Party Payments,Private Contractors & Other Agencies,Purchased Care Services,03.03.2016,1900977420,448.00,AFFIRMATIVE CARE LTD,11007188,50601,126116
Somerset County Council,Adult Social Care,New Codes,Tton LT Phys Support - FNC,Third Party Payments,Private Contractors & Other Agencies,Purchased Care Services,03.03.2016,1900977420,448.00,AFFIRMATIVE CARE LTD,11007188,50601,126116
Somerset County Council,Adult Social Care,New Codes,Tton LT Phys Support - FNC,Third Party Payments,Private Contractors & Other Agencies,Purchased Care Services,03.03.2016,1900977420,448.00,AFFIRMATIVE CARE LTD,11007188,50601,126116
Somerset County Council,Adult Social Care,New Codes,Tton LT Phys Support - FNC,Third Party Payments,Private Contractors & Other Agencies,Purchased Care Services,03.03.2016,1900977420,672.00,AFFIRMATIVE CARE LTD,11007188,50601,126116
Somerset County Council,Adult Social Care,New Codes,Tton LT Phys Support - Nurs Spot,Third Party Payments,Private Contractors & Other Agencies,Purchased Care Services,03.03.2016,1900977420,1889.28,AFFIRMATIVE CARE LTD,11007188,50601,121116
Somerset County Council,Adult Social Care,New Codes,Tton LT Phys Support - Nurs Spot,Third Party Payments,Private Contractors & Other Agencies,Purchased Care Services,03.03.2016,1900977420,1889.28,AFFIRMATIVE CARE LTD,11007188,50601,121116
Somerset County Council,Adult Social Care,New Codes,Tton LT Phys Support - Nurs Spot,Third Party Payments,Private Contractors & Other Agencies,Purchased Care Services,03.03.2016,1900977420,1889.28,AFFIRMATIVE CARE LTD,11007188,50601,121116
Somerset County Council,Adult Social Care,New Codes,Tton LT Phys Support - Nurs Spot,Third Party Payments,Private Contractors & Other Agencies,Purchased Care Services,03.03.2016,1900977420,1889.28,AFFIRMATIVE CARE LTD,11007188,50601,121116
Somerset County Council,Adult Social Care,New Codes,Tton LT Phys Support - Nurs Spot,Third Party Payments,Private Contractors & Other Agencies,Purchased Care Services,03.03.2016,1900977420,1889.28,AFFIRMATIVE CARE LTD,11007188,50601,121116
Somerset County Council,Adult Social Care,New Codes,SSom LT Phys Support - Nurs Spot,Third Party Payments,Private Contractors & Other Agencies,Purchased Care Services,03.03.2016,1900977420,1889.28,AFFIRMATIVE CARE LTD,11007188,50601,121115
Somerset County Council,Adult Social Care,New Codes,Tton LT Phys Support - Nurs Spot,Third Party Payments,Private Contractors & Other Agencies,Purchased Care Services,03.03.2016,1900977420,1889.28,AFFIRMATIVE CARE LTD,11007188,50601,121116
Somerset County Council,Adult Social Care,New Codes,Tton LT Phys Support - Nurs Spot,Third Party Payments,Private Contractors & Other Agencies,Purchased Care Services,03.03.2016,1900977420,2552.00,AFFIRMATIVE CARE LTD,11007188,50601,121116
Somerset County Council,Adult Social Care,New Codes,Tton LT Phys Support - FNC,Third Party Payments,Private Contractors & Other Agencies,Purchased Care Services,23.03.2016,1900988470,224.00,AFFIRMATIVE CARE LTD,11007188,50601,126116
Somerset County Council,Adult Social Care,New Codes,Tton LT Phys Support - FNC,Third Party Payments,Private Contractors & Other Agencies,Purchased Care Services,23.03.2016,1900988470,224.00,AFFIRMATIVE CARE LTD,11007188,50601,126116
Somerset County Council,Adult Social Care,New Codes,Tton LT Phys Support - FNC,Third Party Payments,Private Contractors & Other Agencies,Purchased Care Services,23.03.2016,1900988470,224.00,AFFIRMATIVE CARE LTD,11007188,50601,126116
Somerset County Council,Adult Social Care,New Codes,Tton LT Phys Support - FNC,Third Party Payments,Private Contractors & Other Agencies,Purchased Care Services,23.03.2016,1900988470,224.00,AFFIRMATIVE CARE LTD,11007188,50601,126116
Somerset County Council,Adult Social Care,New Codes,Tton LT Phys Support - FNC,Third Party Payments,Private Contractors & Other Agencies,Purchased Care Services,23.03.2016,1900988470,224.00,AFFIRMATIVE CARE LTD,11007188,50601,126116
Somerset County Council,Adult Social Care,New Codes,Tton LT Phys Support - FNC,Third Party Payments,Private Contractors & Other Agencies,Purchased Care Services,23.03.2016,1900988470,224.00,AFFIRMATIVE CARE LTD,11007188,50601,126116
Somerset County Council,Adult Social Care,New Codes,Tton LT Phys Support - FNC,Third Party Payments,Private Contractors & Other Agencies,Purchased Care Services,23.03.2016,1900988470,224.00,AFFIRMATIVE CARE LTD,11007188,50601,126116
Somerset County Council,Adult Social Care,New Codes,Tton LT Phys Support - FNC,Third Party Payments,Private Contractors & Other Agencies,Purchased Care Services,23.03.2016,1900988470,224.00,AFFIRMATIVE CARE LTD,11007188,50601,126116
Somerset County Council,Adult Social Care,New Codes,Tton LT Phys Support - FNC,Third Party Payments,Private Contractors & Other Agencies,Purchased Care Services,23.03.2016,1900988470,224.00,AFFIRMATIVE CARE LTD,11007188,50601,126116
Somerset County Council,Adult Social Care,New Codes,Tton LT Phys Support - FNC,Third Party Payments,Private Contractors & Other Agencies,Purchased Care Services,23.03.2016,1900988470,224.00,AFFIRMATIVE CARE LTD,11007188,50601,126116
Somerset County Council,Adult Social Care,New Codes,Tton LT Phys Support - FNC,Third Party Payments,Private Contractors & Other Agencies,Purchased Care Services,23.03.2016,1900988470,224.00,AFFIRMATIVE CARE LTD,11007188,50601,126116
Somerset County Council,Adult Social Care,New Codes,Tton LT Phys Support - FNC,Third Party Payments,Private Contractors & Other Agencies,Purchased Care Services,23.03.2016,1900988470,224.00,AFFIRMATIVE CARE LTD,11007188,50601,126116
Somerset County Council,Adult Social Care,New Codes,Tton LT Phys Support - Nurs Spot,Third Party Payments,Private Contractors & Other Agencies,Purchased Care Services,23.03.2016,1900988470,472.32,AFFIRMATIVE CARE LTD,11007188,50601,121116
Somerset County Council,Adult Social Care,New Codes,Tton LT Phys Support - Nurs Spot,Third Party Payments,Private Contractors & Other Agencies,Purchased Care Services,23.03.2016,1900988470,472.32,AFFIRMATIVE CARE LTD,11007188,50601,121116
Somerset County Council,Adult Social Care,New Codes,Tton ST Phys Support - Admission Avoid,Third Party Payments,Private Contractors & Other Agencies,Purchased Care Services,23.03.2016,1900988470,270.58,AFFIRMATIVE CARE LTD,11007188,50601,123916
Somerset County Council,Adult Social Care,New Codes,Tton LT Phys Support - Nurs Spot,Third Party Payments,Private Contractors & Other Agencies,Purchased Care Services,23.03.2016,1900988470,472.32,AFFIRMATIVE CARE LTD,11007188,50601,121116
Somerset County Council,Adult Social Care,New Codes,Tton LT Phys Support - Nurs Spot,Third Party Payments,Private Contractors & Other Agencies,Purchased Care Services,23.03.2016,1900988470,472.32,AFFIRMATIVE CARE LTD,11007188,50601,121116
Somerset County Council,Adult Social Care,New Codes,Tton LT Phys Support - Nurs Spot,Third Party Payments,Private Contractors & Other Agencies,Purchased Care Services,23.03.2016,1900988470,472.32,AFFIRMATIVE CARE LTD,11007188,50601,121116
Somerset County Council,Adult Social Care,New Codes,Tton LT Phys Support - Nurs Spot,Third Party Payments,Private Contractors & Other Agencies,Purchased Care Services,23.03.2016,1900988470,472.32,AFFIRMATIVE CARE LTD,11007188,50601,121116
Somerset County Council,Adult Social Care,New Codes,SSom LT Phys Support - Nurs Spot,Third Party Payments,Private Contractors & Other Agencies,Purchased Care Services,23.03.2016,1900988470,472.32,AFFIRMATIVE CARE LTD,11007188,50601,121115
Somerset County Council,Adult Social Care,New Codes,SSom LT Phys Support - Nurs Spot,Third Party Payments,Private Contractors & Other Agencies,Purchased Care Services,23.03.2016,1900988470,472.32,AFFIRMATIVE CARE LTD,11007188,50601,121115
Somerset County Council,Adult Social Care,New Codes,Tton LT Phys Support - Nurs Spot,Third Party Payments,Private Contractors & Other Agencies,Purchased Care Services,23.03.2016,1900988470,472.32,AFFIRMATIVE CARE LTD,11007188,50601,121116
Somerset County Council,Adult Social Care,New Codes,Tton LT Phys Support - Nurs Spot,Third Party Payments,Private Contractors & Other Agencies,Purchased Care Services,23.03.2016,1900988470,472.32,AFFIRMATIVE CARE LTD,11007188,50601,121116
Somerset County Council,Adult Social Care,New Codes,Tton LT Phys Support - Nurs Spot,Third Party Payments,Private Contractors & Other Agencies,Purchased Care Services,23.03.2016,1900988470,944.64,AFFIRMATIVE CARE LTD,11007188,50601,121116
Somerset County Council,Adult Social Care,New Codes,Tton ST Phys Support - Admission Avoid,Third Party Payments,Private Contractors & Other Agencies,Purchased Care Services,23.03.2016,1900988470,404.85,AFFIRMATIVE CARE LTD,11007188,50601,123916
Somerset County Council,Adult Social Care,New Codes,Tton LT Phys Support - Nurs Spot,Third Party Payments,Private Contractors & Other Agencies,Purchased Care Services,23.03.2016,1900988470,638.00,AFFIRMATIVE CARE LTD,11007188,50601,121116
Somerset County Council,Adult Social Care,New Codes,Tton LT Phys Support - Nurs Spot,Third Party Payments,Private Contractors & Other Agencies,Purchased Care Services,23.03.2016,1900988470,638.00,AFFIRMATIVE CARE LTD,11007188,50601,121116
Somerset County Council,Adult Social Care,New Codes,Tton LT Phys Support - Nurs Spot,Third Party Payments,Private Contractors & Other Agencies,Purchased Care Services,23.03.2016,1900988470,944.64,AFFIRMATIVE CARE LTD,11007188,50601,121116
Somerset County Council,Adult Social Care,New Codes,Tton LT Phys Support - DPA Nursing,Third Party Payments,Private Contractors & Other Agencies,Purchased Care Services,23.03.2016,1900988470,738.00,AFFIRMATIVE CARE LTD,11007188,50601,129116
Somerset County Council,Adult Social Care,New Codes,Tton LT Phys Support - DPA Nursing,Third Party Payments,Private Contractors & Other Agencies,Purchased Care Services,23.03.2016,1900988470,738.00,AFFIRMATIVE CARE LTD,11007188,50601,129116
Somerset County Council,Adult Social Care,New Codes,Tton LT Phys Support - Nurs Spot,Third Party Payments,Private Contractors & Other Agencies,Purchased Care Services,23.03.2016,1900988470,944.64,AFFIRMATIVE CARE LTD,11007188,50601,121116
Somerset County Council,Adult Social Care,New Codes,Tton LT Phys Support - Nurs Spot,Third Party Payments,Private Contractors & Other Agencies,Purchased Care Services,23.03.2016,1900988470,944.64,AFFIRMATIVE CARE LTD,11007188,50601,121116
Somerset County Council,Adult Social Care,New Codes,Tton LT Phys Support - Nurs Spot,Third Party Payments,Private Contractors & Other Agencies,Purchased Care Services,23.03.2016,1900988470,788.00,AFFIRMATIVE CARE LTD,11007188,50601,121116
Somerset County Council,Adult Social Care,New Codes,Tton LT Phys Support - Nurs Spot,Third Party Payments,Private Contractors & Other Agencies,Purchased Care Services,23.03.2016,1900988470,944.64,AFFIRMATIVE CARE LTD,11007188,50601,121116
Somerset County Council,Adult Social Care,New Codes,Tton LT Phys Support - Nurs Spot,Third Party Payments,Private Contractors & Other Agencies,Purchased Care Services,23.03.2016,1900988470,1276.00,AFFIRMATIVE CARE LTD,11007188,50601,121116
Somerset County Council,Adult Social Care,New Codes,Tton ST Phys Support - Admission Avoid,Third Party Payments,Private Contractors & Other Agencies,Purchased Care Services,23.03.2016,1900988470,900.57,AFFIRMATIVE CARE LTD,11007188,50601,123916
Somerset County Council,Adult Social Care,New Codes,Tton LT Phys Support - Nurs Spot,Third Party Payments,Private Contractors & Other Agencies,Purchased Care Services,23.03.2016,1900988470,1276.00,AFFIRMATIVE CARE LTD,11007188,50601,121116
Somerset County Council,Adult Social Care,New Codes,Tton LT Phys Support - DPA Nursing,Third Party Payments,Private Contractors & Other Agencies,Purchased Care Services,23.03.2016,1900988470,1476.00,AFFIRMATIVE CARE LTD,11007188,50601,129116
Somerset County Council,Adult Social Care,New Codes,Tton LT Phys Support - Nurs Spot,Third Party Payments,Private Contractors & Other Agencies,Purchased Care Services,23.03.2016,1900988470,5231.27,AFFIRMATIVE CARE LTD,11007188,50601,121116
Somerset County Council,Adult Social Care,New Codes,Tton LT Phys Support - Nurs Spot,Third Party Payments,Private Contractors & Other Agencies,Purchased Care Services,23.03.2016,1900988470,8567.43,AFFIRMATIVE CARE LTD,11007188,50601,121116
Somerset County Council,Adult Social Care,New Codes,Tton LT Phys Support - Nurs Block,Third Party Payments,Private Contractors & Other Agencies,Purchased Care Services,23.03.2016,1900988488,7874.56,AFFIRMATIVE CARE LTD,11007188,50601,120116
Somerset County Council,Adult Social Care,New Codes,Tton LT Phys Support - FNC,Third Party Payments,Private Contractors & Other Agencies,Purchased Care Services,23.03.2016,1900988470,112.00,AFFIRMATIVE CARE LTD,11007188,50601,126116
Somerset County Council,Adult Social Care,New Codes,Tton LT Phys Support - FNC,Third Party Payments,Private Contractors & Other Agencies,Purchased Care Services,23.03.2016,1900988470,112.00,AFFIRMATIVE CARE LTD,11007188,50601,126116
Somerset County Council,Adult Social Care,New Codes,Tton LT Phys Support - FNC,Third Party Payments,Private Contractors & Other Agencies,Purchased Care Services,23.03.2016,1900988470,112.00,AFFIRMATIVE CARE LTD,11007188,50601,126116
Somerset County Council,Adult Social Care,New Codes,Tton LT Phys Support - FNC,Third Party Payments,Private Contractors & Other Agencies,Purchased Care Services,23.03.2016,1900988470,112.00,AFFIRMATIVE CARE LTD,11007188,50601,126116
Somerset County Council,Adult Social Care,New Codes,Tton LT Phys Support - FNC,Third Party Payments,Private Contractors & Other Agencies,Purchased Care Services,23.03.2016,1900988470,112.00,AFFIRMATIVE CARE LTD,11007188,50601,126116
Somerset County Council,Adult Social Care,New Codes,Tton LT Phys Support - FNC,Third Party Payments,Private Contractors & Other Agencies,Purchased Care Services,23.03.2016,1900988470,112.00,AFFIRMATIVE CARE LTD,11007188,50601,126116
Somerset County Council,Adult Social Care,New Codes,Tton LT Phys Support - FNC,Third Party Payments,Private Contractors & Other Agencies,Purchased Care Services,23.03.2016,1900988470,112.00,AFFIRMATIVE CARE LTD,11007188,50601,126116
Somerset County Council,Adult Social Care,New Codes,Tton LT Phys Support - FNC,Third Party Payments,Private Contractors & Other Agencies,Purchased Care Services,23.03.2016,1900988470,112.00,AFFIRMATIVE CARE LTD,11007188,50601,126116
Somerset County Council,Adult Social Care,New Codes,Tton LT Phys Support - FNC,Third Party Payments,Private Contractors & Other Agencies,Purchased Care Services,23.03.2016,1900988470,112.00,AFFIRMATIVE CARE LTD,11007188,50601,126116
Somerset County Council,Adult Social Care,New Codes,Tton LT Phys Support - FNC,Third Party Payments,Private Contractors & Other Agencies,Purchased Care Services,23.03.2016,1900988470,112.00,AFFIRMATIVE CARE LTD,11007188,50601,126116
Somerset County Council,Adult Social Care,New Codes,Tton LT Phys Support - FNC,Third Party Payments,Private Contractors & Other Agencies,Purchased Care Services,23.03.2016,1900988470,112.00,AFFIRMATIVE CARE LTD,11007188,50601,126116
Somerset County Council,Adult Social Care,New Codes,Tton LT Phys Support - FNC,Third Party Payments,Private Contractors & Other Agencies,Purchased Care Services,23.03.2016,1900988470,112.00,AFFIRMATIVE CARE LTD,11007188,50601,126116
Somerset County Council,Adult Social Care,New Codes,Tton LT Phys Support - FNC,Third Party Payments,Private Contractors & Other Agencies,Purchased Care Services,23.03.2016,1900988470,112.00,AFFIRMATIVE CARE LTD,11007188,50601,126116
Somerset County Council,Adult Social Care,New Codes,Tton LT Phys Support - FNC,Third Party Payments,Private Contractors & Other Agencies,Purchased Care Services,23.03.2016,1900988470,112.00,AFFIRMATIVE CARE LTD,11007188,50601,126116
Somerset County Council,Adult Social Care,New Codes,Tton LT Phys Support - FNC,Third Party Payments,Private Contractors & Other Agencies,Purchased Care Services,23.03.2016,1900988470,112.00,AFFIRMATIVE CARE LTD,11007188,50601,126116
Somerset County Council,Adult Social Care,New Codes,Tton LT Phys Support - FNC,Third Party Payments,Private Contractors & Other Agencies,Purchased Care Services,23.03.2016,1900988470,112.00,AFFIRMATIVE CARE LTD,11007188,50601,126116
Somerset County Council,Adult Social Care,New Codes,Tton LT Phys Support - FNC,Third Party Payments,Private Contractors & Other Agencies,Purchased Care Services,23.03.2016,1900988470,112.00,AFFIRMATIVE CARE LTD,11007188,50601,126116
Somerset County Council,Adult Social Care,New Codes,Tton LT Phys Support - FNC,Third Party Payments,Private Contractors & Other Agencies,Purchased Care Services,23.03.2016,1900988470,112.00,AFFIRMATIVE CARE LTD,11007188,50601,126116
Somerset County Council,Adult Social Care,New Codes,Tton LT Phys Support - FNC,Third Party Payments,Private Contractors & Other Agencies,Purchased Care Services,23.03.2016,1900988470,112.00,AFFIRMATIVE CARE LTD,11007188,50601,126116
Somerset County Council,Adult Social Care,New Codes,Tton LT Phys Support - FNC,Third Party Payments,Private Contractors & Other Agencies,Purchased Care Services,23.03.2016,1900988470,112.00,AFFIRMATIVE CARE LTD,11007188,50601,126116
Somerset County Council,Adult Social Care,New Codes,Tton LT Phys Support - FNC,Third Party Payments,Private Contractors & Other Agencies,Purchased Care Services,23.03.2016,1900988470,112.00,AFFIRMATIVE CARE LTD,11007188,50601,126116
Somerset County Council,Adult Social Care,New Codes,Tton LT Phys Support - FNC,Third Party Payments,Private Contractors & Other Agencies,Purchased Care Services,23.03.2016,1900988470,224.00,AFFIRMATIVE CARE LTD,11007188,50601,126116
Somerset County Council,Adult Social Care,New Codes,Tton LT Phys Support - FNC,Third Party Payments,Private Contractors & Other Agencies,Purchased Care Services,23.03.2016,1900988470,224.00,AFFIRMATIVE CARE LTD,11007188,50601,126116
Somerset County Council,Adult Social Care,New Codes,Tton LT Phys Support - FNC,Third Party Payments,Private Contractors & Other Agencies,Purchased Care Services,23.03.2016,1900988470,224.00,AFFIRMATIVE CARE LTD,11007188,50601,126116
Somerset County Council,Adult Social Care,New Codes,Tton LT Phys Support - FNC,Third Party Payments,Private Contractors & Other Agencies,Purchased Care Services,23.03.2016,1900988470,224.00,AFFIRMATIVE CARE LTD,11007188,50601,126116
Somerset County Council,Adult Social Care,New Codes,Tton LT Phys Support - FNC,Third Party Payments,Private Contractors & Other Agencies,Purchased Care Services,23.03.2016,1900988470,224.00,AFFIRMATIVE CARE LTD,11007188,50601,126116
Somerset County Council,Adult Social Care,New Codes,Tton LT Phys Support - FNC,Third Party Payments,Private Contractors & Other Agencies,Purchased Care Services,23.03.2016,1900988470,224.00,AFFIRMATIVE CARE LTD,11007188,50601,126116
Somerset County Council,Adult Social Care,New Codes,Tton LT Phys Support - FNC,Third Party Payments,Private Contractors & Other Agencies,Purchased Care Services,23.03.2016,1900988470,224.00,AFFIRMATIVE CARE LTD,11007188,50601,126116
Somerset County Council,Adult Social Care,New Codes,Tton LT Phys Support - FNC,Third Party Payments,Private Contractors & Other Agencies,Purchased Care Services,23.03.2016,1900988470,224.00,AFFIRMATIVE CARE LTD,11007188,50601,126116
Somerset County Council,Adult Social Care,New Codes,Tton LT Phys Support - FNC,Third Party Payments,Private Contractors & Other Agencies,Purchased Care Services,23.03.2016,1900988470,224.00,AFFIRMATIVE CARE LTD,11007188,50601,126116
Somerset County Council,Adult Social Care,New Codes,Tton LT Phys Support - FNC,Third Party Payments,Private Contractors & Other Agencies,Purchased Care Services,23.03.2016,1900988470,224.00,AFFIRMATIVE CARE LTD,11007188,50601,126116
Somerset County Council,Adult Social Care,New Codes,Tton LT Phys Support - FNC,Third Party Payments,Private Contractors & Other Agencies,Purchased Care Services,23.03.2016,1900988470,224.00,AFFIRMATIVE CARE LTD,11007188,50601,126116
Somerset County Council,Adult Social Care,New Codes,Tton LT Phys Support - FNC,Third Party Payments,Private Contractors & Other Agencies,Purchased Care Services,23.03.2016,1900988470,224.00,AFFIRMATIVE CARE LTD,11007188,50601,126116
Somerset County Council,Adult Social Care,New Codes,Tton LT Phys Support - FNC,Third Party Payments,Private Contractors & Other Agencies,Purchased Care Services,23.03.2016,1900988470,224.00,AFFIRMATIVE CARE LTD,11007188,50601,126116
Somerset County Council,Adult Social Care,New Codes,Tton LT Phys Support - Nurs Spot,Third Party Payments,Private Contractors & Other Agencies,Purchased Care Services,23.03.2016,1900988470,472.32,AFFIRMATIVE CARE LTD,11007188,50601,121116
Somerset County Council,Adult Social Care,New Codes,Tton LT Phys Support - Nurs Spot,Third Party Payments,Private Contractors & Other Agencies,Purchased Care Services,23.03.2016,1900988470,472.32,AFFIRMATIVE CARE LTD,11007188,50601,121116
Somerset County Council,Adult Social Care,New Codes,Tton LT Phys Support - FNC,Third Party Payments,Private Contractors & Other Agencies,Purchased Care Services,23.03.2016,1900988470,128.00,AFFIRMATIVE CARE LTD,11007188,50601,126116
Somerset County Council,Adult Social Care,New Codes,Tton LT Phys Support - FNC,Third Party Payments,Private Contractors & Other Agencies,Purchased Care Services,23.03.2016,1900988470,112.00,AFFIRMATIVE CARE LTD,11007188,50601,126116
Somerset County Council,Adult Social Care,New Codes,Tton LT Phys Support - FNC,Third Party Payments,Private Contractors & Other Agencies,Purchased Care Services,23.03.2016,1900988470,112.00,AFFIRMATIVE CARE LTD,11007188,50601,126116
Somerset County Council,Adult Social Care,New Codes,Tton LT Phys Support - FNC,Third Party Payments,Private Contractors & Other Agencies,Purchased Care Services,23.03.2016,1900988470,112.00,AFFIRMATIVE CARE LTD,11007188,50601,126116
Somerset County Council,Adult Social Care,New Codes,Tton LT Phys Support - FNC,Third Party Payments,Private Contractors & Other Agencies,Purchased Care Services,23.03.2016,1900988470,112.00,AFFIRMATIVE CARE LTD,11007188,50601,126116
Somerset County Council,Adult Social Care,Learning Disabilities,LD-PUR-CH-Care at Home-SDW,Third Party Payments,Private Contractors & Other Agencies,Purchased Services - Pers Care,01.03.2016,5100762444,2108.00,AGENCY ASSISTANCE,11020812,50603,105357
Somerset County Council,Adult Social Care,Learning Disabilities,LD-PUR-CH-Care at Home-SDW,Third Party Payments,Private Contractors & Other Agencies,Purchased Services - Pers Care,01.03.2016,5100762446,2108.00,AGENCY ASSISTANCE,11020812,50603,105357
Somerset County Council,Adult Social Care,Learning Disabilities,LD-PUR-CH-Care at Home-SDW,Third Party Payments,Private Contractors & Other Agencies,Purchased Services - Pers Care,14.03.2016,5100765805,2147.50,AGENCY ASSISTANCE,11020812,50603,105357
Somerset County Council,Adult Social Care,Learning Disabilities,LD-PUR-CH-Care at Home-SDW,Third Party Payments,Private Contractors & Other Agencies,Purchased Services - Pers Care,14.03.2016,5100765806,2108.00,AGENCY ASSISTANCE,11020812,50603,105357
Somerset County Council,Adult Social Care,New Codes,Mdp LT Phys Support - Res Spot,Third Party Payments,Private Contractors & Other Agencies,Purchased Care Services,03.03.2016,1900977465,1904.00,Agincare Homes Holdings,11035757,50601,121213
Somerset County Council,Adult Social Care,New Codes,Mdp LT Phys Support - Res Spot,Third Party Payments,Private Contractors & Other Agencies,Purchased Care Services,23.03.2016,1900988806,1904.00,Agincare Homes Holdings,11035757,50601,121213
Somerset County Council,Adult Social Care,Learning Disabilities,LD-SCC-CT-Induction Training-CTW,Employees,Other Pay Related Costs,Training - Course Fees,18.03.2016,5100769507,550.00,AID TRAINING & OPERATIONS LTD,11011222,19300,102509
Somerset County Council,Adult Social Care,Learning Disabilities,LD-PUR-RS-Comm. Care-STH,Third Party Payments,Private Contractors & Other Agencies,Purchased Care Services,03.03.2016,1900977558,6600.00,ALEXANDRA HOMES (BRISTOL) LTD,11007136,50601,106977
Somerset County Council,Adult Social Care,Learning Disabilities,LD-PUR-RS-Comm. Care-STH,Third Party Payments,Private Contractors & Other Agencies,Purchased Care Services,23.03.2016,1900988362,6600.00,ALEXANDRA HOMES (BRISTOL) LTD,11007136,50601,106977
Somerset County Council,Adult Social Care,New Codes,SSom LT Phys Support - Homecare,Third Party Payments,Private Contractors & Other Agencies,Purchased Services - Pers Care,02.03.2016,5100767722,1411.20,Allied Healthcare Group Ltd,11020984,50603,120515
Somerset County Council,Adult Social Care,New Codes,SSom LT Phys Support - Homecare,Third Party Payments,Private Contractors & Other Agencies,Purchased Services - Pers Care,02.03.2016,5100767721,4233.60,Allied Healthcare Group Ltd,11020984,50603,120515
Somerset County Council,Adult Social Care,New Codes,SSom LT Phys Support - Homecare,Third Party Payments,Private Contractors & Other Agencies,Purchased Services - Pers Care,02.03.2016,5100767663,4374.72,Allied Healthcare Group Ltd,11020984,50603,120515
Somerset County Council,Adult Social Care,New Codes,SSom LT Phys Support - Homecare,Third Party Payments,Private Contractors & Other Agencies,Purchased Services - Pers Care,02.03.2016,5100767720,4233.60,Allied Healthcare Group Ltd,11020984,50603,120515
Somerset County Council,Adult Social Care,New Codes,SSom LT Phys Support - Homecare,Third Party Payments,Private Contractors & Other Agencies,Purchased Services - Pers Care,02.03.2016,5100767719,4374.72,Allied Healthcare Group Ltd,11020984,50603,120515
Somerset County Council,Adult Social Care,New Codes,SSom LT Phys Support - Homecare,Third Party Payments,Private Contractors & Other Agencies,Purchased Services - Pers Care,02.03.2016,5100767717,3951.36,Allied Healthcare Group Ltd,11020984,50603,120515
Somerset County Council,Adult Social Care,New Codes,Sdg LT Phys Support - DPA Nursing,Third Party Payments,Private Contractors & Other Agencies,Purchased Care Services,23.03.2016,1900989195,3340.00,ALMONDSBURY CARE LTD,11007185,50601,129114
Somerset County Council,Adult Social Care,New Codes,Sdg LT Phys Support - Nurs Spot,Third Party Payments,Private Contractors & Other Agencies,Purchased Care Services,23.03.2016,1900989195,1889.28,ALMONDSBURY CARE LTD,11007185,50601,121114
Somerset County Council,Adult Social Care,New Codes,Sdg LT Phys Support - Nurs Spot,Third Party Payments,Private Contractors & Other Agencies,Purchased Care Services,23.03.2016,1900989195,1889.28,ALMONDSBURY CARE LTD,11007185,50601,121114
Somerset County Council,Adult Social Care,New Codes,Sdg LT Phys Support - Nurs Spot,Third Party Payments,Private Contractors & Other Agencies,Purchased Care Services,23.03.2016,1900989195,1889.28,ALMONDSBURY CARE LTD,11007185,50601,121114
Somerset County Council,Adult Social Care,New Codes,Sdg LT Phys Support - Nurs Spot,Third Party Payments,Private Contractors & Other Agencies,Purchased Care Services,23.03.2016,1900989195,1889.28,ALMONDSBURY CARE LTD,11007185,50601,121114
Somerset County Council,Adult Social Care,New Codes,Sdg LT Phys Support - Nurs Spot,Third Party Payments,Private Contractors & Other Agencies,Purchased Care Services,23.03.2016,1900989195,1349.49,ALMONDSBURY CARE LTD,11007185,50601,121114
Somerset County Council,Adult Social Care,New Codes,Sdg ST Phys Support - Respite,Third Party Payments,Private Contractors & Other Agencies,Purchased Care Services,23.03.2016,1900989195,944.64,ALMONDSBURY CARE LTD,11007185,50601,120914
Somerset County Council,Adult Social Care,New Codes,Sdg LT Phys Support - Nurs Spot,Third Party Payments,Private Contractors & Other Agencies,Purchased Care Services,23.03.2016,1900989195,1889.28,ALMONDSBURY CARE LTD,11007185,50601,121114
Somerset County Council,Adult Social Care,New Codes,Sdg LT Phys Support - FNC,Third Party Payments,Private Contractors & Other Agencies,Purchased Care Services,23.03.2016,1900989195,448.00,ALMONDSBURY CARE LTD,11007185,50601,126114
Somerset County Council,Adult Social Care,New Codes,Sdg LT Phys Support - FNC,Third Party Payments,Private Contractors & Other Agencies,Purchased Care Services,23.03.2016,1900989195,448.00,ALMONDSBURY CARE LTD,11007185,50601,126114
Somerset County Council,Adult Social Care,New Codes,Sdg LT Phys Support - FNC,Third Party Payments,Private Contractors & Other Agencies,Purchased Care Services,23.03.2016,1900989195,448.00,ALMONDSBURY CARE LTD,11007185,50601,126114
Somerset County Council,Adult Social Care,New Codes,Sdg LT Phys Support - FNC,Third Party Payments,Private Contractors & Other Agencies,Purchased Care Services,23.03.2016,1900989195,448.00,ALMONDSBURY CARE LTD,11007185,50601,126114
Somerset County Council,Adult Social Care,New Codes,Sdg LT Phys Support - FNC,Third Party Payments,Private Contractors & Other Agencies,Purchased Care Services,23.03.2016,1900989195,448.00,ALMONDSBURY CARE LTD,11007185,50601,126114
Somerset County Council,Adult Social Care,New Codes,Sdg LT Phys Support - FNC,Third Party Payments,Private Contractors & Other Agencies,Purchased Care Services,23.03.2016,1900989195,448.00,ALMONDSBURY CARE LTD,11007185,50601,126114
Somerset County Council,Adult Social Care,New Codes,Sdg LT Phys Support - FNC,Third Party Payments,Private Contractors & Other Agencies,Purchased Care Services,23.03.2016,1900989195,448.00,ALMONDSBURY CARE LTD,11007185,50601,126114
Somerset County Council,Adult Social Care,New Codes,Sdg LT Phys Support - FNC,Third Party Payments,Private Contractors & Other Agencies,Purchased Care Services,23.03.2016,1900989195,448.00,ALMONDSBURY CARE LTD,11007185,50601,126114
Somerset County Council,Adult Social Care,New Codes,Sdg LT Phys Support - FNC,Third Party Payments,Private Contractors & Other Agencies,Purchased Care Services,23.03.2016,1900989195,448.00,ALMONDSBURY CARE LTD,11007185,50601,126114
Somerset County Council,Adult Social Care,New Codes,Sdg LT Phys Support - FNC,Third Party Payments,Private Contractors & Other Agencies,Purchased Care Services,23.03.2016,1900989195,448.00,ALMONDSBURY CARE LTD,11007185,50601,126114
Somerset County Council,Adult Social Care,New Codes,Sdg LT Phys Support - FNC,Third Party Payments,Private Contractors & Other Agencies,Purchased Care Services,23.03.2016,1900989195,448.00,ALMONDSBURY CARE LTD,11007185,50601,126114
Somerset County Council,Adult Social Care,New Codes,Sdg LT Phys Support - FNC,Third Party Payments,Private Contractors & Other Agencies,Purchased Care Services,23.03.2016,1900989195,448.00,ALMONDSBURY CARE LTD,11007185,50601,126114
Somerset County Council,Adult Social Care,New Codes,Sdg LT Phys Support - FNC,Third Party Payments,Private Contractors & Other Agencies,Purchased Care Services,23.03.2016,1900989195,448.00,ALMONDSBURY CARE LTD,11007185,50601,126114
Somerset County Council,Adult Social Care,New Codes,Sdg LT Phys Support - FNC,Third Party Payments,Private Contractors & Other Agencies,Purchased Care Services,23.03.2016,1900989195,448.00,ALMONDSBURY CARE LTD,11007185,50601,126114
Somerset County Council,Adult Social Care,New Codes,Sdg LT Phys Support - FNC,Third Party Payments,Private Contractors & Other Agencies,Purchased Care Services,23.03.2016,1900989195,448.00,ALMONDSBURY CARE LTD,11007185,50601,126114
Somerset County Council,Adult Social Care,New Codes,Sdg LT Phys Support - FNC,Third Party Payments,Private Contractors & Other Agencies,Purchased Care Services,23.03.2016,1900989195,448.00,ALMONDSBURY CARE LTD,11007185,50601,126114
Somerset County Council,Adult Social Care,New Codes,Sdg LT Phys Support - FNC,Third Party Payments,Private Contractors & Other Agencies,Purchased Care Services,23.03.2016,1900989195,320.00,ALMONDSBURY CARE LTD,11007185,50601,126114
Somerset County Council,Adult Social Care,New Codes,Sdg LT Phys Support - Nurs Spot,Third Party Payments,Private Contractors & Other Agencies,Purchased Care Services,23.03.2016,1900989195,269.90,ALMONDSBURY CARE LTD,11007185,50601,121114
Somerset County Council,Adult Social Care,New Codes,Sdg LT Phys Support - FNC,Third Party Payments,Private Contractors & Other Agencies,Purchased Care Services,23.03.2016,1900989195,224.00,ALMONDSBURY CARE LTD,11007185,50601,126114
Somerset County Council,Adult Social Care,New Codes,Sdg LT Phys Support - FNC,Third Party Payments,Private Contractors & Other Agencies,Purchased Care Services,23.03.2016,1900989195,-3040.00,ALMONDSBURY CARE LTD,11007185,50601,126114
Somerset County Council,Adult Social Care,New Codes,Sdg LT Phys Support - DPA Nursing,Third Party Payments,Private Contractors & Other Agencies,Purchased Care Services,23.03.2016,1900989195,3340.00,ALMONDSBURY CARE LTD,11007185,50601,129114
Somerset County Council,Adult Social Care,New Codes,Sdg LT Phys Support - DPA Nursing,Third Party Payments,Private Contractors & Other Agencies,Purchased Care Services,03.03.2016,1900977634,3340.00,ALMONDSBURY CARE LTD,11007185,50601,129114
Somerset County Council,Adult Social Care,New Codes,Sdg LT Phys Support - DPA Nursing,Third Party Payments,Private Contractors & Other Agencies,Purchased Care Services,03.03.2016,1900977634,3340.00,ALMONDSBURY CARE LTD,11007185,50601,129114
Somerset County Council,Adult Social Care,New Codes,Sdg LT Phys Support - Nurs Spot,Third Party Payments,Private Contractors & Other Agencies,Purchased Care Services,03.03.2016,1900977634,1889.28,ALMONDSBURY CARE LTD,11007185,50601,121114
Somerset County Council,Adult Social Care,New Codes,Sdg LT Phys Support - Nurs Spot,Third Party Payments,Private Contractors & Other Agencies,Purchased Care Services,03.03.2016,1900977634,1889.28,ALMONDSBURY CARE LTD,11007185,50601,121114
Somerset County Council,Adult Social Care,New Codes,Sdg LT Phys Support - Nurs Spot,Third Party Payments,Private Contractors & Other Agencies,Purchased Care Services,03.03.2016,1900977634,1889.28,ALMONDSBURY CARE LTD,11007185,50601,121114
Somerset County Council,Adult Social Care,New Codes,Sdg LT Phys Support - Nurs Spot,Third Party Payments,Private Contractors & Other Agencies,Purchased Care Services,03.03.2016,1900977634,1889.28,ALMONDSBURY CARE LTD,11007185,50601,121114
Somerset County Council,Adult Social Care,New Codes,Sdg LT Phys Support - DPA Nursing,Third Party Payments,Private Contractors & Other Agencies,Purchased Care Services,03.03.2016,1900977634,1670.00,ALMONDSBURY CARE LTD,11007185,50601,129114
Somerset County Council,Adult Social Care,New Codes,Sdg LT Phys Support - FNC,Third Party Payments,Private Contractors & Other Agencies,Purchased Care Services,03.03.2016,1900977634,688.00,ALMONDSBURY CARE LTD,11007185,50601,126114
Somerset County Council,Adult Social Care,New Codes,Sdg LT Phys Support - Nurs Spot,Third Party Payments,Private Contractors & Other Agencies,Purchased Care Services,03.03.2016,1900977634,1889.28,ALMONDSBURY CARE LTD,11007185,50601,121114
Somerset County Council,Adult Social Care,New Codes,Sdg LT Phys Support - FNC,Third Party Payments,Private Contractors & Other Agencies,Purchased Care Services,03.03.2016,1900977634,448.00,ALMONDSBURY CARE LTD,11007185,50601,126114
Somerset County Council,Adult Social Care,New Codes,Sdg LT Phys Support - FNC,Third Party Payments,Private Contractors & Other Agencies,Purchased Care Services,03.03.2016,1900977634,448.00,ALMONDSBURY CARE LTD,11007185,50601,126114
Somerset County Council,Adult Social Care,New Codes,Sdg LT Phys Support - FNC,Third Party Payments,Private Contractors & Other Agencies,Purchased Care Services,03.03.2016,1900977634,448.00,ALMONDSBURY CARE LTD,11007185,50601,126114
Somerset County Council,Adult Social Care,New Codes,Sdg LT Phys Support - FNC,Third Party Payments,Private Contractors & Other Agencies,Purchased Care Services,03.03.2016,1900977634,448.00,ALMONDSBURY CARE LTD,11007185,50601,126114
Somerset County Council,Adult Social Care,New Codes,Sdg LT Phys Support - FNC,Third Party Payments,Private Contractors & Other Agencies,Purchased Care Services,03.03.2016,1900977634,448.00,ALMONDSBURY CARE LTD,11007185,50601,126114
Somerset County Council,Adult Social Care,New Codes,Sdg LT Phys Support - FNC,Third Party Payments,Private Contractors & Other Agencies,Purchased Care Services,03.03.2016,1900977634,448.00,ALMONDSBURY CARE LTD,11007185,50601,126114
Somerset County Council,Adult Social Care,New Codes,Sdg LT Phys Support - FNC,Third Party Payments,Private Contractors & Other Agencies,Purchased Care Services,03.03.2016,1900977634,448.00,ALMONDSBURY CARE LTD,11007185,50601,126114
Somerset County Council,Adult Social Care,New Codes,Sdg LT Phys Support - FNC,Third Party Payments,Private Contractors & Other Agencies,Purchased Care Services,03.03.2016,1900977634,448.00,ALMONDSBURY CARE LTD,11007185,50601,126114
Somerset County Council,Adult Social Care,New Codes,Sdg LT Phys Support - FNC,Third Party Payments,Private Contractors & Other Agencies,Purchased Care Services,03.03.2016,1900977634,448.00,ALMONDSBURY CARE LTD,11007185,50601,126114
Somerset County Council,Adult Social Care,New Codes,Sdg LT Phys Support - FNC,Third Party Payments,Private Contractors & Other Agencies,Purchased Care Services,03.03.2016,1900977634,448.00,ALMONDSBURY CARE LTD,11007185,50601,126114
Somerset County Council,Adult Social Care,New Codes,Sdg LT Phys Support - FNC,Third Party Payments,Private Contractors & Other Agencies,Purchased Care Services,03.03.2016,1900977634,448.00,ALMONDSBURY CARE LTD,11007185,50601,126114
Somerset County Council,Adult Social Care,New Codes,Sdg LT Phys Support - FNC,Third Party Payments,Private Contractors & Other Agencies,Purchased Care Services,03.03.2016,1900977634,448.00,ALMONDSBURY CARE LTD,11007185,50601,126114
Somerset County Council,Adult Social Care,New Codes,Sdg LT Phys Support - FNC,Third Party Payments,Private Contractors & Other Agencies,Purchased Care Services,03.03.2016,1900977634,448.00,ALMONDSBURY CARE LTD,11007185,50601,126114
Somerset County Council,Adult Social Care,New Codes,Sdg LT Phys Support - FNC,Third Party Payments,Private Contractors & Other Agencies,Purchased Care Services,03.03.2016,1900977634,448.00,ALMONDSBURY CARE LTD,11007185,50601,126114
Somerset County Council,Adult Social Care,New Codes,Sdg LT Phys Support - FNC,Third Party Payments,Private Contractors & Other Agencies,Purchased Care Services,03.03.2016,1900977634,448.00,ALMONDSBURY CARE LTD,11007185,50601,126114
Somerset County Council,Adult Social Care,New Codes,Sdg LT Phys Support - FNC,Third Party Payments,Private Contractors & Other Agencies,Purchased Care Services,03.03.2016,1900977634,448.00,ALMONDSBURY CARE LTD,11007185,50601,126114
Somerset County Council,Adult Social Care,New Codes,Sdg LT Phys Support - Nurs Block,Third Party Payments,Private Contractors & Other Agencies,Purchased Care Services,23.03.2016,1900989191,15749.12,ALMONDSBURY CARE LTD,11007185,50601,120114
Somerset County Council,Adult Social Care,New Codes,Sdg LT Phys Support - Nurs Block,Third Party Payments,Private Contractors & Other Agencies,Purchased Care Services,23.03.2016,1900989191,-1484.43,ALMONDSBURY CARE LTD,11007185,50601,120114
Somerset County Council,Adult Social Care,New Codes,Sdg LT Phys Support - Nurs Block,Third Party Payments,Private Contractors & Other Agencies,Purchased Care Services,23.03.2016,1900989191,-1551.91,ALMONDSBURY CARE LTD,11007185,50601,120114
Somerset County Council,Adult Social Care,New Codes,Sdg LT Phys Support - Nurs OPMH Spot,Third Party Payments,Private Contractors & Other Agencies,Purchased Care Services,03.03.2016,1900977652,1889.28,ALMONDSBURY CARE LTD,11013215,50601,123114
Somerset County Council,Adult Social Care,New Codes,Sdg LT Phys Support - Nurs OPMH Spot,Third Party Payments,Private Contractors & Other Agencies,Purchased Care Services,03.03.2016,1900977652,1889.28,ALMONDSBURY CARE LTD,11013215,50601,123114
Somerset County Council,Adult Social Care,New Codes,Sdg LT Phys Support - FNC,Third Party Payments,Private Contractors & Other Agencies,Purchased Care Services,03.03.2016,1900977652,448.00,ALMONDSBURY CARE LTD,11013215,50601,126114
Somerset County Council,Adult Social Care,New Codes,Sdg LT Phys Support - FNC,Third Party Payments,Private Contractors & Other Agencies,Purchased Care Services,03.03.2016,1900977652,448.00,ALMONDSBURY CARE LTD,11013215,50601,126114
Somerset County Council,Adult Social Care,New Codes,Sdg LT Phys Support - Nurs OPMH Spot,Third Party Payments,Private Contractors & Other Agencies,Purchased Care Services,03.03.2016,1900977652,1889.28,ALMONDSBURY CARE LTD,11013215,50601,123114
Somerset County Council,Adult Social Care,New Codes,Sdg LT Phys Support - Nurs OPMH Spot,Third Party Payments,Private Contractors & Other Agencies,Purchased Care Services,03.03.2016,1900977652,1889.28,ALMONDSBURY CARE LTD,11013215,50601,123114
Somerset County Council,Adult Social Care,New Codes,Sdg LT Mem Support - Nurs OPMH Spot,Third Party Payments,Private Contractors & Other Agencies,Purchased Care Services,03.03.2016,1900977652,9029.28,ALMONDSBURY CARE LTD,11013215,50601,123134
Somerset County Council,Adult Social Care,New Codes,Sdg LT Phys Support - FNC,Third Party Payments,Private Contractors & Other Agencies,Purchased Care Services,23.03.2016,1900989122,80.00,ALMONDSBURY CARE LTD,11013215,50601,126114
Somerset County Council,Adult Social Care,New Codes,Sdg LT Phys Support - FNC,Third Party Payments,Private Contractors & Other Agencies,Purchased Care Services,03.03.2016,1900977652,448.00,ALMONDSBURY CARE LTD,11013215,50601,126114
Somerset County Council,Adult Social Care,New Codes,Sdg LT Phys Support - FNC,Third Party Payments,Private Contractors & Other Agencies,Purchased Care Services,03.03.2016,1900977652,448.00,ALMONDSBURY CARE LTD,11013215,50601,126114
Somerset County Council,Adult Social Care,New Codes,Sdg LT Phys Support - FNC,Third Party Payments,Private Contractors & Other Agencies,Purchased Care Services,03.03.2016,1900977652,448.00,ALMONDSBURY CARE LTD,11013215,50601,126114
Somerset County Council,Adult Social Care,New Codes,Sdg LT Mem Support - FNC,Third Party Payments,Private Contractors & Other Agencies,Purchased Care Services,03.03.2016,1900977652,448.00,ALMONDSBURY CARE LTD,11013215,50601,126134
Somerset County Council,Adult Social Care,New Codes,Sdg LT Phys Support - FNC,Third Party Payments,Private Contractors & Other Agencies,Purchased Care Services,03.03.2016,1900977652,448.00,ALMONDSBURY CARE LTD,11013215,50601,126114
Somerset County Council,Adult Social Care,New Codes,Sdg LT Phys Support - FNC,Third Party Payments,Private Contractors & Other Agencies,Purchased Care Services,03.03.2016,1900977652,448.00,ALMONDSBURY CARE LTD,11013215,50601,126114
Somerset County Council,Adult Social Care,New Codes,Sdg LT Phys Support - Nurs OPMH Spot,Third Party Payments,Private Contractors & Other Agencies,Purchased Care Services,03.03.2016,1900977652,3373.71,ALMONDSBURY CARE LTD,11013215,50601,123114
Somerset County Council,Adult Social Care,Older People,ASC SE OP CHC Nursing,Third Party Payments,Private Contractors & Other Agencies,Purchased Care Services,03.03.2016,1900977652,-3373.71,ALMONDSBURY CARE LTD,11013215,50601,108291
Somerset County Council,Adult Social Care,New Codes,Sdg LT Phys Support - FNC,Third Party Payments,Private Contractors & Other Agencies,Purchased Care Services,23.03.2016,1900989122,192.00,ALMONDSBURY CARE LTD,11013215,50601,126114
Somerset County Council,Adult Social Care,New Codes,Sdg LT Phys Support - FNC,Third Party Payments,Private Contractors & Other Agencies,Purchased Care Services,23.03.2016,1900989122,224.00,ALMONDSBURY CARE LTD,11013215,50601,126114
Somerset County Council,Adult Social Care,New Codes,Sdg LT Phys Support - FNC,Third Party Payments,Private Contractors & Other Agencies,Purchased Care Services,23.03.2016,1900989122,448.00,ALMONDSBURY CARE LTD,11013215,50601,126114
Somerset County Council,Adult Social Care,New Codes,Sdg LT Phys Support - FNC,Third Party Payments,Private Contractors & Other Agencies,Purchased Care Services,23.03.2016,1900989122,448.00,ALMONDSBURY CARE LTD,11013215,50601,126114
Somerset County Council,Adult Social Care,New Codes,Sdg LT Mem Support - FNC,Third Party Payments,Private Contractors & Other Agencies,Purchased Care Services,23.03.2016,1900989122,448.00,ALMONDSBURY CARE LTD,11013215,50601,126134
Somerset County Council,Adult Social Care,New Codes,Sdg LT Phys Support - FNC,Third Party Payments,Private Contractors & Other Agencies,Purchased Care Services,23.03.2016,1900989122,448.00,ALMONDSBURY CARE LTD,11013215,50601,126114
Somerset County Council,Adult Social Care,New Codes,Sdg LT Phys Support - FNC,Third Party Payments,Private Contractors & Other Agencies,Purchased Care Services,23.03.2016,1900989122,448.00,ALMONDSBURY CARE LTD,11013215,50601,126114
Somerset County Council,Adult Social Care,New Codes,Sdg LT Phys Support - FNC,Third Party Payments,Private Contractors & Other Agencies,Purchased Care Services,23.03.2016,1900989122,448.00,ALMONDSBURY CARE LTD,11013215,50601,126114
Somerset County Council,Adult Social Care,New Codes,Sdg LT Phys Support - FNC,Third Party Payments,Private Contractors & Other Agencies,Purchased Care Services,23.03.2016,1900989122,448.00,ALMONDSBURY CARE LTD,11013215,50601,126114
Somerset County Council,Adult Social Care,New Codes,Sdg LT Phys Support - FNC,Third Party Payments,Private Contractors & Other Agencies,Purchased Care Services,23.03.2016,1900989122,448.00,ALMONDSBURY CARE LTD,11013215,50601,126114
Somerset County Council,Adult Social Care,New Codes,Sdg LT Phys Support - Nurs OPMH Spot,Third Party Payments,Private Contractors & Other Agencies,Purchased Care Services,23.03.2016,1900989122,1889.28,ALMONDSBURY CARE LTD,11013215,50601,123114
Somerset County Council,Adult Social Care,New Codes,Sdg LT Phys Support - Nurs OPMH Spot,Third Party Payments,Private Contractors & Other Agencies,Purchased Care Services,23.03.2016,1900989122,944.64,ALMONDSBURY CARE LTD,11013215,50601,123114
Somerset County Council,Adult Social Care,New Codes,Sdg LT Phys Support - Nurs OPMH Spot,Third Party Payments,Private Contractors & Other Agencies,Purchased Care Services,23.03.2016,1900989122,1889.28,ALMONDSBURY CARE LTD,11013215,50601,123114
Somerset County Council,Adult Social Care,New Codes,Sdg LT Phys Support - Nurs OPMH Spot,Third Party Payments,Private Contractors & Other Agencies,Purchased Care Services,23.03.2016,1900989122,1889.28,ALMONDSBURY CARE LTD,11013215,50601,123114
Somerset County Council,Adult Social Care,New Codes,Sdg LT Phys Support - Nurs OPMH Spot,Third Party Payments,Private Contractors & Other Agencies,Purchased Care Services,23.03.2016,1900989122,1889.28,ALMONDSBURY CARE LTD,11013215,50601,123114
Somerset County Council,Adult Social Care,New Codes,Sdg LT Mem Support - Nurs OPMH Spot,Third Party Payments,Private Contractors & Other Agencies,Purchased Care Services,23.03.2016,1900989122,9029.28,ALMONDSBURY CARE LTD,11013215,50601,123134
Somerset County Council,Adult Social Care,New Codes,Sdg LT Phys Support - Nurs Block,Third Party Payments,Private Contractors & Other Agencies,Purchased Care Services,23.03.2016,1900989164,11811.84,ALMONDSBURY CARE LTD,11013215,50601,120114
Somerset County Council,Adult Social Care,New Codes,SSom LT Phys Support - FNC,Third Party Payments,Private Contractors & Other Agencies,Purchased Care Services,23.03.2016,1900989247,448.00,Almondsbury Care Ltd,11020775,50601,126115
Somerset County Council,Adult Social Care,New Codes,SSom LT Phys Support - FNC,Third Party Payments,Private Contractors & Other Agencies,Purchased Care Services,23.03.2016,1900989247,448.00,Almondsbury Care Ltd,11020775,50601,126115
Somerset County Council,Adult Social Care,New Codes,SSom LT Phys Support - FNC,Third Party Payments,Private Contractors & Other Agencies,Purchased Care Services,23.03.2016,1900989247,448.00,Almondsbury Care Ltd,11020775,50601,126115
Somerset County Council,Adult Social Care,New Codes,SSom LT Phys Support - FNC,Third Party Payments,Private Contractors & Other Agencies,Purchased Care Services,23.03.2016,1900989247,448.00,Almondsbury Care Ltd,11020775,50601,126115
Somerset County Council,Adult Social Care,New Codes,SSom LT Phys Support - FNC,Third Party Payments,Private Contractors & Other Agencies,Purchased Care Services,23.03.2016,1900989247,448.00,Almondsbury Care Ltd,11020775,50601,126115
Somerset County Council,Adult Social Care,New Codes,SSom LT Phys Support - DPA Nursing,Third Party Payments,Private Contractors & Other Agencies,Purchased Care Services,23.03.2016,1900989247,1889.28,Almondsbury Care Ltd,11020775,50601,129115
Somerset County Council,Adult Social Care,New Codes,SSom LT Phys Support - Nurs Spot,Third Party Payments,Private Contractors & Other Agencies,Purchased Care Services,23.03.2016,1900989247,1889.28,Almondsbury Care Ltd,11020775,50601,121115
Somerset County Council,Adult Social Care,New Codes,SSom LT Phys Support - Nurs Spot,Third Party Payments,Private Contractors & Other Agencies,Purchased Care Services,23.03.2016,1900989247,1889.28,Almondsbury Care Ltd,11020775,50601,121115
Somerset County Council,Adult Social Care,New Codes,SSom LT Phys Support - Nurs Spot,Third Party Payments,Private Contractors & Other Agencies,Purchased Care Services,23.03.2016,1900989247,2747.00,Almondsbury Care Ltd,11020775,50601,121115
Somerset County Council,Adult Social Care,New Codes,SSom LT Phys Support - DPA Nursing,Third Party Payments,Private Contractors & Other Agencies,Purchased Care Services,23.03.2016,1900989247,3340.00,Almondsbury Care Ltd,11020775,50601,129115
Somerset County Council,Adult Social Care,New Codes,SSom LT Phys Support - Nurs Spot,Third Party Payments,Private Contractors & Other Agencies,Purchased Care Services,23.03.2016,1900989247,3200.00,Almondsbury Care Ltd,11020775,50601,121115
Somerset County Council,Adult Social Care,New Codes,SSom LT Phys Support - Nurs Spot,Third Party Payments,Private Contractors & Other Agencies,Purchased Care Services,23.03.2016,1900989247,3000.00,Almondsbury Care Ltd,11020775,50601,121115
Somerset County Council,Adult Social Care,New Codes,SSom LT Phys Support - Nurs Block,Third Party Payments,Private Contractors & Other Agencies,Purchased Care Services,22.03.2016,1900987097,17717.76,Almondsbury Care Ltd,11020775,50601,120115
Somerset County Council,Adult Social Care,New Codes,SSom LT Phys Support - FNC,Third Party Payments,Private Contractors & Other Agencies,Purchased Care Services,03.03.2016,1900977780,-2752.00,Almondsbury Care Ltd,11020775,50601,126115
Somerset County Council,Adult Social Care,New Codes,SSom LT Phys Support - FNC,Third Party Payments,Private Contractors & Other Agencies,Purchased Care Services,03.03.2016,1900977780,2752.00,Almondsbury Care Ltd,11020775,50601,126115
Somerset County Council,Adult Social Care,New Codes,SSom LT Phys Support - FNC,Third Party Payments,Private Contractors & Other Agencies,Purchased Care Services,23.03.2016,1900989247,448.00,Almondsbury Care Ltd,11020775,50601,126115
Somerset County Council,Adult Social Care,New Codes,SSom LT Phys Support - FNC,Third Party Payments,Private Contractors & Other Agencies,Purchased Care Services,23.03.2016,1900989247,448.00,Almondsbury Care Ltd,11020775,50601,126115
Somerset County Council,Adult Social Care,New Codes,SSom LT Phys Support - FNC,Third Party Payments,Private Contractors & Other Agencies,Purchased Care Services,23.03.2016,1900989247,448.00,Almondsbury Care Ltd,11020775,50601,126115
Somerset County Council,Adult Social Care,New Codes,SSom LT Phys Support - FNC,Third Party Payments,Private Contractors & Other Agencies,Purchased Care Services,23.03.2016,1900989247,448.00,Almondsbury Care Ltd,11020775,50601,126115
Somerset County Council,Adult Social Care,New Codes,SSom LT Phys Support - FNC,Third Party Payments,Private Contractors & Other Agencies,Purchased Care Services,23.03.2016,1900989247,448.00,Almondsbury Care Ltd,11020775,50601,126115
Somerset County Council,Adult Social Care,New Codes,SSom LT Phys Support - FNC,Third Party Payments,Private Contractors & Other Agencies,Purchased Care Services,23.03.2016,1900989247,448.00,Almondsbury Care Ltd,11020775,50601,126115
Somerset County Council,Adult Social Care,New Codes,SSom LT Phys Support - FNC,Third Party Payments,Private Contractors & Other Agencies,Purchased Care Services,23.03.2016,1900989247,448.00,Almondsbury Care Ltd,11020775,50601,126115
Somerset County Council,Adult Social Care,New Codes,SSom LT Phys Support - FNC,Third Party Payments,Private Contractors & Other Agencies,Purchased Care Services,23.03.2016,1900989247,448.00,Almondsbury Care Ltd,11020775,50601,126115
Somerset County Council,Adult Social Care,New Codes,SSom LT Phys Support - FNC,Third Party Payments,Private Contractors & Other Agencies,Purchased Care Services,23.03.2016,1900989247,448.00,Almondsbury Care Ltd,11020775,50601,126115
Somerset County Council,Adult Social Care,New Codes,SSom LT Phys Support - FNC,Third Party Payments,Private Contractors & Other Agencies,Purchased Care Services,23.03.2016,1900989247,400.00,Almondsbury Care Ltd,11020775,50601,126115
Somerset County Council,Adult Social Care,New Codes,Mdp LT Phys Support - FNC,Third Party Payments,Private Contractors & Other Agencies,Purchased Care Services,23.03.2016,1900989247,20.00,Almondsbury Care Ltd,11020775,50601,126113
Somerset County Council,Adult Social Care,New Codes,SSom LT Phys Support - Nurs Spot,Third Party Payments,Private Contractors & Other Agencies,Purchased Care Services,23.03.2016,1900989247,195.79,Almondsbury Care Ltd,11020775,50601,121115
Somerset County Council,Adult Social Care,New Codes,SSom LT Phys Support - Nurs Spot,Third Party Payments,Private Contractors & Other Agencies,Purchased Care Services,23.03.2016,1900989247,-337.37,Almondsbury Care Ltd,11020775,50601,121115
Somerset County Council,Adult Social Care,New Codes,SSom LT Phys Support - FNC,Third Party Payments,Private Contractors & Other Agencies,Purchased Care Services,23.03.2016,1900989247,-192.00,Almondsbury Care Ltd,11020775,50601,126115
Somerset County Council,Adult Social Care,New Codes,SSom LT Phys Support - Nurs Spot,Third Party Payments,Private Contractors & Other Agencies,Purchased Care Services,23.03.2016,1900989247,-809.69,Almondsbury Care Ltd,11020775,50601,121115
Somerset County Council,Adult Social Care,New Codes,SSom LT Phys Support - FNC,Third Party Payments,Private Contractors & Other Agencies,Purchased Care Services,03.03.2016,1900977780,176.00,Almondsbury Care Ltd,11020775,50601,126115
Somerset County Council,Adult Social Care,New Codes,SSom LT Phys Support - Nurs Spot,Third Party Payments,Private Contractors & Other Agencies,Purchased Care Services,03.03.2016,1900977780,3000.00,Almondsbury Care Ltd,11020775,50601,121115
Somerset County Council,Adult Social Care,New Codes,SSom LT Phys Support - DPA Nursing,Third Party Payments,Private Contractors & Other Agencies,Purchased Care Services,03.03.2016,1900977780,3340.00,Almondsbury Care Ltd,11020775,50601,129115
Somerset County Council,Adult Social Care,New Codes,SSom LT Phys Support - Nurs Spot,Third Party Payments,Private Contractors & Other Agencies,Purchased Care Services,03.03.2016,1900977780,2747.00,Almondsbury Care Ltd,11020775,50601,121115
Somerset County Council,Adult Social Care,New Codes,SSom LT Phys Support - Nurs Spot,Third Party Payments,Private Contractors & Other Agencies,Purchased Care Services,03.03.2016,1900977780,2057.14,Almondsbury Care Ltd,11020775,50601,121115
Somerset County Council,Adult Social Care,New Codes,SSom LT Phys Support - Nurs Spot,Third Party Payments,Private Contractors & Other Agencies,Purchased Care Services,03.03.2016,1900977780,1889.28,Almondsbury Care Ltd,11020775,50601,121115
Somerset County Council,Adult Social Care,New Codes,SSom LT Phys Support - Nurs Spot,Third Party Payments,Private Contractors & Other Agencies,Purchased Care Services,03.03.2016,1900977780,1485.71,Almondsbury Care Ltd,11020775,50601,121115
Somerset County Council,Adult Social Care,New Codes,SSom LT Phys Support - Nurs Spot,Third Party Payments,Private Contractors & Other Agencies,Purchased Care Services,03.03.2016,1900977780,1889.28,Almondsbury Care Ltd,11020775,50601,121115
Somerset County Council,Adult Social Care,New Codes,SSom LT Phys Support - Nurs Spot,Third Party Payments,Private Contractors & Other Agencies,Purchased Care Services,03.03.2016,1900977780,1889.28,Almondsbury Care Ltd,11020775,50601,121115
Somerset County Council,Adult Social Care,New Codes,SSom ST Phys Support - Respite,Third Party Payments,Private Contractors & Other Agencies,Purchased Care Services,03.03.2016,1900977780,944.64,Almondsbury Care Ltd,11020775,50601,120915
Somerset County Council,Adult Social Care,New Codes,SSom LT Phys Support - DPA Nursing,Third Party Payments,Private Contractors & Other Agencies,Purchased Care Services,03.03.2016,1900977780,1889.28,Almondsbury Care Ltd,11020775,50601,129115
Somerset County Council,Adult Social Care,New Codes,SSom LT Phys Support - Nurs Spot,Third Party Payments,Private Contractors & Other Agencies,Purchased Care Services,03.03.2016,1900977780,469.41,Almondsbury Care Ltd,11020775,50601,121115
Somerset County Council,Adult Social Care,New Codes,SSom LT Phys Support - FNC,Third Party Payments,Private Contractors & Other Agencies,Purchased Care Services,03.03.2016,1900977780,448.00,Almondsbury Care Ltd,11020775,50601,126115
Somerset County Council,Adult Social Care,New Codes,SSom LT Phys Support - FNC,Third Party Payments,Private Contractors & Other Agencies,Purchased Care Services,03.03.2016,1900977780,448.00,Almondsbury Care Ltd,11020775,50601,126115
Somerset County Council,Adult Social Care,New Codes,SSom LT Phys Support - FNC,Third Party Payments,Private Contractors & Other Agencies,Purchased Care Services,03.03.2016,1900977780,448.00,Almondsbury Care Ltd,11020775,50601,126115
Somerset County Council,Adult Social Care,New Codes,SSom LT Phys Support - FNC,Third Party Payments,Private Contractors & Other Agencies,Purchased Care Services,03.03.2016,1900977780,448.00,Almondsbury Care Ltd,11020775,50601,126115
Somerset County Council,Adult Social Care,New Codes,SSom LT Phys Support - FNC,Third Party Payments,Private Contractors & Other Agencies,Purchased Care Services,03.03.2016,1900977780,448.00,Almondsbury Care Ltd,11020775,50601,126115
Somerset County Council,Adult Social Care,New Codes,SSom LT Phys Support - FNC,Third Party Payments,Private Contractors & Other Agencies,Purchased Care Services,03.03.2016,1900977780,448.00,Almondsbury Care Ltd,11020775,50601,126115
Somerset County Council,Adult Social Care,New Codes,SSom LT Phys Support - FNC,Third Party Payments,Private Contractors & Other Agencies,Purchased Care Services,03.03.2016,1900977780,448.00,Almondsbury Care Ltd,11020775,50601,126115
Somerset County Council,Adult Social Care,New Codes,SSom LT Phys Support - FNC,Third Party Payments,Private Contractors & Other Agencies,Purchased Care Services,03.03.2016,1900977780,448.00,Almondsbury Care Ltd,11020775,50601,126115
Somerset County Council,Adult Social Care,New Codes,SSom LT Phys Support - FNC,Third Party Payments,Private Contractors & Other Agencies,Purchased Care Services,03.03.2016,1900977780,448.00,Almondsbury Care Ltd,11020775,50601,126115
Somerset County Council,Adult Social Care,New Codes,SSom LT Phys Support - FNC,Third Party Payments,Private Contractors & Other Agencies,Purchased Care Services,03.03.2016,1900977780,448.00,Almondsbury Care Ltd,11020775,50601,126115
Somerset County Council,Adult Social Care,New Codes,SSom LT Phys Support - FNC,Third Party Payments,Private Contractors & Other Agencies,Purchased Care Services,03.03.2016,1900977780,448.00,Almondsbury Care Ltd,11020775,50601,126115
Somerset County Council,Adult Social Care,New Codes,SSom LT Phys Support - FNC,Third Party Payments,Private Contractors & Other Agencies,Purchased Care Services,03.03.2016,1900977780,448.00,Almondsbury Care Ltd,11020775,50601,126115
Somerset County Council,Adult Social Care,New Codes,SSom LT Phys Support - FNC,Third Party Payments,Private Contractors & Other Agencies,Purchased Care Services,03.03.2016,1900977780,448.00,Almondsbury Care Ltd,11020775,50601,126115
Somerset County Council,Adult Social Care,New Codes,SSom LT Phys Support - FNC,Third Party Payments,Private Contractors & Other Agencies,Purchased Care Services,03.03.2016,1900977780,448.00,Almondsbury Care Ltd,11020775,50601,126115
Somerset County Council,Adult Social Care,New Codes,SSom LT Phys Support - Nurs Spot,Third Party Payments,Private Contractors & Other Agencies,Purchased Care Services,03.03.2016,1900977780,404.85,Almondsbury Care Ltd,11020775,50601,121115
Somerset County Council,Adult Social Care,New Codes,SSom LT Phys Support - FNC,Third Party Payments,Private Contractors & Other Agencies,Purchased Care Services,03.03.2016,1900977780,288.00,Almondsbury Care Ltd,11020775,50601,126115
Somerset County Council,Adult Social Care,New Codes,SSom LT Phys Support - FNC,Third Party Payments,Private Contractors & Other Agencies,Purchased Care Services,03.03.2016,1900977780,288.00,Almondsbury Care Ltd,11020775,50601,126115
Somerset County Council,Adult Social Care,New Codes,SSom LT Phys Support - Nurs Spot,Third Party Payments,Private Contractors & Other Agencies,Purchased Care Services,03.03.2016,1900977780,244.46,Almondsbury Care Ltd,11020775,50601,121115
Somerset County Council,Adult Social Care,New Codes,SSom LT Phys Support - FNC,Third Party Payments,Private Contractors & Other Agencies,Purchased Care Services,03.03.2016,1900977780,224.00,Almondsbury Care Ltd,11020775,50601,126115
Somerset County Council,Adult Social Care,New Codes,SSom LT Phys Support - FNC,Third Party Payments,Private Contractors & Other Agencies,Purchased Care Services,03.03.2016,1900977778,448.00,ALTOGETHER CARE LLP T/A SHERBORNE H,11007299,50601,126115
Somerset County Council,Adult Social Care,New Codes,SSom LT Phys Support - FNC,Third Party Payments,Private Contractors & Other Agencies,Purchased Care Services,03.03.2016,1900977778,448.00,ALTOGETHER CARE LLP T/A SHERBORNE H,11007299,50601,126115
Somerset County Council,Adult Social Care,New Codes,SSom LT Phys Support - FNC,Third Party Payments,Private Contractors & Other Agencies,Purchased Care Services,03.03.2016,1900977778,448.00,ALTOGETHER CARE LLP T/A SHERBORNE H,11007299,50601,126115
Somerset County Council,Adult Social Care,New Codes,SSom LT Phys Support - Nurs OPMH Spot,Third Party Payments,Private Contractors & Other Agencies,Purchased Care Services,03.03.2016,1900977778,1889.28,ALTOGETHER CARE LLP T/A SHERBORNE H,11007299,50601,123115
Somerset County Council,Adult Social Care,New Codes,SSom LT Phys Support - Nurs Spot,Third Party Payments,Private Contractors & Other Agencies,Purchased Care Services,03.03.2016,1900977778,1889.28,ALTOGETHER CARE LLP T/A SHERBORNE H,11007299,50601,121115
Somerset County Council,Adult Social Care,New Codes,SSom LT Phys Support - Nurs OPMH Spot,Third Party Payments,Private Contractors & Other Agencies,Purchased Care Services,03.03.2016,1900977778,2156.44,ALTOGETHER CARE LLP T/A SHERBORNE H,11007299,50601,123115
Somerset County Council,Adult Social Care,New Codes,SSom LT Phys Support - Nurs OPMH Spot,Third Party Payments,Private Contractors & Other Agencies,Purchased Care Services,03.03.2016,1900977778,2556.44,ALTOGETHER CARE LLP T/A SHERBORNE H,11007299,50601,123115
Somerset County Council,Adult Social Care,New Codes,SSom LT Phys Support - Nurs OPMH Spot,Third Party Payments,Private Contractors & Other Agencies,Purchased Care Services,03.03.2016,1900977778,2952.00,ALTOGETHER CARE LLP T/A SHERBORNE H,11007299,50601,123115
Somerset County Council,Adult Social Care,New Codes,SSom LT Phys Support - Nurs OPMH Spot,Third Party Payments,Private Contractors & Other Agencies,Purchased Care Services,03.03.2016,1900977778,2556.44,ALTOGETHER CARE LLP T/A SHERBORNE H,11007299,50601,123115
Somerset County Council,Adult Social Care,New Codes,SSom LT Phys Support - Nurs OPMH Spot,Third Party Payments,Private Contractors & Other Agencies,Purchased Care Services,03.03.2016,1900977778,2556.44,ALTOGETHER CARE LLP T/A SHERBORNE H,11007299,50601,123115
Somerset County Council,Adult Social Care,New Codes,SSom LT Phys Support - Nurs OPMH Spot,Third Party Payments,Private Contractors & Other Agencies,Purchased Care Services,03.03.2016,1900977778,2952.00,ALTOGETHER CARE LLP T/A SHERBORNE H,11007299,50601,123115
Somerset County Council,Adult Social Care,New Codes,SSom LT Phys Support - Nurs OPMH Spot,Third Party Payments,Private Contractors & Other Agencies,Purchased Care Services,03.03.2016,1900977778,3152.00,ALTOGETHER CARE LLP T/A SHERBORNE H,11007299,50601,123115
Somerset County Council,Adult Social Care,New Codes,SSom LT Phys Support - Nurs OPMH Spot,Third Party Payments,Private Contractors & Other Agencies,Purchased Care Services,03.03.2016,1900977778,2960.84,ALTOGETHER CARE LLP T/A SHERBORNE H,11007299,50601,123115
Somerset County Council,Adult Social Care,New Codes,SSom LT Phys Support - Nurs OPMH Spot,Third Party Payments,Private Contractors & Other Agencies,Purchased Care Services,03.03.2016,1900977778,3056.44,ALTOGETHER CARE LLP T/A SHERBORNE H,11007299,50601,123115
Somerset County Council,Adult Social Care,New Codes,SSom LT Phys Support - DPA Nursing,Third Party Payments,Private Contractors & Other Agencies,Purchased Care Services,03.03.2016,1900977778,2560.84,ALTOGETHER CARE LLP T/A SHERBORNE H,11007299,50601,129115
Somerset County Council,Adult Social Care,New Codes,SSom LT Phys Support - Nurs OPMH Spot,Third Party Payments,Private Contractors & Other Agencies,Purchased Care Services,03.03.2016,1900977778,3352.00,ALTOGETHER CARE LLP T/A SHERBORNE H,11007299,50601,123115
Somerset County Council,Adult Social Care,New Codes,SSom LT Phys Support - FNC,Third Party Payments,Private Contractors & Other Agencies,Purchased Care Services,23.03.2016,1900989259,208.00,ALTOGETHER CARE LLP T/A SHERBORNE H,11007299,50601,126115
Somerset County Council,Adult Social Care,New Codes,SSom LT Phys Support - FNC,Third Party Payments,Private Contractors & Other Agencies,Purchased Care Services,23.03.2016,1900989259,384.00,ALTOGETHER CARE LLP T/A SHERBORNE H,11007299,50601,126115
Somerset County Council,Adult Social Care,New Codes,SSom LT Phys Support - FNC,Third Party Payments,Private Contractors & Other Agencies,Purchased Care Services,03.03.2016,1900977778,448.00,ALTOGETHER CARE LLP T/A SHERBORNE H,11007299,50601,126115
Somerset County Council,Adult Social Care,New Codes,SSom LT Mem Support - FNC,Third Party Payments,Private Contractors & Other Agencies,Purchased Care Services,03.03.2016,1900977778,448.00,ALTOGETHER CARE LLP T/A SHERBORNE H,11007299,50601,126135
Somerset County Council,Adult Social Care,New Codes,SSom LT Phys Support - FNC,Third Party Payments,Private Contractors & Other Agencies,Purchased Care Services,03.03.2016,1900977778,448.00,ALTOGETHER CARE LLP T/A SHERBORNE H,11007299,50601,126115
Somerset County Council,Adult Social Care,New Codes,SSom LT Phys Support - FNC,Third Party Payments,Private Contractors & Other Agencies,Purchased Care Services,03.03.2016,1900977778,448.00,ALTOGETHER CARE LLP T/A SHERBORNE H,11007299,50601,126115
Somerset County Council,Adult Social Care,New Codes,SSom LT Phys Support - FNC,Third Party Payments,Private Contractors & Other Agencies,Purchased Care Services,03.03.2016,1900977778,448.00,ALTOGETHER CARE LLP T/A SHERBORNE H,11007299,50601,126115
Somerset County Council,Adult Social Care,New Codes,SSom LT Phys Support - FNC,Third Party Payments,Private Contractors & Other Agencies,Purchased Care Services,03.03.2016,1900977778,448.00,ALTOGETHER CARE LLP T/A SHERBORNE H,11007299,50601,126115
Somerset County Council,Adult Social Care,New Codes,SSom LT Phys Support - FNC,Third Party Payments,Private Contractors & Other Agencies,Purchased Care Services,03.03.2016,1900977778,448.00,ALTOGETHER CARE LLP T/A SHERBORNE H,11007299,50601,126115
Somerset County Council,Adult Social Care,New Codes,SSom LT Phys Support - FNC,Third Party Payments,Private Contractors & Other Agencies,Purchased Care Services,03.03.2016,1900977778,448.00,ALTOGETHER CARE LLP T/A SHERBORNE H,11007299,50601,126115
Somerset County Council,Adult Social Care,New Codes,SSom LT Phys Support - FNC,Third Party Payments,Private Contractors & Other Agencies,Purchased Care Services,03.03.2016,1900977778,448.00,ALTOGETHER CARE LLP T/A SHERBORNE H,11007299,50601,126115
Somerset County Council,Adult Social Care,New Codes,SSom LT Phys Support - FNC,Third Party Payments,Private Contractors & Other Agencies,Purchased Care Services,03.03.2016,1900977778,448.00,ALTOGETHER CARE LLP T/A SHERBORNE H,11007299,50601,126115
Somerset County Council,Adult Social Care,New Codes,SSom LT Phys Support - FNC,Third Party Payments,Private Contractors & Other Agencies,Purchased Care Services,03.03.2016,1900977778,448.00,ALTOGETHER CARE LLP T/A SHERBORNE H,11007299,50601,126115
Somerset County Council,Adult Social Care,New Codes,SSom LT Phys Support - FNC,Third Party Payments,Private Contractors & Other Agencies,Purchased Care Services,03.03.2016,1900977778,448.00,ALTOGETHER CARE LLP T/A SHERBORNE H,11007299,50601,126115
Somerset County Council,Adult Social Care,New Codes,SSom LT Phys Support - FNC,Third Party Payments,Private Contractors & Other Agencies,Purchased Care Services,03.03.2016,1900977778,448.00,ALTOGETHER CARE LLP T/A SHERBORNE H,11007299,50601,126115
Somerset County Council,Adult Social Care,New Codes,SSom LT Mem Support - FNC,Third Party Payments,Private Contractors & Other Agencies,Purchased Care Services,03.03.2016,1900977778,448.00,ALTOGETHER CARE LLP T/A SHERBORNE H,11007299,50601,126135
Somerset County Council,Adult Social Care,New Codes,SSom LT Phys Support - FNC,Third Party Payments,Private Contractors & Other Agencies,Purchased Care Services,03.03.2016,1900977778,448.00,ALTOGETHER CARE LLP T/A SHERBORNE H,11007299,50601,126115
Somerset County Council,Adult Social Care,New Codes,SSom LT Phys Support - FNC,Third Party Payments,Private Contractors & Other Agencies,Purchased Care Services,03.03.2016,1900977778,448.00,ALTOGETHER CARE LLP T/A SHERBORNE H,11007299,50601,126115
Somerset County Council,Adult Social Care,New Codes,SSom LT Phys Support - FNC,Third Party Payments,Private Contractors & Other Agencies,Purchased Care Services,03.03.2016,1900977778,448.00,ALTOGETHER CARE LLP T/A SHERBORNE H,11007299,50601,126115
Somerset County Council,Adult Social Care,New Codes,SSom LT Phys Support - Nurs OPMH Spot,Third Party Payments,Private Contractors & Other Agencies,Purchased Care Services,03.03.2016,1900977778,139.64,ALTOGETHER CARE LLP T/A SHERBORNE H,11007299,50601,123115
Somerset County Council,Adult Social Care,New Codes,SSom LT Phys Support - FNC,Third Party Payments,Private Contractors & Other Agencies,Purchased Care Services,03.03.2016,1900977778,32.00,ALTOGETHER CARE LLP T/A SHERBORNE H,11007299,50601,126115
Somerset County Council,Adult Social Care,New Codes,SSom LT Phys Support - DPA Nursing,Third Party Payments,Private Contractors & Other Agencies,Purchased Care Services,23.03.2016,1900989259,2560.84,ALTOGETHER CARE LLP T/A SHERBORNE H,11007299,50601,129115
Somerset County Council,Adult Social Care,New Codes,SSom LT Phys Support - FNC,Third Party Payments,Private Contractors & Other Agencies,Purchased Care Services,23.03.2016,1900989259,2560.00,ALTOGETHER CARE LLP T/A SHERBORNE H,11007299,50601,126115
Somerset County Council,Adult Social Care,New Codes,SSom LT Phys Support - FNC,Third Party Payments,Private Contractors & Other Agencies,Purchased Care Services,23.03.2016,1900989259,2512.00,ALTOGETHER CARE LLP T/A SHERBORNE H,11007299,50601,126115
Somerset County Council,Adult Social Care,New Codes,SSom LT Phys Support - Nurs OPMH Spot,Third Party Payments,Private Contractors & Other Agencies,Purchased Care Services,23.03.2016,1900989259,3056.44,ALTOGETHER CARE LLP T/A SHERBORNE H,11007299,50601,123115
Somerset County Council,Adult Social Care,New Codes,SSom LT Phys Support - Nurs OPMH Spot,Third Party Payments,Private Contractors & Other Agencies,Purchased Care Services,23.03.2016,1900989259,2960.84,ALTOGETHER CARE LLP T/A SHERBORNE H,11007299,50601,123115
Somerset County Council,Adult Social Care,New Codes,SSom LT Phys Support - Nurs OPMH Spot,Third Party Payments,Private Contractors & Other Agencies,Purchased Care Services,23.03.2016,1900989259,3152.00,ALTOGETHER CARE LLP T/A SHERBORNE H,11007299,50601,123115
Somerset County Council,Adult Social Care,New Codes,SSom LT Phys Support - Nurs OPMH Spot,Third Party Payments,Private Contractors & Other Agencies,Purchased Care Services,23.03.2016,1900989259,2952.00,ALTOGETHER CARE LLP T/A SHERBORNE H,11007299,50601,123115
Somerset County Council,Adult Social Care,New Codes,SSom LT Phys Support - Nurs OPMH Spot,Third Party Payments,Private Contractors & Other Agencies,Purchased Care Services,23.03.2016,1900989259,2556.44,ALTOGETHER CARE LLP T/A SHERBORNE H,11007299,50601,123115
Somerset County Council,Adult Social Care,New Codes,SSom LT Phys Support - Nurs OPMH Spot,Third Party Payments,Private Contractors & Other Agencies,Purchased Care Services,23.03.2016,1900989259,2556.44,ALTOGETHER CARE LLP T/A SHERBORNE H,11007299,50601,123115
Somerset County Council,Adult Social Care,New Codes,SSom LT Phys Support - Nurs OPMH Spot,Third Party Payments,Private Contractors & Other Agencies,Purchased Care Services,23.03.2016,1900989259,2274.57,ALTOGETHER CARE LLP T/A SHERBORNE H,11007299,50601,123115
Somerset County Council,Adult Social Care,New Codes,SSom LT Phys Support - Nurs OPMH Spot,Third Party Payments,Private Contractors & Other Agencies,Purchased Care Services,23.03.2016,1900989259,2952.00,ALTOGETHER CARE LLP T/A SHERBORNE H,11007299,50601,123115
Somerset County Council,Adult Social Care,New Codes,SSom LT Phys Support - Nurs OPMH Spot,Third Party Payments,Private Contractors & Other Agencies,Purchased Care Services,23.03.2016,1900989259,2556.44,ALTOGETHER CARE LLP T/A SHERBORNE H,11007299,50601,123115
Somerset County Council,Adult Social Care,New Codes,SSom LT Phys Support - Nurs OPMH Spot,Third Party Payments,Private Contractors & Other Agencies,Purchased Care Services,23.03.2016,1900989259,2156.44,ALTOGETHER CARE LLP T/A SHERBORNE H,11007299,50601,123115
Somerset County Council,Adult Social Care,New Codes,SSom LT Phys Support - Nurs Spot,Third Party Payments,Private Contractors & Other Agencies,Purchased Care Services,23.03.2016,1900989259,1889.28,ALTOGETHER CARE LLP T/A SHERBORNE H,11007299,50601,121115
Somerset County Council,Adult Social Care,New Codes,SSom LT Phys Support - Nurs OPMH Spot,Third Party Payments,Private Contractors & Other Agencies,Purchased Care Services,23.03.2016,1900989259,1889.28,ALTOGETHER CARE LLP T/A SHERBORNE H,11007299,50601,123115
Somerset County Council,Adult Social Care,New Codes,SSom LT Phys Support - Nurs OPMH Spot,Third Party Payments,Private Contractors & Other Agencies,Purchased Care Services,23.03.2016,1900989259,506.00,ALTOGETHER CARE LLP T/A SHERBORNE H,11007299,50601,123115
Somerset County Council,Adult Social Care,New Codes,SSom LT Phys Support - FNC,Third Party Payments,Private Contractors & Other Agencies,Purchased Care Services,23.03.2016,1900989259,448.00,ALTOGETHER CARE LLP T/A SHERBORNE H,11007299,50601,126115
Somerset County Council,Adult Social Care,New Codes,SSom LT Phys Support - FNC,Third Party Payments,Private Contractors & Other Agencies,Purchased Care Services,23.03.2016,1900989259,448.00,ALTOGETHER CARE LLP T/A SHERBORNE H,11007299,50601,126115
Somerset County Council,Adult Social Care,New Codes,SSom LT Phys Support - FNC,Third Party Payments,Private Contractors & Other Agencies,Purchased Care Services,23.03.2016,1900989259,448.00,ALTOGETHER CARE LLP T/A SHERBORNE H,11007299,50601,126115
Somerset County Council,Adult Social Care,New Codes,SSom LT Phys Support - FNC,Third Party Payments,Private Contractors & Other Agencies,Purchased Care Services,23.03.2016,1900989259,448.00,ALTOGETHER CARE LLP T/A SHERBORNE H,11007299,50601,126115
Somerset County Council,Adult Social Care,New Codes,SSom LT Phys Support - FNC,Third Party Payments,Private Contractors & Other Agencies,Purchased Care Services,23.03.2016,1900989259,448.00,ALTOGETHER CARE LLP T/A SHERBORNE H,11007299,50601,126115
Somerset County Council,Adult Social Care,New Codes,SSom LT Phys Support - FNC,Third Party Payments,Private Contractors & Other Agencies,Purchased Care Services,23.03.2016,1900989259,448.00,ALTOGETHER CARE LLP T/A SHERBORNE H,11007299,50601,126115
Somerset County Council,Adult Social Care,New Codes,SSom LT Mem Support - FNC,Third Party Payments,Private Contractors & Other Agencies,Purchased Care Services,23.03.2016,1900989259,448.00,ALTOGETHER CARE LLP T/A SHERBORNE H,11007299,50601,126135
Somerset County Council,Adult Social Care,New Codes,SSom LT Phys Support - FNC,Third Party Payments,Private Contractors & Other Agencies,Purchased Care Services,23.03.2016,1900989259,448.00,ALTOGETHER CARE LLP T/A SHERBORNE H,11007299,50601,126115
Somerset County Council,Adult Social Care,New Codes,SSom LT Phys Support - FNC,Third Party Payments,Private Contractors & Other Agencies,Purchased Care Services,23.03.2016,1900989259,448.00,ALTOGETHER CARE LLP T/A SHERBORNE H,11007299,50601,126115
Somerset County Council,Adult Social Care,New Codes,SSom LT Phys Support - FNC,Third Party Payments,Private Contractors & Other Agencies,Purchased Care Services,23.03.2016,1900989259,448.00,ALTOGETHER CARE LLP T/A SHERBORNE H,11007299,50601,126115
Somerset County Council,Adult Social Care,New Codes,SSom LT Phys Support - FNC,Third Party Payments,Private Contractors & Other Agencies,Purchased Care Services,23.03.2016,1900989259,448.00,ALTOGETHER CARE LLP T/A SHERBORNE H,11007299,50601,126115
Somerset County Council,Adult Social Care,New Codes,SSom LT Phys Support - FNC,Third Party Payments,Private Contractors & Other Agencies,Purchased Care Services,23.03.2016,1900989259,448.00,ALTOGETHER CARE LLP T/A SHERBORNE H,11007299,50601,126115
Somerset County Council,Adult Social Care,New Codes,SSom LT Phys Support - FNC,Third Party Payments,Private Contractors & Other Agencies,Purchased Care Services,23.03.2016,1900989259,448.00,ALTOGETHER CARE LLP T/A SHERBORNE H,11007299,50601,126115
Somerset County Council,Adult Social Care,New Codes,SSom LT Phys Support - FNC,Third Party Payments,Private Contractors & Other Agencies,Purchased Care Services,23.03.2016,1900989259,448.00,ALTOGETHER CARE LLP T/A SHERBORNE H,11007299,50601,126115
Somerset County Council,Adult Social Care,New Codes,SSom LT Phys Support - FNC,Third Party Payments,Private Contractors & Other Agencies,Purchased Care Services,23.03.2016,1900989259,448.00,ALTOGETHER CARE LLP T/A SHERBORNE H,11007299,50601,126115
Somerset County Council,Adult Social Care,New Codes,SSom LT Phys Support - FNC,Third Party Payments,Private Contractors & Other Agencies,Purchased Care Services,23.03.2016,1900989259,448.00,ALTOGETHER CARE LLP T/A SHERBORNE H,11007299,50601,126115
Somerset County Council,Adult Social Care,New Codes,SSom LT Phys Support - FNC,Third Party Payments,Private Contractors & Other Agencies,Purchased Care Services,23.03.2016,1900989259,448.00,ALTOGETHER CARE LLP T/A SHERBORNE H,11007299,50601,126115
Somerset County Council,Adult Social Care,New Codes,SSom LT Phys Support - FNC,Third Party Payments,Private Contractors & Other Agencies,Purchased Care Services,23.03.2016,1900989259,448.00,ALTOGETHER CARE LLP T/A SHERBORNE H,11007299,50601,126115
Somerset County Council,Adult Social Care,New Codes,SSom LT Phys Support - FNC,Third Party Payments,Private Contractors & Other Agencies,Purchased Care Services,23.03.2016,1900989259,448.00,ALTOGETHER CARE LLP T/A SHERBORNE H,11007299,50601,126115
Somerset County Council,Adult Social Care,New Codes,SSom LT Mem Support - FNC,Third Party Payments,Private Contractors & Other Agencies,Purchased Care Services,23.03.2016,1900989259,448.00,ALTOGETHER CARE LLP T/A SHERBORNE H,11007299,50601,126135
Somerset County Council,Adult Social Care,New Codes,SSom LT Phys Support - FNC,Third Party Payments,Private Contractors & Other Agencies,Purchased Care Services,23.03.2016,1900989259,448.00,ALTOGETHER CARE LLP T/A SHERBORNE H,11007299,50601,126115
Somerset County Council,Adult Social Care,New Codes,Mdp LT Phys Support - Homecare,Third Party Payments,Private Contractors & Other Agencies,Purchased Services - Pers Care,08.03.2016,5100768886,602.43,AMBER HOME CARE LTD,11000124,50603,120513
Somerset County Council,Adult Social Care,New Codes,Mdp LT Phys Support - Homecare,Third Party Payments,Private Contractors & Other Agencies,Purchased Services - Pers Care,08.03.2016,5100768887,511.80,AMBER HOME CARE LTD,11000124,50603,120513
Somerset County Council,Adult Social Care,New Codes,Tton LT Phys Support - Nurs OPMH Spot,Third Party Payments,Private Contractors & Other Agencies,Purchased Care Services,23.03.2016,1900988429,472.32,Amber Lodge Nursing Home,11039135,50601,123116
Somerset County Council,Adult Social Care,New Codes,Tton LT Phys Support - Nurs OPMH Spot,Third Party Payments,Private Contractors & Other Agencies,Purchased Care Services,23.03.2016,1900988429,472.32,Amber Lodge Nursing Home,11039135,50601,123116
Somerset County Council,Adult Social Care,New Codes,Tton LT Phys Support - Nurs OPMH Spot,Third Party Payments,Private Contractors & Other Agencies,Purchased Care Services,23.03.2016,1900988429,944.64,Amber Lodge Nursing Home,11039135,50601,123116
Somerset County Council,Adult Social Care,New Codes,Tton LT Phys Support - Nurs OPMH Spot,Third Party Payments,Private Contractors & Other Agencies,Purchased Care Services,03.03.2016,1900977466,1889.28,Amber Lodge Nursing Home,11039135,50601,123116
Somerset County Council,Adult Social Care,Older People,ASC CE Elderly Care Supply,Supplies & Services,Miscellaneous Expenses,Fees & Hired,31.03.2016,5100770962,551.99,Amy Weir & Associates Ltd,11033131,43600,103404
Somerset County Council,Adult Social Care,Older People,ASC CE Elderly Care Supply,Supplies & Services,Miscellaneous Expenses,Fees & Hired,21.03.2016,5100768247,684.51,Amy Weir & Associates Ltd,11033131,43600,103404
Somerset County Council,Adult Social Care,New Codes,Sdg LT Phys Support - Res Spot,Third Party Payments,Private Contractors & Other Agencies,Purchased Care Services,23.03.2016,1900989103,65.35,ANGELS (KINGSLEIGH) LTD,11007319,50601,121214
Somerset County Council,Adult Social Care,New Codes,Sdg LT Phys Support - Res Spot,Third Party Payments,Private Contractors & Other Agencies,Purchased Care Services,23.03.2016,1900989103,1829.88,ANGELS (KINGSLEIGH) LTD,11007319,50601,121214
Somerset County Council,Adult Social Care,New Codes,Sdg LT Phys Support - Res Spot,Third Party Payments,Private Contractors & Other Agencies,Purchased Care Services,23.03.2016,1900989103,1829.88,ANGELS (KINGSLEIGH) LTD,11007319,50601,121214
Somerset County Council,Adult Social Care,New Codes,Sdg LT Phys Support - Res Spot,Third Party Payments,Private Contractors & Other Agencies,Purchased Care Services,23.03.2016,1900989103,1829.88,ANGELS (KINGSLEIGH) LTD,11007319,50601,121214
Somerset County Council,Adult Social Care,New Codes,Sdg LT Mem Support - Res Spot,Third Party Payments,Private Contractors & Other Agencies,Purchased Care Services,23.03.2016,1900989103,1829.88,ANGELS (KINGSLEIGH) LTD,11007319,50601,121234
Somerset County Council,Adult Social Care,New Codes,Sdg LT Phys Support - Res Spot,Third Party Payments,Private Contractors & Other Agencies,Purchased Care Services,23.03.2016,1900989103,1829.88,ANGELS (KINGSLEIGH) LTD,11007319,50601,121214
Somerset County Council,Adult Social Care,New Codes,Sdg LT Phys Support - Res Spot,Third Party Payments,Private Contractors & Other Agencies,Purchased Care Services,23.03.2016,1900989103,1829.88,ANGELS (KINGSLEIGH) LTD,11007319,50601,121214
Somerset County Council,Adult Social Care,New Codes,Sdg LT Phys Support - Res Spot,Third Party Payments,Private Contractors & Other Agencies,Purchased Care Services,23.03.2016,1900989103,1829.88,ANGELS (KINGSLEIGH) LTD,11007319,50601,121214
Somerset County Council,Adult Social Care,New Codes,Sdg LT Phys Support - Res Spot,Third Party Payments,Private Contractors & Other Agencies,Purchased Care Services,23.03.2016,1900989103,1829.88,ANGELS (KINGSLEIGH) LTD,11007319,50601,121214
Somerset County Council,Adult Social Care,New Codes,Sdg LT Phys Support - Res Spot,Third Party Payments,Private Contractors & Other Agencies,Purchased Care Services,23.03.2016,1900989103,1829.88,ANGELS (KINGSLEIGH) LTD,11007319,50601,121214
Somerset County Council,Adult Social Care,New Codes,Sdg LT Phys Support - Res Spot,Third Party Payments,Private Contractors & Other Agencies,Purchased Care Services,23.03.2016,1900989103,1829.88,ANGELS (KINGSLEIGH) LTD,11007319,50601,121214
Somerset County Council,Adult Social Care,New Codes,Sdg LT Phys Support - Res Spot,Third Party Payments,Private Contractors & Other Agencies,Purchased Care Services,23.03.2016,1900989103,1829.88,ANGELS (KINGSLEIGH) LTD,11007319,50601,121214
Somerset County Council,Adult Social Care,New Codes,Sdg LT Phys Support - Res Spot,Third Party Payments,Private Contractors & Other Agencies,Purchased Care Services,23.03.2016,1900989103,1829.88,ANGELS (KINGSLEIGH) LTD,11007319,50601,121214
Somerset County Council,Adult Social Care,New Codes,Sdg LT Phys Support - Res Spot,Third Party Payments,Private Contractors & Other Agencies,Purchased Care Services,03.03.2016,1900977609,1829.88,ANGELS (KINGSLEIGH) LTD,11007319,50601,121214
Somerset County Council,Adult Social Care,New Codes,Sdg LT Phys Support - Res Spot,Third Party Payments,Private Contractors & Other Agencies,Purchased Care Services,03.03.2016,1900977609,1829.88,ANGELS (KINGSLEIGH) LTD,11007319,50601,121214
Somerset County Council,Adult Social Care,New Codes,Sdg LT Phys Support - Res Spot,Third Party Payments,Private Contractors & Other Agencies,Purchased Care Services,03.03.2016,1900977609,1829.88,ANGELS (KINGSLEIGH) LTD,11007319,50601,121214
Somerset County Council,Adult Social Care,New Codes,Sdg LT Phys Support - Res Spot,Third Party Payments,Private Contractors & Other Agencies,Purchased Care Services,03.03.2016,1900977609,1829.88,ANGELS (KINGSLEIGH) LTD,11007319,50601,121214
Somerset County Council,Adult Social Care,New Codes,Sdg LT Phys Support - Res Spot,Third Party Payments,Private Contractors & Other Agencies,Purchased Care Services,03.03.2016,1900977609,1829.88,ANGELS (KINGSLEIGH) LTD,11007319,50601,121214
Somerset County Council,Adult Social Care,New Codes,Sdg LT Phys Support - Res Spot,Third Party Payments,Private Contractors & Other Agencies,Purchased Care Services,03.03.2016,1900977609,1829.88,ANGELS (KINGSLEIGH) LTD,11007319,50601,121214
Somerset County Council,Adult Social Care,New Codes,Sdg LT Phys Support - Res Spot,Third Party Payments,Private Contractors & Other Agencies,Purchased Care Services,03.03.2016,1900977609,1829.88,ANGELS (KINGSLEIGH) LTD,11007319,50601,121214
Somerset County Council,Adult Social Care,New Codes,Sdg LT Phys Support - Res Spot,Third Party Payments,Private Contractors & Other Agencies,Purchased Care Services,03.03.2016,1900977609,1829.88,ANGELS (KINGSLEIGH) LTD,11007319,50601,121214
Somerset County Council,Adult Social Care,New Codes,Sdg LT Phys Support - Res Spot,Third Party Payments,Private Contractors & Other Agencies,Purchased Care Services,03.03.2016,1900977609,1829.88,ANGELS (KINGSLEIGH) LTD,11007319,50601,121214
Somerset County Council,Adult Social Care,New Codes,Sdg LT Phys Support - Res Spot,Third Party Payments,Private Contractors & Other Agencies,Purchased Care Services,03.03.2016,1900977609,1829.88,ANGELS (KINGSLEIGH) LTD,11007319,50601,121214
Somerset County Council,Adult Social Care,New Codes,Sdg LT Phys Support - Res Spot,Third Party Payments,Private Contractors & Other Agencies,Purchased Care Services,03.03.2016,1900977609,1829.88,ANGELS (KINGSLEIGH) LTD,11007319,50601,121214
Somerset County Council,Adult Social Care,New Codes,Sdg LT Mem Support - Res Spot,Third Party Payments,Private Contractors & Other Agencies,Purchased Care Services,03.03.2016,1900977609,1829.88,ANGELS (KINGSLEIGH) LTD,11007319,50601,121234
Somerset County Council,Adult Social Care,New Codes,Sdg LT Phys Support - Res Spot,Third Party Payments,Private Contractors & Other Agencies,Purchased Care Services,03.03.2016,1900977609,1829.88,ANGELS (KINGSLEIGH) LTD,11007319,50601,121214
Somerset County Council,Adult Social Care,New Codes,Sdg LT Phys Support - Res Spot,Third Party Payments,Private Contractors & Other Agencies,Purchased Care Services,03.03.2016,1900977609,1829.88,ANGELS (KINGSLEIGH) LTD,11007319,50601,121214
Somerset County Council,Adult Social Care,New Codes,Sdg LT Phys Support - Nurs OPMH Block,Third Party Payments,Private Contractors & Other Agencies,Purchased Care Services,23.03.2016,1900989101,12556.80,ANGELS (STRATTON HOUSE) LTD,11007287,50601,122114
Somerset County Council,Adult Social Care,New Codes,Sdg LT Phys Support - FNC,Third Party Payments,Private Contractors & Other Agencies,Purchased Care Services,23.03.2016,1900989041,448.00,ANGELS (STRATTON HOUSE) LTD,11007287,50601,126114
Somerset County Council,Adult Social Care,New Codes,Sdg LT Phys Support - FNC,Third Party Payments,Private Contractors & Other Agencies,Purchased Care Services,23.03.2016,1900989041,448.00,ANGELS (STRATTON HOUSE) LTD,11007287,50601,126114
Somerset County Council,Adult Social Care,New Codes,Sdg LT Phys Support - FNC,Third Party Payments,Private Contractors & Other Agencies,Purchased Care Services,23.03.2016,1900989041,448.00,ANGELS (STRATTON HOUSE) LTD,11007287,50601,126114
Somerset County Council,Adult Social Care,New Codes,Sdg LT Phys Support - FNC,Third Party Payments,Private Contractors & Other Agencies,Purchased Care Services,23.03.2016,1900989041,448.00,ANGELS (STRATTON HOUSE) LTD,11007287,50601,126114
Somerset County Council,Adult Social Care,New Codes,Sdg LT Phys Support - FNC,Third Party Payments,Private Contractors & Other Agencies,Purchased Care Services,23.03.2016,1900989041,448.00,ANGELS (STRATTON HOUSE) LTD,11007287,50601,126114
Somerset County Council,Adult Social Care,New Codes,Sdg LT Phys Support - FNC,Third Party Payments,Private Contractors & Other Agencies,Purchased Care Services,23.03.2016,1900989041,448.00,ANGELS (STRATTON HOUSE) LTD,11007287,50601,126114
Somerset County Council,Adult Social Care,New Codes,Sdg LT Mem Support - FNC,Third Party Payments,Private Contractors & Other Agencies,Purchased Care Services,23.03.2016,1900989041,448.00,ANGELS (STRATTON HOUSE) LTD,11007287,50601,126134
Somerset County Council,Adult Social Care,New Codes,Sdg LT Phys Support - FNC,Third Party Payments,Private Contractors & Other Agencies,Purchased Care Services,23.03.2016,1900989041,448.00,ANGELS (STRATTON HOUSE) LTD,11007287,50601,126114
Somerset County Council,Adult Social Care,New Codes,Sdg LT Phys Support - Res OPMH Spot,Third Party Payments,Private Contractors & Other Agencies,Purchased Care Services,23.03.2016,1900989041,1829.88,ANGELS (STRATTON HOUSE) LTD,11007287,50601,122214
Somerset County Council,Adult Social Care,New Codes,Sdg LT Phys Support - Nurs OPMH Spot,Third Party Payments,Private Contractors & Other Agencies,Purchased Care Services,23.03.2016,1900989041,2008.48,ANGELS (STRATTON HOUSE) LTD,11007287,50601,123114
Somerset County Council,Adult Social Care,New Codes,Tton LT Phys Support - Nurs OPMH Spot,Third Party Payments,Private Contractors & Other Agencies,Purchased Care Services,23.03.2016,1900989041,2008.48,ANGELS (STRATTON HOUSE) LTD,11007287,50601,123116
Somerset County Council,Adult Social Care,New Codes,Sdg LT Phys Support - FNC,Third Party Payments,Private Contractors & Other Agencies,Purchased Care Services,23.03.2016,1900989041,1552.00,ANGELS (STRATTON HOUSE) LTD,11007287,50601,126114
Somerset County Council,Adult Social Care,New Codes,Sdg LT Phys Support - DPA Nursing,Third Party Payments,Private Contractors & Other Agencies,Purchased Care Services,23.03.2016,1900989041,3160.00,ANGELS (STRATTON HOUSE) LTD,11007287,50601,129114
Somerset County Council,Adult Social Care,Learning Disabilities,LD-PUR-NC-Free Nursing Care-MDP,Third Party Payments,Private Contractors & Other Agencies,Purchased Care Services,23.03.2016,1900988365,448.00,ANGELS (STRATTON HOUSE) LTD,11007287,50601,101786
Somerset County Council,Adult Social Care,Learning Disabilities,LD-PUR-NC-Nursing-MDP,Third Party Payments,Private Contractors & Other Agencies,Purchased Care Services,23.03.2016,1900988365,1889.28,ANGELS (STRATTON HOUSE) LTD,11007287,50601,108421
Somerset County Council,Adult Social Care,New Codes,Sdg LT Phys Support - Nurs OPMH Spot,Third Party Payments,Private Contractors & Other Agencies,Purchased Care Services,03.03.2016,1900977726,-564.29,ANGELS (STRATTON HOUSE) LTD,11007287,50601,123114
Somerset County Council,Adult Social Care,Learning Disabilities,LD-PUR-NC-Nursing-MDP,Third Party Payments,Private Contractors & Other Agencies,Purchased Care Services,03.03.2016,1900977537,1889.28,ANGELS (STRATTON HOUSE) LTD,11007287,50601,108421
Somerset County Council,Adult Social Care,Learning Disabilities,LD-PUR-NC-Free Nursing Care-MDP,Third Party Payments,Private Contractors & Other Agencies,Purchased Care Services,03.03.2016,1900977537,448.00,ANGELS (STRATTON HOUSE) LTD,11007287,50601,101786
Somerset County Council,Adult Social Care,New Codes,Sdg LT Phys Support - DPA Nursing,Third Party Payments,Private Contractors & Other Agencies,Purchased Care Services,03.03.2016,1900977726,3160.00,ANGELS (STRATTON HOUSE) LTD,11007287,50601,129114
Somerset County Council,Adult Social Care,New Codes,Tton LT Phys Support - Nurs OPMH Spot,Third Party Payments,Private Contractors & Other Agencies,Purchased Care Services,03.03.2016,1900977726,2008.48,ANGELS (STRATTON HOUSE) LTD,11007287,50601,123116
Somerset County Council,Adult Social Care,New Codes,Sdg LT Phys Support - Nurs OPMH Spot,Third Party Payments,Private Contractors & Other Agencies,Purchased Care Services,03.03.2016,1900977726,2008.48,ANGELS (STRATTON HOUSE) LTD,11007287,50601,123114
Somerset County Council,Adult Social Care,New Codes,Sdg LT Phys Support - Res OPMH Spot,Third Party Payments,Private Contractors & Other Agencies,Purchased Care Services,03.03.2016,1900977726,1829.88,ANGELS (STRATTON HOUSE) LTD,11007287,50601,122214
Somerset County Council,Adult Social Care,New Codes,Sdg LT Phys Support - FNC,Third Party Payments,Private Contractors & Other Agencies,Purchased Care Services,03.03.2016,1900977726,448.00,ANGELS (STRATTON HOUSE) LTD,11007287,50601,126114
Somerset County Council,Adult Social Care,New Codes,Sdg LT Mem Support - FNC,Third Party Payments,Private Contractors & Other Agencies,Purchased Care Services,03.03.2016,1900977726,448.00,ANGELS (STRATTON HOUSE) LTD,11007287,50601,126134
Somerset County Council,Adult Social Care,New Codes,Sdg LT Phys Support - FNC,Third Party Payments,Private Contractors & Other Agencies,Purchased Care Services,03.03.2016,1900977726,448.00,ANGELS (STRATTON HOUSE) LTD,11007287,50601,126114
Somerset County Council,Adult Social Care,New Codes,Sdg LT Phys Support - FNC,Third Party Payments,Private Contractors & Other Agencies,Purchased Care Services,03.03.2016,1900977726,448.00,ANGELS (STRATTON HOUSE) LTD,11007287,50601,126114
Somerset County Council,Adult Social Care,New Codes,Sdg LT Phys Support - FNC,Third Party Payments,Private Contractors & Other Agencies,Purchased Care Services,03.03.2016,1900977726,448.00,ANGELS (STRATTON HOUSE) LTD,11007287,50601,126114
Somerset County Council,Adult Social Care,New Codes,Sdg LT Phys Support - FNC,Third Party Payments,Private Contractors & Other Agencies,Purchased Care Services,03.03.2016,1900977726,448.00,ANGELS (STRATTON HOUSE) LTD,11007287,50601,126114
Somerset County Council,Adult Social Care,New Codes,Sdg LT Phys Support - FNC,Third Party Payments,Private Contractors & Other Agencies,Purchased Care Services,03.03.2016,1900977726,448.00,ANGELS (STRATTON HOUSE) LTD,11007287,50601,126114
Somerset County Council,Adult Social Care,Physical Disabilities,ASC SE PD Residential/Nursing Gen2,Third Party Payments,Private Contractors & Other Agencies,Purchased Care Services,03.03.2016,1900977726,7222.86,ANGELS (STRATTON HOUSE) LTD,11007287,50601,108352
Somerset County Council,Adult Social Care,Older People,ASC SE OP EMI Nursing Spot,Third Party Payments,Private Contractors & Other Agencies,Purchased Care Services,03.03.2016,1900977726,-7222.86,ANGELS (STRATTON HOUSE) LTD,11007287,50601,106187
Somerset County Council,Adult Social Care,New Codes,Sdg LT Phys Support - DPA Nursing,Third Party Payments,Private Contractors & Other Agencies,Purchased Care Services,03.03.2016,1900977726,564.29,ANGELS (STRATTON HOUSE) LTD,11007287,50601,129114
Somerset County Council,Adult Social Care,Learning Disabilities,LD-PUR-RS-Comm. Care-SDW,Third Party Payments,Private Contractors & Other Agencies,Purchased Care Services,03.03.2016,1900977487,10724.00,APPLEFORD LTD T/A DANESWOOD,11007254,50601,106708
Somerset County Council,Adult Social Care,Learning Disabilities,LD-PUR-RS-Comm. Care-SDW,Third Party Payments,Private Contractors & Other Agencies,Purchased Care Services,23.03.2016,1900988368,10724.00,APPLEFORD LTD T/A DANESWOOD,11007254,50601,106708
Somerset County Council,Adult Social Care,New Codes,Mdp LT Phys Support - Res Spot,Third Party Payments,Private Contractors & Other Agencies,Purchased Care Services,03.03.2016,1900977448,1829.88,Arcot House Care Home,11039016,50601,121213
Somerset County Council,Adult Social Care,New Codes,Mdp LT Phys Support - Res Spot,Third Party Payments,Private Contractors & Other Agencies,Purchased Care Services,23.03.2016,1900988794,1829.88,Arcot House Care Home,11039016,50601,121213
Somerset County Council,Adult Social Care,New Codes,Sdg LT Phys Support - Nurs Spot,Third Party Payments,Private Contractors & Other Agencies,Purchased Care Services,03.03.2016,1900977730,2297.12,Ashcombe House Care Home,11038050,50601,121114
Somerset County Council,Adult Social Care,New Codes,Sdg LT Phys Support - Nurs Spot,Third Party Payments,Private Contractors & Other Agencies,Purchased Care Services,23.03.2016,1900989084,2297.12,Ashcombe House Care Home,11038050,50601,121114
Somerset County Council,Adult Social Care,Learning Disabilities,LD-PUR-RS-Comm. Care-SDW,Third Party Payments,Private Contractors & Other Agencies,Purchased Care Services,03.03.2016,1900977669,4125.32,Assisted Living South West,11033619,50601,106708
Somerset County Council,Adult Social Care,Learning Disabilities,LD-PUR-RS-Comm. Care-SDW,Third Party Payments,Private Contractors & Other Agencies,Purchased Care Services,23.03.2016,1900988387,4125.32,Assisted Living South West,11033619,50601,106708
Somerset County Council,Adult Social Care,New Codes,Mdp ST Phys Support - ILT,Third Party Payments,Private Contractors & Other Agencies,Purchased Services - Pers Care,04.03.2016,5100768479,514.08,Aster Living,11028441,50603,120813
Somerset County Council,Adult Social Care,Learning Disabilities,LD-PUR-CH-Care at Home-MDP,Third Party Payments,Private Contractors & Other Agencies,Purchased Care Services,04.03.2016,5100768297,2784.32,Aster Living,11028441,50601,107449
Somerset County Council,Adult Social Care,Learning Disabilities,LD-PUR-SH-Supported Housing-MDP,Third Party Payments,Private Contractors & Other Agencies,Purchased Care Services,04.03.2016,5100768298,5948.32,Aster Living,11028441,50601,105266
Somerset County Council,Adult Social Care,Learning Disabilities,LD-PUR-CH-Care at Home-MDP,Third Party Payments,Private Contractors & Other Agencies,Purchased Care Services,04.03.2016,5100768299,2119.88,Aster Living,11028441,50601,107449
Somerset County Council,Adult Social Care,Learning Disabilities,LD-PUR-CH-Care at Home-MDP,Third Party Payments,Private Contractors & Other Agencies,Purchased Care Services,04.03.2016,5100768300,775.18,Aster Living,11028441,50601,107449
Somerset County Council,Adult Social Care,Learning Disabilities,LD-PUR-CH-Care at Home-MDP,Third Party Payments,Private Contractors & Other Agencies,Purchased Care Services,04.03.2016,5100768301,5695.20,Aster Living,11028441,50601,107449
Somerset County Council,Adult Social Care,Older People,ASC ME OP ECH Core,Third Party Payments,Private Contractors & Other Agencies,Purchased Care Services,08.03.2016,5100769116,16794.80,Aster Living,11028441,50601,104330
Somerset County Council,Adult Social Care,New Codes,Mdp LT Phys Support - Day Care,Third Party Payments,Private Contractors & Other Agencies,Purchased Care Services,08.03.2016,5100769117,920.00,Aster Living,11028441,50601,120713
Somerset County Council,Adult Social Care,Older People,ASC ME OP ECH Core,Third Party Payments,Private Contractors & Other Agencies,Purchased Care Services,08.03.2016,5100769118,4506.64,Aster Living,11028441,50601,104330
Somerset County Council,Adult Social Care,Learning Disabilities,LD-PUR-CH-Care at Home-MDP,Third Party Payments,Private Contractors & Other Agencies,Purchased Care Services,08.03.2016,5100768896,8036.56,Aster Living,11028441,50601,107449
Somerset County Council,Adult Social Care,Learning Disabilities,LD-PUR-SH-Supported Housing-MDP,Third Party Payments,Private Contractors & Other Agencies,Purchased Care Services,08.03.2016,5100768897,10581.32,Aster Living,11028441,50601,105266
Somerset County Council,Adult Social Care,Learning Disabilities,LD-PUR-SH-Supported Housing-MDP,Third Party Payments,Private Contractors & Other Agencies,Purchased Care Services,08.03.2016,5100768898,6357.38,Aster Living,11028441,50601,105266
Somerset County Council,Adult Social Care,Learning Disabilities,LD-PUR-SH-Supported Housing-MDP,Third Party Payments,Private Contractors & Other Agencies,Purchased Care Services,08.03.2016,5100768899,29297.23,Aster Living,11028441,50601,105266
Somerset County Council,Adult Social Care,Learning Disabilities,LD-SCC-WP-Future4 Glastonbury-MDP,Premises,Cleaning & Domestic Supplies,Contract Cleaning,14.03.2016,5100770158,476.00,AT YOUR SERVICE,11012922,20703,103846
Somerset County Council,Adult Social Care,Other Adult Services,Care Act,Supplies & Services,Grants & Subscriptions,Grants,14.03.2016,5100770034,5000.00,Autism Somerset,11032762,43000,103418
Somerset County Council,Adult Social Care,Learning Disabilities,LD-PUR-RS-Comm. Care-MDP,Third Party Payments,Private Contractors & Other Agencies,Purchased Care Services,03.03.2016,1900977509,9640.60,Autism Wessex,11006977,50601,106319
Somerset County Council,Adult Social Care,Learning Disabilities,LD-PUR-RS-Comm. Care-STH,Third Party Payments,Private Contractors & Other Agencies,Purchased Care Services,03.03.2016,1900977509,5410.24,Autism Wessex,11006977,50601,106977
Somerset County Council,Adult Social Care,Learning Disabilities,LD-PUR-RS-Comm. Care-STH,Third Party Payments,Private Contractors & Other Agencies,Purchased Care Services,23.03.2016,1900988316,5410.24,Autism Wessex,11006977,50601,106977
Somerset County Council,Adult Social Care,Learning Disabilities,LD-PUR-RS-Comm. Care-MDP,Third Party Payments,Private Contractors & Other Agencies,Purchased Care Services,23.03.2016,1900988316,9640.60,Autism Wessex,11006977,50601,106319
Somerset County Council,Adult Social Care,New Codes,Mdp LT Phys Support - Res Spot,Third Party Payments,Private Contractors & Other Agencies,Purchased Care Services,23.03.2016,1900988741,1829.88,AVALON COURT,11007310,50601,121213
Somerset County Council,Adult Social Care,New Codes,Mdp LT Phys Support - Res Spot,Third Party Payments,Private Contractors & Other Agencies,Purchased Care Services,23.03.2016,1900988741,1829.88,AVALON COURT,11007310,50601,121213
Somerset County Council,Adult Social Care,New Codes,Mdp LT Phys Support - Res Spot,Third Party Payments,Private Contractors & Other Agencies,Purchased Care Services,23.03.2016,1900988741,1829.88,AVALON COURT,11007310,50601,121213
Somerset County Council,Adult Social Care,New Codes,Mdp LT Phys Support - Res Spot,Third Party Payments,Private Contractors & Other Agencies,Purchased Care Services,23.03.2016,1900988741,1829.88,AVALON COURT,11007310,50601,121213
Somerset County Council,Adult Social Care,New Codes,Mdp LT Phys Support - Res Spot,Third Party Payments,Private Contractors & Other Agencies,Purchased Care Services,23.03.2016,1900988741,1829.88,AVALON COURT,11007310,50601,121213
Somerset County Council,Adult Social Care,New Codes,Mdp ST Phys Support - Interim & Intermed,Third Party Payments,Private Contractors & Other Agencies,Purchased Care Services,23.03.2016,1900988741,1214.54,AVALON COURT,11007310,50601,121913
Somerset County Council,Adult Social Care,New Codes,Mdp LT Phys Support - Res Spot,Third Party Payments,Private Contractors & Other Agencies,Purchased Care Services,23.03.2016,1900988741,1503.12,AVALON COURT,11007310,50601,121213
Somerset County Council,Adult Social Care,New Codes,SSom LT Phys Support - Res Spot,Third Party Payments,Private Contractors & Other Agencies,Purchased Care Services,23.03.2016,1900988741,1829.88,AVALON COURT,11007310,50601,121215
Somerset County Council,Adult Social Care,New Codes,Mdp ST Phys Support - Interim & Intermed,Third Party Payments,Private Contractors & Other Agencies,Purchased Care Services,23.03.2016,1900988741,674.74,AVALON COURT,11007310,50601,121913
Somerset County Council,Adult Social Care,New Codes,Mdp LT Phys Support - Res Spot,Third Party Payments,Private Contractors & Other Agencies,Purchased Care Services,23.03.2016,1900988741,65.35,AVALON COURT,11007310,50601,121213
Somerset County Council,Adult Social Care,New Codes,Mdp LT Phys Support - Res Spot,Third Party Payments,Private Contractors & Other Agencies,Purchased Care Services,23.03.2016,1900988741,1829.88,AVALON COURT,11007310,50601,121213
Somerset County Council,Adult Social Care,New Codes,Mdp ST Phys Support - Respite,Third Party Payments,Private Contractors & Other Agencies,Purchased Care Services,03.03.2016,1900977414,196.06,AVALON COURT,11007310,50601,120913
Somerset County Council,Adult Social Care,New Codes,Mdp LT Phys Support - Res Spot,Third Party Payments,Private Contractors & Other Agencies,Purchased Care Services,03.03.2016,1900977414,457.47,AVALON COURT,11007310,50601,121213
Somerset County Council,Adult Social Care,New Codes,Mdp ST Phys Support - Respite,Third Party Payments,Private Contractors & Other Agencies,Purchased Care Services,03.03.2016,1900977414,457.47,AVALON COURT,11007310,50601,120913
Somerset County Council,Adult Social Care,New Codes,SSom LT Phys Support - Res Spot,Third Party Payments,Private Contractors & Other Agencies,Purchased Care Services,03.03.2016,1900977414,1829.88,AVALON COURT,11007310,50601,121215
Somerset County Council,Adult Social Care,New Codes,Mdp LT Phys Support - Res Spot,Third Party Payments,Private Contractors & Other Agencies,Purchased Care Services,03.03.2016,1900977414,1829.88,AVALON COURT,11007310,50601,121213
Somerset County Council,Adult Social Care,New Codes,Mdp LT Phys Support - Res Spot,Third Party Payments,Private Contractors & Other Agencies,Purchased Care Services,03.03.2016,1900977414,1829.88,AVALON COURT,11007310,50601,121213
Somerset County Council,Adult Social Care,New Codes,Mdp LT Phys Support - Res Spot,Third Party Payments,Private Contractors & Other Agencies,Purchased Care Services,03.03.2016,1900977414,1829.88,AVALON COURT,11007310,50601,121213
Somerset County Council,Adult Social Care,New Codes,Mdp LT Phys Support - Res Spot,Third Party Payments,Private Contractors & Other Agencies,Purchased Care Services,03.03.2016,1900977414,1829.88,AVALON COURT,11007310,50601,121213
Somerset County Council,Adult Social Care,New Codes,Mdp LT Phys Support - Res Spot,Third Party Payments,Private Contractors & Other Agencies,Purchased Care Services,03.03.2016,1900977414,1829.88,AVALON COURT,11007310,50601,121213
Somerset County Council,Adult Social Care,New Codes,Mdp LT Phys Support - Nurs OPMH Spot,Third Party Payments,Private Contractors & Other Agencies,Purchased Care Services,03.03.2016,1900977727,1889.28,Avalon Nursing Home,11038967,50601,123113
Somerset County Council,Adult Social Care,New Codes,Sdg LT Phys Support - FNC,Third Party Payments,Private Contractors & Other Agencies,Purchased Care Services,03.03.2016,1900977727,1296.00,Avalon Nursing Home,11038967,50601,126114
Somerset County Council,Adult Social Care,New Codes,Sdg ST Phys Support - Admission Avoid,Third Party Payments,Private Contractors & Other Agencies,Purchased Care Services,03.03.2016,1900977727,1140.51,Avalon Nursing Home,11038967,50601,123914
Somerset County Council,Adult Social Care,New Codes,Sdg ST Phys Support - Respite,Third Party Payments,Private Contractors & Other Agencies,Purchased Care Services,03.03.2016,1900977727,1219.43,Avalon Nursing Home,11038967,50601,120914
Somerset County Council,Adult Social Care,New Codes,Mdp LT Phys Support - Nurs OPMH Spot,Third Party Payments,Private Contractors & Other Agencies,Purchased Care Services,03.03.2016,1900977727,850.00,Avalon Nursing Home,11038967,50601,123113
Somerset County Council,Adult Social Care,New Codes,SSom ST Phys Support - Respite,Third Party Payments,Private Contractors & Other Agencies,Purchased Care Services,03.03.2016,1900977727,1004.24,Avalon Nursing Home,11038967,50601,120915
Somerset County Council,Adult Social Care,New Codes,Sdg LT Phys Support - FNC,Third Party Payments,Private Contractors & Other Agencies,Purchased Care Services,03.03.2016,1900977727,464.00,Avalon Nursing Home,11038967,50601,126114
Somerset County Council,Adult Social Care,New Codes,Mdp LT Phys Support - FNC,Third Party Payments,Private Contractors & Other Agencies,Purchased Care Services,03.03.2016,1900977727,448.00,Avalon Nursing Home,11038967,50601,126113
Somerset County Council,Adult Social Care,New Codes,Sdg LT Phys Support - FNC,Third Party Payments,Private Contractors & Other Agencies,Purchased Care Services,03.03.2016,1900977727,448.00,Avalon Nursing Home,11038967,50601,126114
Somerset County Council,Adult Social Care,New Codes,Mdp LT Phys Support - FNC,Third Party Payments,Private Contractors & Other Agencies,Purchased Care Services,03.03.2016,1900977727,448.00,Avalon Nursing Home,11038967,50601,126113
Somerset County Council,Adult Social Care,New Codes,Sdg LT Phys Support - FNC,Third Party Payments,Private Contractors & Other Agencies,Purchased Care Services,03.03.2016,1900977727,448.00,Avalon Nursing Home,11038967,50601,126114
Somerset County Council,Adult Social Care,New Codes,Mdp LT Phys Support - FNC,Third Party Payments,Private Contractors & Other Agencies,Purchased Care Services,03.03.2016,1900977727,448.00,Avalon Nursing Home,11038967,50601,126113
Somerset County Council,Adult Social Care,New Codes,Sdg LT Phys Support - FNC,Third Party Payments,Private Contractors & Other Agencies,Purchased Care Services,03.03.2016,1900977727,448.00,Avalon Nursing Home,11038967,50601,126114
Somerset County Council,Adult Social Care,New Codes,Mdp LT Phys Support - Nurs OPMH Spot,Third Party Payments,Private Contractors & Other Agencies,Purchased Care Services,03.03.2016,1900977727,502.12,Avalon Nursing Home,11038967,50601,123113
Somerset County Council,Adult Social Care,New Codes,Mdp LT Phys Support - Nurs OPMH Spot,Third Party Payments,Private Contractors & Other Agencies,Purchased Care Services,03.03.2016,1900977727,472.32,Avalon Nursing Home,11038967,50601,123113
Somerset County Council,Adult Social Care,New Codes,Sdg LT Phys Support - FNC,Third Party Payments,Private Contractors & Other Agencies,Purchased Care Services,03.03.2016,1900977727,272.00,Avalon Nursing Home,11038967,50601,126114
Somerset County Council,Adult Social Care,New Codes,SSom LT Phys Support - FNC,Third Party Payments,Private Contractors & Other Agencies,Purchased Care Services,03.03.2016,1900977727,224.00,Avalon Nursing Home,11038967,50601,126115
Somerset County Council,Adult Social Care,New Codes,Mdp LT Phys Support - Nurs OPMH Spot,Third Party Payments,Private Contractors & Other Agencies,Purchased Care Services,03.03.2016,1900977727,161.77,Avalon Nursing Home,11038967,50601,123113
Somerset County Council,Adult Social Care,New Codes,Mdp LT Phys Support - FNC,Third Party Payments,Private Contractors & Other Agencies,Purchased Care Services,03.03.2016,1900977727,112.00,Avalon Nursing Home,11038967,50601,126113
Somerset County Council,Adult Social Care,New Codes,Sdg LT Phys Support - FNC,Third Party Payments,Private Contractors & Other Agencies,Purchased Care Services,03.03.2016,1900977727,112.00,Avalon Nursing Home,11038967,50601,126114
Somerset County Council,Adult Social Care,New Codes,Mdp LT Phys Support - FNC,Third Party Payments,Private Contractors & Other Agencies,Purchased Care Services,03.03.2016,1900977727,112.00,Avalon Nursing Home,11038967,50601,126113
Somerset County Council,Adult Social Care,New Codes,Sdg LT Phys Support - FNC,Third Party Payments,Private Contractors & Other Agencies,Purchased Care Services,03.03.2016,1900977727,112.00,Avalon Nursing Home,11038967,50601,126114
Somerset County Council,Adult Social Care,New Codes,Mdp LT Phys Support - FNC,Third Party Payments,Private Contractors & Other Agencies,Purchased Care Services,03.03.2016,1900977727,112.00,Avalon Nursing Home,11038967,50601,126113
Somerset County Council,Adult Social Care,New Codes,Sdg LT Phys Support - FNC,Third Party Payments,Private Contractors & Other Agencies,Purchased Care Services,03.03.2016,1900977727,112.00,Avalon Nursing Home,11038967,50601,126114
Somerset County Council,Adult Social Care,New Codes,Sdg LT Phys Support - FNC,Third Party Payments,Private Contractors & Other Agencies,Purchased Care Services,03.03.2016,1900977727,112.00,Avalon Nursing Home,11038967,50601,126114
Somerset County Council,Adult Social Care,New Codes,Mdp LT Phys Support - Nurs OPMH Spot,Third Party Payments,Private Contractors & Other Agencies,Purchased Care Services,03.03.2016,1900977727,87.73,Avalon Nursing Home,11038967,50601,123113
Somerset County Council,Adult Social Care,New Codes,Sdg ST Phys Support - Plaster of Paris,Third Party Payments,Private Contractors & Other Agencies,Purchased Care Services,03.03.2016,1900977727,3012.72,Avalon Nursing Home,11038967,50601,122914
Somerset County Council,Adult Social Care,Older People,ASC SE OP Plaster of Paris Beds,Third Party Payments,Private Contractors & Other Agencies,Purchased Care Services,03.03.2016,1900977727,-3012.72,Avalon Nursing Home,11038967,50601,108283
Somerset County Council,Adult Social Care,New Codes,Mdp LT Phys Support - Nurs OPMH Spot,Third Party Payments,Private Contractors & Other Agencies,Purchased Care Services,03.03.2016,1900977727,-71.73,Avalon Nursing Home,11038967,50601,123113
Somerset County Council,Adult Social Care,New Codes,Mdp LT Phys Support - Nurs OPMH Spot,Third Party Payments,Private Contractors & Other Agencies,Purchased Care Services,03.03.2016,1900977727,-121.43,Avalon Nursing Home,11038967,50601,123113
Somerset County Council,Adult Social Care,New Codes,Mdp LT Phys Support - Nurs OPMH Spot,Third Party Payments,Private Contractors & Other Agencies,Purchased Care Services,03.03.2016,1900977727,1889.28,Avalon Nursing Home,11038967,50601,123113
Somerset County Council,Adult Social Care,New Codes,Mdp LT Phys Support - Nurs Spot,Third Party Payments,Private Contractors & Other Agencies,Purchased Care Services,23.03.2016,1900989208,7084.80,Avalon Nursing Home,11038967,50601,121113
Somerset County Council,Adult Social Care,New Codes,Mdp LT Phys Support - Nurs Spot,Third Party Payments,Private Contractors & Other Agencies,Purchased Care Services,23.03.2016,1900989208,7084.80,Avalon Nursing Home,11038967,50601,121113
Somerset County Council,Adult Social Care,New Codes,Mdp LT Phys Support - Nurs OPMH Spot,Third Party Payments,Private Contractors & Other Agencies,Purchased Care Services,23.03.2016,1900989208,2550.00,Avalon Nursing Home,11038967,50601,123113
Somerset County Council,Adult Social Care,New Codes,Mdp LT Phys Support - Nurs OPMH Spot,Third Party Payments,Private Contractors & Other Agencies,Purchased Care Services,23.03.2016,1900989208,3158.33,Avalon Nursing Home,11038967,50601,123113
Somerset County Council,Adult Social Care,New Codes,Sdg LT Phys Support - FNC,Third Party Payments,Private Contractors & Other Agencies,Purchased Care Services,23.03.2016,1900989208,1680.00,Avalon Nursing Home,11038967,50601,126114
Somerset County Council,Adult Social Care,New Codes,Mdp LT Phys Support - Nurs OPMH Spot,Third Party Payments,Private Contractors & Other Agencies,Purchased Care Services,23.03.2016,1900989208,1842.36,Avalon Nursing Home,11038967,50601,123113
Somerset County Council,Adult Social Care,New Codes,Mdp LT Phys Support - Nurs Spot,Third Party Payments,Private Contractors & Other Agencies,Purchased Care Services,23.03.2016,1900989208,1416.96,Avalon Nursing Home,11038967,50601,121113
Somerset County Council,Adult Social Care,New Codes,Mdp LT Phys Support - Nurs OPMH Spot,Third Party Payments,Private Contractors & Other Agencies,Purchased Care Services,23.03.2016,1900989208,1506.36,Avalon Nursing Home,11038967,50601,123113
Somerset County Council,Adult Social Care,New Codes,Mdp LT Phys Support - FNC,Third Party Payments,Private Contractors & Other Agencies,Purchased Care Services,23.03.2016,1900989208,896.00,Avalon Nursing Home,11038967,50601,126113
Somerset County Council,Adult Social Care,New Codes,Mdp LT Phys Support - Nurs OPMH Spot,Third Party Payments,Private Contractors & Other Agencies,Purchased Care Services,23.03.2016,1900989208,1147.70,Avalon Nursing Home,11038967,50601,123113
Somerset County Council,Adult Social Care,New Codes,Mdp LT Phys Support - Nurs OPMH Spot,Third Party Payments,Private Contractors & Other Agencies,Purchased Care Services,23.03.2016,1900989208,769.77,Avalon Nursing Home,11038967,50601,123113
Somerset County Council,Adult Social Care,New Codes,Sdg LT Phys Support - FNC,Third Party Payments,Private Contractors & Other Agencies,Purchased Care Services,23.03.2016,1900989208,672.00,Avalon Nursing Home,11038967,50601,126114
Somerset County Council,Adult Social Care,New Codes,Mdp LT Phys Support - FNC,Third Party Payments,Private Contractors & Other Agencies,Purchased Care Services,23.03.2016,1900989208,336.00,Avalon Nursing Home,11038967,50601,126113
Somerset County Council,Adult Social Care,New Codes,Sdg LT Phys Support - FNC,Third Party Payments,Private Contractors & Other Agencies,Purchased Care Services,23.03.2016,1900989208,336.00,Avalon Nursing Home,11038967,50601,126114
Somerset County Council,Adult Social Care,New Codes,Mdp LT Phys Support - FNC,Third Party Payments,Private Contractors & Other Agencies,Purchased Care Services,23.03.2016,1900989208,336.00,Avalon Nursing Home,11038967,50601,126113
Somerset County Council,Adult Social Care,New Codes,Sdg LT Phys Support - FNC,Third Party Payments,Private Contractors & Other Agencies,Purchased Care Services,23.03.2016,1900989208,336.00,Avalon Nursing Home,11038967,50601,126114
Somerset County Council,Adult Social Care,New Codes,Mdp LT Phys Support - FNC,Third Party Payments,Private Contractors & Other Agencies,Purchased Care Services,23.03.2016,1900989208,336.00,Avalon Nursing Home,11038967,50601,126113
Somerset County Council,Adult Social Care,New Codes,Sdg LT Phys Support - FNC,Third Party Payments,Private Contractors & Other Agencies,Purchased Care Services,23.03.2016,1900989208,336.00,Avalon Nursing Home,11038967,50601,126114
Somerset County Council,Adult Social Care,New Codes,Mdp LT Phys Support - FNC,Third Party Payments,Private Contractors & Other Agencies,Purchased Care Services,23.03.2016,1900989208,336.00,Avalon Nursing Home,11038967,50601,126113
Somerset County Council,Adult Social Care,New Codes,Sdg LT Phys Support - FNC,Third Party Payments,Private Contractors & Other Agencies,Purchased Care Services,23.03.2016,1900989208,336.00,Avalon Nursing Home,11038967,50601,126114
Somerset County Council,Adult Social Care,New Codes,Sdg LT Phys Support - FNC,Third Party Payments,Private Contractors & Other Agencies,Purchased Care Services,23.03.2016,1900989208,336.00,Avalon Nursing Home,11038967,50601,126114
Somerset County Council,Adult Social Care,New Codes,Sdg LT Phys Support - FNC,Third Party Payments,Private Contractors & Other Agencies,Purchased Care Services,23.03.2016,1900989208,336.00,Avalon Nursing Home,11038967,50601,126114
Somerset County Council,Adult Social Care,New Codes,Sdg LT Phys Support - FNC,Third Party Payments,Private Contractors & Other Agencies,Purchased Care Services,23.03.2016,1900989208,304.00,Avalon Nursing Home,11038967,50601,126114
Somerset County Council,Adult Social Care,New Codes,Mdp LT Phys Support - Nurs OPMH Spot,Third Party Payments,Private Contractors & Other Agencies,Purchased Care Services,23.03.2016,1900989208,-1147.70,Avalon Nursing Home,11038967,50601,123113
Somerset County Council,Adult Social Care,New Codes,Mdp LT Phys Support - Nurs OPMH Spot,Third Party Payments,Private Contractors & Other Agencies,Purchased Care Services,23.03.2016,1900989208,-3246.06,Avalon Nursing Home,11038967,50601,123113
Somerset County Council,Adult Social Care,New Codes,Mdp LT Phys Support - Nurs Spot,Third Party Payments,Private Contractors & Other Agencies,Purchased Care Services,23.03.2016,1900989208,-7084.80,Avalon Nursing Home,11038967,50601,121113
Somerset County Council,Adult Social Care,New Codes,Sdg LT Phys Support - Nurs OPMH Block,Third Party Payments,Private Contractors & Other Agencies,Purchased Care Services,23.03.2016,1900989201,35577.60,Avalon Nursing Home,11038967,50601,122114
Somerset County Council,Adult Social Care,Older People,ASC SE OP EMI Nursing Block,Third Party Payments,Private Contractors & Other Agencies,Purchased Care Services,23.03.2016,1900989201,3012.72,Avalon Nursing Home,11038967,50601,104238
Somerset County Council,Adult Social Care,Older People,ASC SE OP EMI Nursing Block,Third Party Payments,Private Contractors & Other Agencies,Purchased Care Services,23.03.2016,1900989201,2008.48,Avalon Nursing Home,11038967,50601,104238
Somerset County Council,Adult Social Care,New Codes,Mdp LT Phys Support - Nurs OPMH Spot,Third Party Payments,Private Contractors & Other Agencies,Purchased Care Services,03.03.2016,1900977727,3400.00,Avalon Nursing Home,11038967,50601,123113
Somerset County Council,Adult Social Care,New Codes,Mdp LT Sens Support - FNC,Third Party Payments,Private Contractors & Other Agencies,Purchased Care Services,03.03.2016,1900977484,448.00,AVON CARE HOMES LTD,11007063,50601,126123
Somerset County Council,Adult Social Care,New Codes,Mdp LT Phys Support - FNC,Third Party Payments,Private Contractors & Other Agencies,Purchased Care Services,03.03.2016,1900977484,448.00,AVON CARE HOMES LTD,11007063,50601,126113
Somerset County Council,Adult Social Care,New Codes,Mdp ST Phys Support - Interim & Intermed,Third Party Payments,Private Contractors & Other Agencies,Purchased Care Services,03.03.2016,1900977484,742.69,AVON CARE HOMES LTD,11007063,50601,121913
Somerset County Council,Adult Social Care,New Codes,Mdp LT Mem Support - Nurs Spot,Third Party Payments,Private Contractors & Other Agencies,Purchased Care Services,03.03.2016,1900977484,1889.28,AVON CARE HOMES LTD,11007063,50601,121133
Somerset County Council,Adult Social Care,New Codes,Mdp LT Phys Support - Res Spot,Third Party Payments,Private Contractors & Other Agencies,Purchased Care Services,03.03.2016,1900977484,1829.88,AVON CARE HOMES LTD,11007063,50601,121213
Somerset County Council,Adult Social Care,New Codes,Mdp LT Phys Support - Nurs Spot,Third Party Payments,Private Contractors & Other Agencies,Purchased Care Services,03.03.2016,1900977484,1889.28,AVON CARE HOMES LTD,11007063,50601,121113
Somerset County Council,Adult Social Care,New Codes,Mdp LT Phys Support - Res Spot,Third Party Payments,Private Contractors & Other Agencies,Purchased Care Services,03.03.2016,1900977484,1829.88,AVON CARE HOMES LTD,11007063,50601,121213
Somerset County Council,Adult Social Care,New Codes,Mdp LT Sens Support - Nurs Spot,Third Party Payments,Private Contractors & Other Agencies,Purchased Care Services,03.03.2016,1900977484,1889.28,AVON CARE HOMES LTD,11007063,50601,121123
Somerset County Council,Adult Social Care,New Codes,Mdp LT Phys Support - Res Spot,Third Party Payments,Private Contractors & Other Agencies,Purchased Care Services,03.03.2016,1900977484,1829.88,AVON CARE HOMES LTD,11007063,50601,121213
Somerset County Council,Adult Social Care,New Codes,Mdp LT Phys Support - Nurs Spot,Third Party Payments,Private Contractors & Other Agencies,Purchased Care Services,03.03.2016,1900977484,1889.28,AVON CARE HOMES LTD,11007063,50601,121113
Somerset County Council,Adult Social Care,New Codes,Mdp LT Phys Support - Nurs Spot,Third Party Payments,Private Contractors & Other Agencies,Purchased Care Services,03.03.2016,1900977484,1889.28,AVON CARE HOMES LTD,11007063,50601,121113
Somerset County Council,Adult Social Care,New Codes,Mdp LT Phys Support - Nurs Spot,Third Party Payments,Private Contractors & Other Agencies,Purchased Care Services,03.03.2016,1900977484,1889.28,AVON CARE HOMES LTD,11007063,50601,121113
Somerset County Council,Adult Social Care,New Codes,Mdp LT Phys Support - Res Spot,Third Party Payments,Private Contractors & Other Agencies,Purchased Care Services,03.03.2016,1900977484,1676.84,AVON CARE HOMES LTD,11007063,50601,121213
Somerset County Council,Adult Social Care,New Codes,Mdp LT Phys Support - Nurs Spot,Third Party Payments,Private Contractors & Other Agencies,Purchased Care Services,03.03.2016,1900977484,1889.28,AVON CARE HOMES LTD,11007063,50601,121113
Somerset County Council,Adult Social Care,New Codes,Mdp ST Phys Support - Admission Avoid,Third Party Payments,Private Contractors & Other Agencies,Purchased Care Services,03.03.2016,1900977484,1414.29,AVON CARE HOMES LTD,11007063,50601,123913
Somerset County Council,Adult Social Care,New Codes,Mdp ST Phys Support - Respite,Third Party Payments,Private Contractors & Other Agencies,Purchased Care Services,03.03.2016,1900977484,1551.91,AVON CARE HOMES LTD,11007063,50601,120913
Somerset County Council,Adult Social Care,New Codes,Mdp ST Phys Support - Respite,Third Party Payments,Private Contractors & Other Agencies,Purchased Care Services,03.03.2016,1900977484,1889.28,AVON CARE HOMES LTD,11007063,50601,120913
Somerset County Council,Adult Social Care,New Codes,Mdp LT Phys Support - Nurs Spot,Third Party Payments,Private Contractors & Other Agencies,Purchased Care Services,03.03.2016,1900977484,1889.28,AVON CARE HOMES LTD,11007063,50601,121113
Somerset County Council,Adult Social Care,New Codes,Mdp LT Phys Support - Nurs Spot,Third Party Payments,Private Contractors & Other Agencies,Purchased Care Services,03.03.2016,1900977484,1889.28,AVON CARE HOMES LTD,11007063,50601,121113
Somerset County Council,Adult Social Care,New Codes,Mdp LT Mem Support - Nurs Spot,Third Party Payments,Private Contractors & Other Agencies,Purchased Care Services,03.03.2016,1900977484,1889.28,AVON CARE HOMES LTD,11007063,50601,121133
Somerset County Council,Adult Social Care,New Codes,Mdp LT Phys Support - FNC,Third Party Payments,Private Contractors & Other Agencies,Purchased Care Services,03.03.2016,1900977484,2448.00,AVON CARE HOMES LTD,11007063,50601,126113
Somerset County Council,Adult Social Care,New Codes,Sdg ST Phys Support - Plaster of Paris,Third Party Payments,Private Contractors & Other Agencies,Purchased Care Services,03.03.2016,1900977484,5828.57,AVON CARE HOMES LTD,11007063,50601,122914
Somerset County Council,Adult Social Care,New Codes,Mdp LT Phys Support - Nurs Block,Third Party Payments,Private Contractors & Other Agencies,Purchased Care Services,23.03.2016,1900988300,3937.28,AVON CARE HOMES LTD,11007063,50601,120113
Somerset County Council,Adult Social Care,New Codes,Mdp ST Phys Support - Interim & Intermed,Third Party Payments,Private Contractors & Other Agencies,Purchased Care Services,23.03.2016,1900988715,-202.55,AVON CARE HOMES LTD,11007063,50601,121913
Somerset County Council,Adult Social Care,New Codes,Mdp LT Phys Support - FNC,Third Party Payments,Private Contractors & Other Agencies,Purchased Care Services,23.03.2016,1900988715,16.00,AVON CARE HOMES LTD,11007063,50601,126113
Somerset County Council,Adult Social Care,New Codes,Mdp LT Phys Support - FNC,Third Party Payments,Private Contractors & Other Agencies,Purchased Care Services,03.03.2016,1900977484,448.00,AVON CARE HOMES LTD,11007063,50601,126113
Somerset County Council,Adult Social Care,New Codes,Mdp LT Phys Support - FNC,Third Party Payments,Private Contractors & Other Agencies,Purchased Care Services,03.03.2016,1900977484,16.00,AVON CARE HOMES LTD,11007063,50601,126113
Somerset County Council,Adult Social Care,New Codes,Mdp ST Phys Support - Respite,Third Party Payments,Private Contractors & Other Agencies,Purchased Care Services,03.03.2016,1900977484,67.47,AVON CARE HOMES LTD,11007063,50601,120913
Somerset County Council,Adult Social Care,New Codes,Mdp LT Phys Support - FNC,Third Party Payments,Private Contractors & Other Agencies,Purchased Care Services,03.03.2016,1900977484,64.00,AVON CARE HOMES LTD,11007063,50601,126113
Somerset County Council,Adult Social Care,New Codes,Sdg ST Phys Support - Plaster of Paris,Third Party Payments,Private Contractors & Other Agencies,Purchased Care Services,03.03.2016,1900977484,85.71,AVON CARE HOMES LTD,11007063,50601,122914
Somerset County Council,Adult Social Care,New Codes,Mdp ST Phys Support - Interim & Intermed,Third Party Payments,Private Contractors & Other Agencies,Purchased Care Services,03.03.2016,1900977484,202.55,AVON CARE HOMES LTD,11007063,50601,121913
Somerset County Council,Adult Social Care,New Codes,Mdp ST Phys Support - Respite,Third Party Payments,Private Contractors & Other Agencies,Purchased Care Services,03.03.2016,1900977484,269.90,AVON CARE HOMES LTD,11007063,50601,120913
Somerset County Council,Adult Social Care,New Codes,Mdp LT Phys Support - FNC,Third Party Payments,Private Contractors & Other Agencies,Purchased Care Services,03.03.2016,1900977484,304.00,AVON CARE HOMES LTD,11007063,50601,126113
Somerset County Council,Adult Social Care,New Codes,Mdp LT Phys Support - FNC,Third Party Payments,Private Contractors & Other Agencies,Purchased Care Services,03.03.2016,1900977484,384.00,AVON CARE HOMES LTD,11007063,50601,126113
Somerset County Council,Adult Social Care,New Codes,Mdp LT Phys Support - FNC,Third Party Payments,Private Contractors & Other Agencies,Purchased Care Services,03.03.2016,1900977484,448.00,AVON CARE HOMES LTD,11007063,50601,126113
Somerset County Council,Adult Social Care,New Codes,Mdp LT Phys Support - FNC,Third Party Payments,Private Contractors & Other Agencies,Purchased Care Services,03.03.2016,1900977484,448.00,AVON CARE HOMES LTD,11007063,50601,126113
Somerset County Council,Adult Social Care,New Codes,Mdp LT Phys Support - FNC,Third Party Payments,Private Contractors & Other Agencies,Purchased Care Services,03.03.2016,1900977484,448.00,AVON CARE HOMES LTD,11007063,50601,126113
Somerset County Council,Adult Social Care,New Codes,Mdp LT Phys Support - FNC,Third Party Payments,Private Contractors & Other Agencies,Purchased Care Services,03.03.2016,1900977484,448.00,AVON CARE HOMES LTD,11007063,50601,126113
Somerset County Council,Adult Social Care,New Codes,Mdp LT Phys Support - FNC,Third Party Payments,Private Contractors & Other Agencies,Purchased Care Services,03.03.2016,1900977484,448.00,AVON CARE HOMES LTD,11007063,50601,126113
Somerset County Council,Adult Social Care,New Codes,Mdp LT Phys Support - FNC,Third Party Payments,Private Contractors & Other Agencies,Purchased Care Services,03.03.2016,1900977484,448.00,AVON CARE HOMES LTD,11007063,50601,126113
Somerset County Council,Adult Social Care,New Codes,Mdp LT Phys Support - FNC,Third Party Payments,Private Contractors & Other Agencies,Purchased Care Services,03.03.2016,1900977484,448.00,AVON CARE HOMES LTD,11007063,50601,126113
Somerset County Council,Adult Social Care,New Codes,Mdp LT Phys Support - FNC,Third Party Payments,Private Contractors & Other Agencies,Purchased Care Services,03.03.2016,1900977484,448.00,AVON CARE HOMES LTD,11007063,50601,126113
Somerset County Council,Adult Social Care,New Codes,Mdp LT Phys Support - FNC,Third Party Payments,Private Contractors & Other Agencies,Purchased Care Services,03.03.2016,1900977484,448.00,AVON CARE HOMES LTD,11007063,50601,126113
Somerset County Council,Adult Social Care,New Codes,Mdp LT Phys Support - FNC,Third Party Payments,Private Contractors & Other Agencies,Purchased Care Services,03.03.2016,1900977484,448.00,AVON CARE HOMES LTD,11007063,50601,126113
Somerset County Council,Adult Social Care,New Codes,Mdp LT Phys Support - FNC,Third Party Payments,Private Contractors & Other Agencies,Purchased Care Services,03.03.2016,1900977484,448.00,AVON CARE HOMES LTD,11007063,50601,126113
Somerset County Council,Adult Social Care,New Codes,Mdp LT Phys Support - FNC,Third Party Payments,Private Contractors & Other Agencies,Purchased Care Services,03.03.2016,1900977484,448.00,AVON CARE HOMES LTD,11007063,50601,126113
Somerset County Council,Adult Social Care,New Codes,Mdp LT Phys Support - FNC,Third Party Payments,Private Contractors & Other Agencies,Purchased Care Services,03.03.2016,1900977484,448.00,AVON CARE HOMES LTD,11007063,50601,126113
Somerset County Council,Adult Social Care,New Codes,Mdp LT Phys Support - FNC,Third Party Payments,Private Contractors & Other Agencies,Purchased Care Services,03.03.2016,1900977484,448.00,AVON CARE HOMES LTD,11007063,50601,126113
Somerset County Council,Adult Social Care,New Codes,Mdp LT Phys Support - FNC,Third Party Payments,Private Contractors & Other Agencies,Purchased Care Services,03.03.2016,1900977484,448.00,AVON CARE HOMES LTD,11007063,50601,126113
Somerset County Council,Adult Social Care,New Codes,Mdp LT Mem Support - FNC,Third Party Payments,Private Contractors & Other Agencies,Purchased Care Services,03.03.2016,1900977484,448.00,AVON CARE HOMES LTD,11007063,50601,126133
Somerset County Council,Adult Social Care,New Codes,Mdp LT Mem Support - FNC,Third Party Payments,Private Contractors & Other Agencies,Purchased Care Services,03.03.2016,1900977484,448.00,AVON CARE HOMES LTD,11007063,50601,126133
Somerset County Council,Adult Social Care,New Codes,Mdp ST Phys Support - Respite,Third Party Payments,Private Contractors & Other Agencies,Purchased Care Services,23.03.2016,1900988715,67.47,AVON CARE HOMES LTD,11007063,50601,120913
Somerset County Council,Adult Social Care,New Codes,Mdp LT Sens Support - FNC,Third Party Payments,Private Contractors & Other Agencies,Purchased Care Services,23.03.2016,1900988715,448.00,AVON CARE HOMES LTD,11007063,50601,126123
Somerset County Council,Adult Social Care,New Codes,Mdp LT Phys Support - FNC,Third Party Payments,Private Contractors & Other Agencies,Purchased Care Services,23.03.2016,1900988715,448.00,AVON CARE HOMES LTD,11007063,50601,126113
Somerset County Council,Adult Social Care,New Codes,Mdp LT Phys Support - FNC,Third Party Payments,Private Contractors & Other Agencies,Purchased Care Services,23.03.2016,1900988715,448.00,AVON CARE HOMES LTD,11007063,50601,126113
Somerset County Council,Adult Social Care,New Codes,Mdp LT Phys Support - Nurs Spot,Third Party Payments,Private Contractors & Other Agencies,Purchased Care Services,23.03.2016,1900988715,809.69,AVON CARE HOMES LTD,11007063,50601,121113
Somerset County Council,Adult Social Care,New Codes,Mdp ST Phys Support - Admission Avoid,Third Party Payments,Private Contractors & Other Agencies,Purchased Care Services,23.03.2016,1900988715,642.86,AVON CARE HOMES LTD,11007063,50601,123913
Somerset County Council,Adult Social Care,New Codes,Mdp ST Phys Support - Respite,Third Party Payments,Private Contractors & Other Agencies,Purchased Care Services,23.03.2016,1900988715,674.74,AVON CARE HOMES LTD,11007063,50601,120913
Somerset County Council,Adult Social Care,New Codes,Mdp LT Phys Support - Nurs Spot,Third Party Payments,Private Contractors & Other Agencies,Purchased Care Services,23.03.2016,1900988715,944.64,AVON CARE HOMES LTD,11007063,50601,121113
Somerset County Council,Adult Social Care,New Codes,Mdp LT Phys Support - Nurs Spot,Third Party Payments,Private Contractors & Other Agencies,Purchased Care Services,23.03.2016,1900988715,918.22,AVON CARE HOMES LTD,11007063,50601,121113
Somerset County Council,Adult Social Care,New Codes,Mdp LT Phys Support - Nurs Spot,Third Party Payments,Private Contractors & Other Agencies,Purchased Care Services,23.03.2016,1900988715,1079.59,AVON CARE HOMES LTD,11007063,50601,121113
Somerset County Council,Adult Social Care,New Codes,Mdp LT Phys Support - Nurs Spot,Third Party Payments,Private Contractors & Other Agencies,Purchased Care Services,23.03.2016,1900988715,1147.06,AVON CARE HOMES LTD,11007063,50601,121113
Somerset County Council,Adult Social Care,New Codes,Mdp LT Mem Support - Nurs Spot,Third Party Payments,Private Contractors & Other Agencies,Purchased Care Services,23.03.2016,1900988715,1889.28,AVON CARE HOMES LTD,11007063,50601,121133
Somerset County Council,Adult Social Care,New Codes,Mdp LT Phys Support - Res Spot,Third Party Payments,Private Contractors & Other Agencies,Purchased Care Services,23.03.2016,1900988715,1829.88,AVON CARE HOMES LTD,11007063,50601,121213
Somerset County Council,Adult Social Care,New Codes,Mdp LT Phys Support - Nurs Spot,Third Party Payments,Private Contractors & Other Agencies,Purchased Care Services,23.03.2016,1900988715,1889.28,AVON CARE HOMES LTD,11007063,50601,121113
Somerset County Council,Adult Social Care,New Codes,Mdp LT Phys Support - Res Spot,Third Party Payments,Private Contractors & Other Agencies,Purchased Care Services,23.03.2016,1900988715,1829.88,AVON CARE HOMES LTD,11007063,50601,121213
Somerset County Council,Adult Social Care,New Codes,Mdp LT Sens Support - Nurs Spot,Third Party Payments,Private Contractors & Other Agencies,Purchased Care Services,23.03.2016,1900988715,1889.28,AVON CARE HOMES LTD,11007063,50601,121123
Somerset County Council,Adult Social Care,New Codes,Mdp LT Phys Support - Res Spot,Third Party Payments,Private Contractors & Other Agencies,Purchased Care Services,23.03.2016,1900988715,1829.88,AVON CARE HOMES LTD,11007063,50601,121213
Somerset County Council,Adult Social Care,New Codes,Mdp LT Phys Support - Nurs Spot,Third Party Payments,Private Contractors & Other Agencies,Purchased Care Services,23.03.2016,1900988715,1889.28,AVON CARE HOMES LTD,11007063,50601,121113
Somerset County Council,Adult Social Care,New Codes,Mdp LT Phys Support - Nurs Spot,Third Party Payments,Private Contractors & Other Agencies,Purchased Care Services,23.03.2016,1900988715,1889.28,AVON CARE HOMES LTD,11007063,50601,121113
Somerset County Council,Adult Social Care,New Codes,Mdp LT Phys Support - Nurs Spot,Third Party Payments,Private Contractors & Other Agencies,Purchased Care Services,23.03.2016,1900988715,1889.28,AVON CARE HOMES LTD,11007063,50601,121113
Somerset County Council,Adult Social Care,New Codes,Mdp LT Phys Support - Res Spot,Third Party Payments,Private Contractors & Other Agencies,Purchased Care Services,23.03.2016,1900988715,1676.84,AVON CARE HOMES LTD,11007063,50601,121213
Somerset County Council,Adult Social Care,New Codes,Mdp ST Phys Support - Admission Avoid,Third Party Payments,Private Contractors & Other Agencies,Purchased Care Services,23.03.2016,1900988715,1463.43,AVON CARE HOMES LTD,11007063,50601,123913
Somerset County Council,Adult Social Care,New Codes,Mdp ST Phys Support - Admission Avoid,Third Party Payments,Private Contractors & Other Agencies,Purchased Care Services,23.03.2016,1900988715,1800.00,AVON CARE HOMES LTD,11007063,50601,123913
Somerset County Council,Adult Social Care,New Codes,Mdp LT Phys Support - Nurs Spot,Third Party Payments,Private Contractors & Other Agencies,Purchased Care Services,23.03.2016,1900988715,1889.28,AVON CARE HOMES LTD,11007063,50601,121113
Somerset County Council,Adult Social Care,New Codes,Mdp LT Phys Support - Nurs Spot,Third Party Payments,Private Contractors & Other Agencies,Purchased Care Services,23.03.2016,1900988715,1889.28,AVON CARE HOMES LTD,11007063,50601,121113
Somerset County Council,Adult Social Care,New Codes,Mdp LT Mem Support - Nurs Spot,Third Party Payments,Private Contractors & Other Agencies,Purchased Care Services,23.03.2016,1900988715,1889.28,AVON CARE HOMES LTD,11007063,50601,121133
Somerset County Council,Adult Social Care,New Codes,Mdp LT Phys Support - FNC,Third Party Payments,Private Contractors & Other Agencies,Purchased Care Services,23.03.2016,1900988715,448.00,AVON CARE HOMES LTD,11007063,50601,126113
Somerset County Council,Adult Social Care,New Codes,Mdp LT Phys Support - FNC,Third Party Payments,Private Contractors & Other Agencies,Purchased Care Services,23.03.2016,1900988715,80.00,AVON CARE HOMES LTD,11007063,50601,126113
Somerset County Council,Adult Social Care,New Codes,Mdp LT Phys Support - Nurs Spot,Third Party Payments,Private Contractors & Other Agencies,Purchased Care Services,23.03.2016,1900988715,134.95,AVON CARE HOMES LTD,11007063,50601,121113
Somerset County Council,Adult Social Care,New Codes,Mdp LT Phys Support - FNC,Third Party Payments,Private Contractors & Other Agencies,Purchased Care Services,23.03.2016,1900988715,112.00,AVON CARE HOMES LTD,11007063,50601,126113
Somerset County Council,Adult Social Care,New Codes,Mdp LT Phys Support - FNC,Third Party Payments,Private Contractors & Other Agencies,Purchased Care Services,23.03.2016,1900988715,160.00,AVON CARE HOMES LTD,11007063,50601,126113
Somerset County Council,Adult Social Care,New Codes,Mdp LT Phys Support - FNC,Third Party Payments,Private Contractors & Other Agencies,Purchased Care Services,23.03.2016,1900988715,176.00,AVON CARE HOMES LTD,11007063,50601,126113
Somerset County Council,Adult Social Care,New Codes,Mdp LT Phys Support - FNC,Third Party Payments,Private Contractors & Other Agencies,Purchased Care Services,23.03.2016,1900988715,224.00,AVON CARE HOMES LTD,11007063,50601,126113
Somerset County Council,Adult Social Care,New Codes,Mdp LT Phys Support - FNC,Third Party Payments,Private Contractors & Other Agencies,Purchased Care Services,23.03.2016,1900988715,224.00,AVON CARE HOMES LTD,11007063,50601,126113
Somerset County Council,Adult Social Care,New Codes,Mdp LT Phys Support - Nurs Spot,Third Party Payments,Private Contractors & Other Agencies,Purchased Care Services,23.03.2016,1900988715,247.16,AVON CARE HOMES LTD,11007063,50601,121113
Somerset County Council,Adult Social Care,New Codes,Mdp LT Phys Support - FNC,Third Party Payments,Private Contractors & Other Agencies,Purchased Care Services,23.03.2016,1900988715,272.00,AVON CARE HOMES LTD,11007063,50601,126113
Somerset County Council,Adult Social Care,New Codes,Mdp ST Phys Support - Respite,Third Party Payments,Private Contractors & Other Agencies,Purchased Care Services,23.03.2016,1900988715,337.37,AVON CARE HOMES LTD,11007063,50601,120913
Somerset County Council,Adult Social Care,New Codes,Mdp LT Phys Support - FNC,Third Party Payments,Private Contractors & Other Agencies,Purchased Care Services,23.03.2016,1900988715,448.00,AVON CARE HOMES LTD,11007063,50601,126113
Somerset County Council,Adult Social Care,New Codes,Mdp LT Phys Support - FNC,Third Party Payments,Private Contractors & Other Agencies,Purchased Care Services,23.03.2016,1900988715,448.00,AVON CARE HOMES LTD,11007063,50601,126113
Somerset County Council,Adult Social Care,New Codes,Mdp LT Phys Support - FNC,Third Party Payments,Private Contractors & Other Agencies,Purchased Care Services,23.03.2016,1900988715,448.00,AVON CARE HOMES LTD,11007063,50601,126113
Somerset County Council,Adult Social Care,New Codes,Mdp LT Mem Support - FNC,Third Party Payments,Private Contractors & Other Agencies,Purchased Care Services,23.03.2016,1900988715,448.00,AVON CARE HOMES LTD,11007063,50601,126133
Somerset County Council,Adult Social Care,New Codes,Mdp LT Mem Support - FNC,Third Party Payments,Private Contractors & Other Agencies,Purchased Care Services,23.03.2016,1900988715,448.00,AVON CARE HOMES LTD,11007063,50601,126133
Somerset County Council,Adult Social Care,New Codes,Mdp LT Phys Support - FNC,Third Party Payments,Private Contractors & Other Agencies,Purchased Care Services,23.03.2016,1900988715,448.00,AVON CARE HOMES LTD,11007063,50601,126113
Somerset County Council,Adult Social Care,New Codes,Mdp LT Phys Support - FNC,Third Party Payments,Private Contractors & Other Agencies,Purchased Care Services,23.03.2016,1900988715,448.00,AVON CARE HOMES LTD,11007063,50601,126113
Somerset County Council,Adult Social Care,New Codes,Mdp LT Phys Support - FNC,Third Party Payments,Private Contractors & Other Agencies,Purchased Care Services,23.03.2016,1900988715,448.00,AVON CARE HOMES LTD,11007063,50601,126113
Somerset County Council,Adult Social Care,New Codes,Mdp LT Phys Support - FNC,Third Party Payments,Private Contractors & Other Agencies,Purchased Care Services,23.03.2016,1900988715,448.00,AVON CARE HOMES LTD,11007063,50601,126113
Somerset County Council,Adult Social Care,New Codes,Mdp LT Phys Support - FNC,Third Party Payments,Private Contractors & Other Agencies,Purchased Care Services,23.03.2016,1900988715,448.00,AVON CARE HOMES LTD,11007063,50601,126113
Somerset County Council,Adult Social Care,New Codes,Mdp LT Phys Support - FNC,Third Party Payments,Private Contractors & Other Agencies,Purchased Care Services,23.03.2016,1900988715,448.00,AVON CARE HOMES LTD,11007063,50601,126113
Somerset County Council,Adult Social Care,New Codes,Mdp LT Phys Support - FNC,Third Party Payments,Private Contractors & Other Agencies,Purchased Care Services,23.03.2016,1900988715,448.00,AVON CARE HOMES LTD,11007063,50601,126113
Somerset County Council,Adult Social Care,New Codes,Mdp LT Phys Support - FNC,Third Party Payments,Private Contractors & Other Agencies,Purchased Care Services,23.03.2016,1900988715,448.00,AVON CARE HOMES LTD,11007063,50601,126113
Somerset County Council,Adult Social Care,New Codes,Mdp LT Phys Support - FNC,Third Party Payments,Private Contractors & Other Agencies,Purchased Care Services,23.03.2016,1900988715,448.00,AVON CARE HOMES LTD,11007063,50601,126113
Somerset County Council,Adult Social Care,New Codes,Mdp LT Phys Support - FNC,Third Party Payments,Private Contractors & Other Agencies,Purchased Care Services,23.03.2016,1900988715,448.00,AVON CARE HOMES LTD,11007063,50601,126113
Somerset County Council,Adult Social Care,New Codes,Sdg LT Phys Support - DPA Residential,Third Party Payments,Private Contractors & Other Agencies,Purchased Care Services,23.03.2016,1900989128,1829.88,BANBRIDGE HOUSE,11006992,50601,129214
Somerset County Council,Adult Social Care,New Codes,Tton ST Phys Support - Respite,Third Party Payments,Private Contractors & Other Agencies,Purchased Care Services,23.03.2016,1900989128,653.53,BANBRIDGE HOUSE,11006992,50601,120916
Somerset County Council,Adult Social Care,New Codes,Sdg LT Phys Support - DPA Residential,Third Party Payments,Private Contractors & Other Agencies,Purchased Care Services,03.03.2016,1900977665,1372.41,BANBRIDGE HOUSE,11006992,50601,129214
Somerset County Council,Adult Social Care,New Codes,Tton ST Phys Support - Respite,Third Party Payments,Private Contractors & Other Agencies,Purchased Care Services,03.03.2016,1900977665,588.18,BANBRIDGE HOUSE,11006992,50601,120916
Somerset County Council,Adult Social Care,New Codes,Tton ST Phys Support - Respite,Third Party Payments,Private Contractors & Other Agencies,Purchased Care Services,03.03.2016,1900977665,326.76,BANBRIDGE HOUSE,11006992,50601,120916
Somerset County Council,Adult Social Care,New Codes,Sdg LT Phys Support - DPA Residential,Third Party Payments,Private Contractors & Other Agencies,Purchased Care Services,03.03.2016,1900977665,457.47,BANBRIDGE HOUSE,11006992,50601,129214
Somerset County Council,Adult Social Care,Joint Equipment Service,Integrated Community Equipment Service,Supplies & Services,Equipment Furniture & Materials,Equipment Repairs & Maintenance,24.03.2016,5100768039,650.00,BANNELL ENGINEERING,13000313,40002,101250
Somerset County Council,Adult Social Care,Joint Equipment Service,Integrated Community Equipment Service,Supplies & Services,Equipment Furniture & Materials,Equipment Repairs & Maintenance,24.03.2016,5100768040,890.00,BANNELL ENGINEERING,13000313,40002,101250
Somerset County Council,Adult Social Care,Joint Equipment Service,Integrated Community Equipment Service,Supplies & Services,Equipment Furniture & Materials,Equipment Repairs & Maintenance,24.03.2016,5100768041,930.00,BANNELL ENGINEERING,13000313,40002,101250
Somerset County Council,Adult Social Care,Joint Equipment Service,Integrated Community Equipment Service,Supplies & Services,Equipment Furniture & Materials,Equipment Repairs & Maintenance,24.03.2016,5100768042,435.00,BANNELL ENGINEERING,13000313,40002,101250
Somerset County Council,Adult Social Care,Joint Equipment Service,Integrated Community Equipment Service,Supplies & Services,Equipment Furniture & Materials,Equipment Repairs & Maintenance,24.03.2016,5100769801,2972.00,BANNELL ENGINEERING,13000313,40002,101250
Somerset County Council,Adult Social Care,New Codes,SSom LT Phys Support - FNC,Third Party Payments,Private Contractors & Other Agencies,Purchased Care Services,23.03.2016,1900989214,1552.00,Barchester Healthcare Homes Ltd,11007024,50601,126115
Somerset County Council,Adult Social Care,New Codes,SSom LT Phys Support - Nurs OPMH Spot,Third Party Payments,Private Contractors & Other Agencies,Purchased Care Services,23.03.2016,1900989214,2008.48,Barchester Healthcare Homes Ltd,11007024,50601,123115
Somerset County Council,Adult Social Care,New Codes,SSom LT Phys Support - Nurs OPMH Spot,Third Party Payments,Private Contractors & Other Agencies,Purchased Care Services,23.03.2016,1900989214,2008.48,Barchester Healthcare Homes Ltd,11007024,50601,123115
Somerset County Council,Adult Social Care,New Codes,SSom LT Phys Support - Nurs OPMH Spot,Third Party Payments,Private Contractors & Other Agencies,Purchased Care Services,23.03.2016,1900989214,2008.48,Barchester Healthcare Homes Ltd,11007024,50601,123115
Somerset County Council,Adult Social Care,New Codes,SSom LT Phys Support - Nurs Spot,Third Party Payments,Private Contractors & Other Agencies,Purchased Care Services,23.03.2016,1900989214,2600.00,Barchester Healthcare Homes Ltd,11007024,50601,121115
Somerset County Council,Adult Social Care,New Codes,SSom LT Phys Support - Nurs Spot,Third Party Payments,Private Contractors & Other Agencies,Purchased Care Services,23.03.2016,1900989214,2332.00,Barchester Healthcare Homes Ltd,11007024,50601,121115
Somerset County Council,Adult Social Care,New Codes,SSom LT Phys Support - Nurs OPMH Spot,Third Party Payments,Private Contractors & Other Agencies,Purchased Care Services,23.03.2016,1900989214,2008.48,Barchester Healthcare Homes Ltd,11007024,50601,123115
Somerset County Council,Adult Social Care,New Codes,SSom LT Phys Support - Nurs Spot,Third Party Payments,Private Contractors & Other Agencies,Purchased Care Services,23.03.2016,1900989214,1889.28,Barchester Healthcare Homes Ltd,11007024,50601,121115
Somerset County Council,Adult Social Care,New Codes,SSom LT Phys Support - Nurs Spot,Third Party Payments,Private Contractors & Other Agencies,Purchased Care Services,23.03.2016,1900989214,1889.28,Barchester Healthcare Homes Ltd,11007024,50601,121115
Somerset County Council,Adult Social Care,New Codes,SSom LT Phys Support - Nurs Spot,Third Party Payments,Private Contractors & Other Agencies,Purchased Care Services,23.03.2016,1900989214,1889.28,Barchester Healthcare Homes Ltd,11007024,50601,121115
Somerset County Council,Adult Social Care,New Codes,SSom LT Phys Support - Nurs Spot,Third Party Payments,Private Contractors & Other Agencies,Purchased Care Services,23.03.2016,1900989214,1889.28,Barchester Healthcare Homes Ltd,11007024,50601,121115
Somerset County Council,Adult Social Care,New Codes,SSom LT Phys Support - Nurs Spot,Third Party Payments,Private Contractors & Other Agencies,Purchased Care Services,23.03.2016,1900989214,1889.28,Barchester Healthcare Homes Ltd,11007024,50601,121115
Somerset County Council,Adult Social Care,New Codes,SSom LT Phys Support - Nurs OPMH Spot,Third Party Payments,Private Contractors & Other Agencies,Purchased Care Services,23.03.2016,1900989214,2008.48,Barchester Healthcare Homes Ltd,11007024,50601,123115
Somerset County Council,Adult Social Care,New Codes,SSom LT Phys Support - Res Spot,Third Party Payments,Private Contractors & Other Agencies,Purchased Care Services,23.03.2016,1900989214,2173.00,Barchester Healthcare Homes Ltd,11007024,50601,121215
Somerset County Council,Adult Social Care,New Codes,SSom LT Phys Support - Nurs OPMH Spot,Third Party Payments,Private Contractors & Other Agencies,Purchased Care Services,23.03.2016,1900989214,2184.48,Barchester Healthcare Homes Ltd,11007024,50601,123115
Somerset County Council,Adult Social Care,New Codes,SSom LT Mem Support - Nurs OPMH Spot,Third Party Payments,Private Contractors & Other Agencies,Purchased Care Services,23.03.2016,1900989214,2008.48,Barchester Healthcare Homes Ltd,11007024,50601,123135
Somerset County Council,Adult Social Care,New Codes,SSom LT Phys Support - Nurs Spot,Third Party Payments,Private Contractors & Other Agencies,Purchased Care Services,23.03.2016,1900989214,1889.28,Barchester Healthcare Homes Ltd,11007024,50601,121115
Somerset County Council,Adult Social Care,New Codes,SSom LT Phys Support - Nurs Spot,Third Party Payments,Private Contractors & Other Agencies,Purchased Care Services,23.03.2016,1900989214,1889.28,Barchester Healthcare Homes Ltd,11007024,50601,121115
Somerset County Council,Adult Social Care,New Codes,SSom LT Phys Support - Nurs Spot,Third Party Payments,Private Contractors & Other Agencies,Purchased Care Services,23.03.2016,1900989214,1889.28,Barchester Healthcare Homes Ltd,11007024,50601,121115
Somerset County Council,Adult Social Care,New Codes,SSom LT Phys Support - Nurs OPMH Spot,Third Party Payments,Private Contractors & Other Agencies,Purchased Care Services,23.03.2016,1900989214,2008.48,Barchester Healthcare Homes Ltd,11007024,50601,123115
Somerset County Council,Adult Social Care,New Codes,SSom LT Phys Support - Nurs Spot,Third Party Payments,Private Contractors & Other Agencies,Purchased Care Services,23.03.2016,1900989214,1889.28,Barchester Healthcare Homes Ltd,11007024,50601,121115
Somerset County Council,Adult Social Care,New Codes,SSom LT Mem Support - Nurs Spot,Third Party Payments,Private Contractors & Other Agencies,Purchased Care Services,23.03.2016,1900989214,1889.28,Barchester Healthcare Homes Ltd,11007024,50601,121135
Somerset County Council,Adult Social Care,New Codes,SSom LT Phys Support - Nurs Spot,Third Party Payments,Private Contractors & Other Agencies,Purchased Care Services,23.03.2016,1900989214,1889.28,Barchester Healthcare Homes Ltd,11007024,50601,121115
Somerset County Council,Adult Social Care,New Codes,SSom LT Phys Support - Nurs Spot,Third Party Payments,Private Contractors & Other Agencies,Purchased Care Services,23.03.2016,1900989214,2560.00,Barchester Healthcare Homes Ltd,11007024,50601,121115
Somerset County Council,Adult Social Care,New Codes,SSom LT Phys Support - Nurs Spot,Third Party Payments,Private Contractors & Other Agencies,Purchased Care Services,23.03.2016,1900989214,1889.28,Barchester Healthcare Homes Ltd,11007024,50601,121115
Somerset County Council,Adult Social Care,New Codes,SSom LT Phys Support - FNC,Third Party Payments,Private Contractors & Other Agencies,Purchased Care Services,23.03.2016,1900989214,448.00,Barchester Healthcare Homes Ltd,11007024,50601,126115
Somerset County Council,Adult Social Care,New Codes,SSom LT Phys Support - FNC,Third Party Payments,Private Contractors & Other Agencies,Purchased Care Services,23.03.2016,1900989214,448.00,Barchester Healthcare Homes Ltd,11007024,50601,126115
Somerset County Council,Adult Social Care,New Codes,SSom LT Phys Support - FNC,Third Party Payments,Private Contractors & Other Agencies,Purchased Care Services,23.03.2016,1900989214,448.00,Barchester Healthcare Homes Ltd,11007024,50601,126115
Somerset County Council,Adult Social Care,New Codes,SSom LT Phys Support - FNC,Third Party Payments,Private Contractors & Other Agencies,Purchased Care Services,23.03.2016,1900989214,448.00,Barchester Healthcare Homes Ltd,11007024,50601,126115
Somerset County Council,Adult Social Care,New Codes,SSom LT Phys Support - FNC,Third Party Payments,Private Contractors & Other Agencies,Purchased Care Services,23.03.2016,1900989214,448.00,Barchester Healthcare Homes Ltd,11007024,50601,126115
Somerset County Council,Adult Social Care,New Codes,SSom LT Phys Support - Nurs OPMH Spot,Third Party Payments,Private Contractors & Other Agencies,Purchased Care Services,23.03.2016,1900989214,2008.48,Barchester Healthcare Homes Ltd,11007024,50601,123115
Somerset County Council,Adult Social Care,New Codes,SSom LT Phys Support - FNC,Third Party Payments,Private Contractors & Other Agencies,Purchased Care Services,03.03.2016,1900977809,-1616.00,Barchester Healthcare Homes Ltd,11007024,50601,126115
Somerset County Council,Adult Social Care,New Codes,SSom LT Phys Support - Nurs Spot,Third Party Payments,Private Contractors & Other Agencies,Purchased Care Services,03.03.2016,1900977809,-20309.76,Barchester Healthcare Homes Ltd,11007024,50601,121115
Somerset County Council,Adult Social Care,New Codes,SSom LT Mem Support - Nurs Spot,Third Party Payments,Private Contractors & Other Agencies,Purchased Care Services,03.03.2016,1900977809,-20309.76,Barchester Healthcare Homes Ltd,11007024,50601,121135
Somerset County Council,Adult Social Care,New Codes,SSom LT Phys Support - Nurs Spot,Third Party Payments,Private Contractors & Other Agencies,Purchased Care Services,03.03.2016,1900977809,-20309.76,Barchester Healthcare Homes Ltd,11007024,50601,121115
Somerset County Council,Adult Social Care,New Codes,SSom LT Phys Support - Nurs OPMH Spot,Third Party Payments,Private Contractors & Other Agencies,Purchased Care Services,03.03.2016,1900977809,-20309.76,Barchester Healthcare Homes Ltd,11007024,50601,123115
Somerset County Council,Adult Social Care,New Codes,SSom LT Mem Support - Nurs OPMH Spot,Third Party Payments,Private Contractors & Other Agencies,Purchased Care Services,03.03.2016,1900977809,-20309.76,Barchester Healthcare Homes Ltd,11007024,50601,123135
Somerset County Council,Adult Social Care,New Codes,SSom LT Phys Support - Nurs OPMH Spot,Third Party Payments,Private Contractors & Other Agencies,Purchased Care Services,03.03.2016,1900977809,-20309.76,Barchester Healthcare Homes Ltd,11007024,50601,123115
Somerset County Council,Adult Social Care,New Codes,SSom LT Phys Support - Nurs Spot,Third Party Payments,Private Contractors & Other Agencies,Purchased Care Services,03.03.2016,1900977809,-20309.76,Barchester Healthcare Homes Ltd,11007024,50601,121115
Somerset County Council,Adult Social Care,New Codes,SSom LT Phys Support - Nurs Spot,Third Party Payments,Private Contractors & Other Agencies,Purchased Care Services,03.03.2016,1900977809,-20309.76,Barchester Healthcare Homes Ltd,11007024,50601,121115
Somerset County Council,Adult Social Care,New Codes,SSom LT Phys Support - Nurs Spot,Third Party Payments,Private Contractors & Other Agencies,Purchased Care Services,03.03.2016,1900977809,-20309.76,Barchester Healthcare Homes Ltd,11007024,50601,121115
Somerset County Council,Adult Social Care,New Codes,SSom LT Phys Support - Res Spot,Third Party Payments,Private Contractors & Other Agencies,Purchased Care Services,03.03.2016,1900977809,-23359.75,Barchester Healthcare Homes Ltd,11007024,50601,121215
Somerset County Council,Adult Social Care,New Codes,SSom LT Phys Support - Nurs Spot,Third Party Payments,Private Contractors & Other Agencies,Purchased Care Services,03.03.2016,1900977809,-20309.76,Barchester Healthcare Homes Ltd,11007024,50601,121115
Somerset County Council,Adult Social Care,New Codes,SSom LT Phys Support - Nurs OPMH Spot,Third Party Payments,Private Contractors & Other Agencies,Purchased Care Services,03.03.2016,1900977809,-20309.76,Barchester Healthcare Homes Ltd,11007024,50601,123115
Somerset County Council,Adult Social Care,New Codes,SSom LT Phys Support - Nurs OPMH Spot,Third Party Payments,Private Contractors & Other Agencies,Purchased Care Services,03.03.2016,1900977809,-20309.76,Barchester Healthcare Homes Ltd,11007024,50601,123115
Somerset County Council,Adult Social Care,New Codes,SSom LT Phys Support - Nurs Spot,Third Party Payments,Private Contractors & Other Agencies,Purchased Care Services,03.03.2016,1900977809,-20309.76,Barchester Healthcare Homes Ltd,11007024,50601,121115
Somerset County Council,Adult Social Care,New Codes,SSom LT Phys Support - Nurs OPMH Spot,Third Party Payments,Private Contractors & Other Agencies,Purchased Care Services,03.03.2016,1900977809,-20309.76,Barchester Healthcare Homes Ltd,11007024,50601,123115
Somerset County Council,Adult Social Care,New Codes,SSom LT Phys Support - Nurs OPMH Spot,Third Party Payments,Private Contractors & Other Agencies,Purchased Care Services,03.03.2016,1900977809,-20309.76,Barchester Healthcare Homes Ltd,11007024,50601,123115
Somerset County Council,Adult Social Care,New Codes,SSom LT Phys Support - Nurs OPMH Spot,Third Party Payments,Private Contractors & Other Agencies,Purchased Care Services,03.03.2016,1900977809,-23673.22,Barchester Healthcare Homes Ltd,11007024,50601,123115
Somerset County Council,Adult Social Care,Learning Disabilities,LD-PUR-NC-Nursing-STH,Third Party Payments,Private Contractors & Other Agencies,Purchased Care Services,23.03.2016,1900988324,4560.84,Barchester Healthcare Homes Ltd,11007024,50601,108423
Somerset County Council,Adult Social Care,Learning Disabilities,LD-PUR-NC-Nursing-STH,Third Party Payments,Private Contractors & Other Agencies,Purchased Care Services,23.03.2016,1900988324,4560.84,Barchester Healthcare Homes Ltd,11007024,50601,108423
Somerset County Council,Adult Social Care,Learning Disabilities,LD-PUR-NC-Free Nursing Care-STH,Third Party Payments,Private Contractors & Other Agencies,Purchased Care Services,23.03.2016,1900988324,448.00,Barchester Healthcare Homes Ltd,11007024,50601,107773
Somerset County Council,Adult Social Care,Learning Disabilities,LD-PUR-NC-Free Nursing Care-STH,Third Party Payments,Private Contractors & Other Agencies,Purchased Care Services,23.03.2016,1900988324,448.00,Barchester Healthcare Homes Ltd,11007024,50601,107773
Somerset County Council,Adult Social Care,New Codes,SSom LT Phys Support - FNC,Third Party Payments,Private Contractors & Other Agencies,Purchased Care Services,23.03.2016,1900989214,4032.00,Barchester Healthcare Homes Ltd,11007024,50601,126115
Somerset County Council,Adult Social Care,New Codes,SSom LT Phys Support - Nurs Spot,Third Party Payments,Private Contractors & Other Agencies,Purchased Care Services,23.03.2016,1900989214,2800.00,Barchester Healthcare Homes Ltd,11007024,50601,121115
Somerset County Council,Adult Social Care,New Codes,SSom LT Mem Support - Nurs OPMH Spot,Third Party Payments,Private Contractors & Other Agencies,Purchased Care Services,23.03.2016,1900989214,2552.00,Barchester Healthcare Homes Ltd,11007024,50601,123135
Somerset County Council,Adult Social Care,New Codes,SSom LT Phys Support - Nurs OPMH Spot,Third Party Payments,Private Contractors & Other Agencies,Purchased Care Services,23.03.2016,1900989214,2956.44,Barchester Healthcare Homes Ltd,11007024,50601,123115
Somerset County Council,Adult Social Care,New Codes,SSom LT Phys Support - DPA Nursing,Third Party Payments,Private Contractors & Other Agencies,Purchased Care Services,23.03.2016,1900989214,2952.00,Barchester Healthcare Homes Ltd,11007024,50601,129115
Somerset County Council,Adult Social Care,New Codes,SSom LT Phys Support - Nurs Spot,Third Party Payments,Private Contractors & Other Agencies,Purchased Care Services,23.03.2016,1900989214,2800.00,Barchester Healthcare Homes Ltd,11007024,50601,121115
Somerset County Council,Adult Social Care,New Codes,SSom LT Phys Support - DPA Nursing,Third Party Payments,Private Contractors & Other Agencies,Purchased Care Services,23.03.2016,1900989214,1889.28,Barchester Healthcare Homes Ltd,11007024,50601,129115
Somerset County Council,Adult Social Care,New Codes,SSom LT Phys Support - DPA Nursing,Third Party Payments,Private Contractors & Other Agencies,Purchased Care Services,23.03.2016,1900989214,2164.00,Barchester Healthcare Homes Ltd,11007024,50601,129115
Somerset County Council,Adult Social Care,New Codes,SSom LT Phys Support - FNC,Third Party Payments,Private Contractors & Other Agencies,Purchased Care Services,23.03.2016,1900989214,448.00,Barchester Healthcare Homes Ltd,11007024,50601,126115
Somerset County Council,Adult Social Care,New Codes,SSom LT Phys Support - FNC,Third Party Payments,Private Contractors & Other Agencies,Purchased Care Services,23.03.2016,1900989214,448.00,Barchester Healthcare Homes Ltd,11007024,50601,126115
Somerset County Council,Adult Social Care,New Codes,SSom LT Phys Support - FNC,Third Party Payments,Private Contractors & Other Agencies,Purchased Care Services,23.03.2016,1900989214,448.00,Barchester Healthcare Homes Ltd,11007024,50601,126115
Somerset County Council,Adult Social Care,New Codes,SSom LT Phys Support - FNC,Third Party Payments,Private Contractors & Other Agencies,Purchased Care Services,23.03.2016,1900989214,448.00,Barchester Healthcare Homes Ltd,11007024,50601,126115
Somerset County Council,Adult Social Care,New Codes,SSom LT Phys Support - FNC,Third Party Payments,Private Contractors & Other Agencies,Purchased Care Services,23.03.2016,1900989214,448.00,Barchester Healthcare Homes Ltd,11007024,50601,126115
Somerset County Council,Adult Social Care,New Codes,SSom LT Mem Support - FNC,Third Party Payments,Private Contractors & Other Agencies,Purchased Care Services,23.03.2016,1900989214,448.00,Barchester Healthcare Homes Ltd,11007024,50601,126135
Somerset County Council,Adult Social Care,New Codes,SSom LT Phys Support - FNC,Third Party Payments,Private Contractors & Other Agencies,Purchased Care Services,23.03.2016,1900989214,448.00,Barchester Healthcare Homes Ltd,11007024,50601,126115
Somerset County Council,Adult Social Care,New Codes,SSom LT Phys Support - FNC,Third Party Payments,Private Contractors & Other Agencies,Purchased Care Services,23.03.2016,1900989214,448.00,Barchester Healthcare Homes Ltd,11007024,50601,126115
Somerset County Council,Adult Social Care,New Codes,SSom LT Phys Support - FNC,Third Party Payments,Private Contractors & Other Agencies,Purchased Care Services,23.03.2016,1900989214,448.00,Barchester Healthcare Homes Ltd,11007024,50601,126115
Somerset County Council,Adult Social Care,Older People,ASC SS OP FNC Somerset,Third Party Payments,Private Contractors & Other Agencies,Purchased Care Services,23.03.2016,1900989214,448.00,Barchester Healthcare Homes Ltd,11007024,50601,105288
Somerset County Council,Adult Social Care,New Codes,SSom LT Phys Support - FNC,Third Party Payments,Private Contractors & Other Agencies,Purchased Care Services,23.03.2016,1900989214,448.00,Barchester Healthcare Homes Ltd,11007024,50601,126115
Somerset County Council,Adult Social Care,New Codes,SSom LT Phys Support - FNC,Third Party Payments,Private Contractors & Other Agencies,Purchased Care Services,23.03.2016,1900989214,448.00,Barchester Healthcare Homes Ltd,11007024,50601,126115
Somerset County Council,Adult Social Care,New Codes,SSom LT Phys Support - FNC,Third Party Payments,Private Contractors & Other Agencies,Purchased Care Services,23.03.2016,1900989214,448.00,Barchester Healthcare Homes Ltd,11007024,50601,126115
Somerset County Council,Adult Social Care,New Codes,SSom LT Phys Support - FNC,Third Party Payments,Private Contractors & Other Agencies,Purchased Care Services,23.03.2016,1900989214,448.00,Barchester Healthcare Homes Ltd,11007024,50601,126115
Somerset County Council,Adult Social Care,New Codes,SSom LT Phys Support - FNC,Third Party Payments,Private Contractors & Other Agencies,Purchased Care Services,23.03.2016,1900989214,448.00,Barchester Healthcare Homes Ltd,11007024,50601,126115
Somerset County Council,Adult Social Care,New Codes,SSom LT Phys Support - FNC,Third Party Payments,Private Contractors & Other Agencies,Purchased Care Services,23.03.2016,1900989214,448.00,Barchester Healthcare Homes Ltd,11007024,50601,126115
Somerset County Council,Adult Social Care,New Codes,SSom LT Phys Support - FNC,Third Party Payments,Private Contractors & Other Agencies,Purchased Care Services,23.03.2016,1900989214,448.00,Barchester Healthcare Homes Ltd,11007024,50601,126115
Somerset County Council,Adult Social Care,New Codes,SSom LT Phys Support - FNC,Third Party Payments,Private Contractors & Other Agencies,Purchased Care Services,23.03.2016,1900989214,448.00,Barchester Healthcare Homes Ltd,11007024,50601,126115
Somerset County Council,Adult Social Care,New Codes,SSom LT Phys Support - FNC,Third Party Payments,Private Contractors & Other Agencies,Purchased Care Services,23.03.2016,1900989214,448.00,Barchester Healthcare Homes Ltd,11007024,50601,126115
Somerset County Council,Adult Social Care,New Codes,SSom LT Phys Support - FNC,Third Party Payments,Private Contractors & Other Agencies,Purchased Care Services,23.03.2016,1900989214,448.00,Barchester Healthcare Homes Ltd,11007024,50601,126115
Somerset County Council,Adult Social Care,New Codes,SSom LT Phys Support - DPA Nursing,Third Party Payments,Private Contractors & Other Agencies,Purchased Care Services,23.03.2016,1900989214,421.71,Barchester Healthcare Homes Ltd,11007024,50601,129115
Somerset County Council,Adult Social Care,New Codes,SSom LT Phys Support - DPA Nursing,Third Party Payments,Private Contractors & Other Agencies,Purchased Care Services,23.03.2016,1900989214,2164.00,Barchester Healthcare Homes Ltd,11007024,50601,129115
Somerset County Council,Adult Social Care,New Codes,SSom LT Phys Support - Nurs OPMH Spot,Third Party Payments,Private Contractors & Other Agencies,Purchased Care Services,23.03.2016,1900989214,292.51,Barchester Healthcare Homes Ltd,11007024,50601,123115
